Transaction Date,Local Authority Department,Beneficiary,Purpose of Expenditure,Amount (excluding VAT),Non Recoverable VAT,Merchant Category
 05-12-2022,Adults,Zot Ltd,Daycare - Private Contractors Payment,500.00,0.00,COMMERCIAL SUPPLIER 
 05-12-2022,Adults,Zot Ltd,Daycare - Private Contractors Payment,500.00,0.00,COMMERCIAL SUPPLIER 
 15-12-2022,Adults,Prepaid Financial Services 266 Corporate,Staff Development And Training,500.00,0.00,COMMERCIAL SUPPLIER 
 06-12-2022,Adults,Home Sweet Home Care Ltd,Home Care - Private Contractors Payment,501.18,0.00,COMMERCIAL SUPPLIER 
 04-12-2022,Adults,Homestead Care Service,Home Care - Private Contractors Payment,501.84,0.00,COMMERCIAL SUPPLIER 
 05-12-2022,Adults,Outreach Support Services Ltd,Home Care - Private Contractors Payment,501.84,0.00,COMMERCIAL SUPPLIER 
 06-12-2022,Adults,Hospiva Care & Associates Agency Ltd_a,Home Care - Private Contractors Payment,501.84,0.00,COMMERCIAL SUPPLIER 
 08-12-2022,Adults,Home Support Services (Havering & Essex) Ltd,Home Care - Private Contractors Payment,501.84,0.00,COMMERCIAL SUPPLIER 
 29-12-2022,Adults,Matrix SCM Ltd,Agency Staff,507.00,0.00,COMMERCIAL SUPPLIER 
 14-12-2022,Adults,Matrix SCM Ltd,Agency Staff,509.71,0.00,COMMERCIAL SUPPLIER 
 07-12-2022,Adults,Matrix SCM Ltd,Agency Staff,509.84,0.00,COMMERCIAL SUPPLIER 
 21-12-2022,Adults,Matrix SCM Ltd,Agency Staff,510.99,0.00,COMMERCIAL SUPPLIER 
 03-12-2022,Adults,Personal Information � Redacted,Home Care - Private Contractors Payment,511.68,0.00,INDIVIDUALS 
 04-12-2022,Adults,Homestead Care Service,Home Care - Private Contractors Payment,511.68,0.00,COMMERCIAL SUPPLIER 
 05-12-2022,Adults,Prestige Care & Support Ltd,Home Care - Private Contractors Payment,511.68,0.00,COMMERCIAL SUPPLIER 
 07-12-2022,Adults,Anytime Care 2020_a,Home Care - Private Contractors Payment,511.68,0.00,COMMERCIAL SUPPLIER 
 08-12-2022,Adults,Home Support Services (Havering & Essex) Ltd,Home Care - Private Contractors Payment,511.68,0.00,COMMERCIAL SUPPLIER 
 08-12-2022,Adults,Home Support Services (Havering & Essex) Ltd,Home Care - Private Contractors Payment,512.01,0.00,COMMERCIAL SUPPLIER 
 05-12-2022,Adults,Tapestry_a.,Daycare - Private Contractors Payment,513.00,0.00,COMMERCIAL SUPPLIER 
 06-12-2022,Adults,Hospiva Care & Associates Agency Ltd_a,Home Care - Private Contractors Payment,513.32,0.00,COMMERCIAL SUPPLIER 
 08-12-2022,Adults,Home Support Services (Havering & Essex) Ltd,Home Care - Private Contractors Payment,513.98,0.00,COMMERCIAL SUPPLIER 
 09-12-2022,Adults,Topaz Care and Support Co Ltd,Supported Other Accommodation - Private Contractors Payment,514.08,0.00,COMMERCIAL SUPPLIER 
 09-12-2022,Adults,Lodge Group Care UK Ltd,Home Care - Private Contractors Payment,515.62,0.00,COMMERCIAL SUPPLIER 
 06-12-2022,Adults,Home Sweet Home Care Ltd,Home Care - Private Contractors Payment,516.60,0.00,COMMERCIAL SUPPLIER 
 29-12-2022,Adults,Matrix SCM Ltd,Agency Staff,517.20,0.00,COMMERCIAL SUPPLIER 
 09-12-2022,Adults,Morepower Ltd t/a Aqs Homecare,Home Care - Private Contractors Payment,518.90,0.00,COMMERCIAL SUPPLIER 
 07-12-2022,Adults,Quality Healthcare Solutions Ltd t/a Kare Plus Romford,Home Care - Private Contractors Payment,519.22,0.00,COMMERCIAL SUPPLIER 
 09-12-2022,Adults,Lodge Group Care UK Ltd,Home Care - Private Contractors Payment,519.55,0.00,COMMERCIAL SUPPLIER 
 04-12-2022,Adults,Homestead Care Service,Home Care - Private Contractors Payment,519.88,0.00,COMMERCIAL SUPPLIER 
 05-12-2022,Adults,The Camden Society,Daycare - Private Contractors Payment,520.00,0.00,NON COMMERCIAL SUPPLIER 
 07-12-2022,Adults,Matrix SCM Ltd,Agency Staff,520.66,0.00,COMMERCIAL SUPPLIER 
 08-12-2022,Adults,Home Support Services (Havering & Essex) Ltd,Home Care - Private Contractors Payment,521.19,0.00,COMMERCIAL SUPPLIER 
 04-12-2022,Adults,Homestead Care Service,Home Care - Private Contractors Payment,521.52,0.00,COMMERCIAL SUPPLIER 
 05-12-2022,Adults,Prestige Care & Support Ltd,Home Care - Private Contractors Payment,521.52,0.00,COMMERCIAL SUPPLIER 
 12-12-2022,Adults,Crystalize Care Services,Home Care - Private Contractors Payment,521.52,0.00,COMMERCIAL SUPPLIER 
 06-12-2022,Adults,Home Sweet Home Care Ltd,Home Care - Private Contractors Payment,521.85,0.00,COMMERCIAL SUPPLIER 
 09-12-2022,Adults,Morepower Ltd t/a Aqs Homecare,Home Care - Private Contractors Payment,522.18,0.00,COMMERCIAL SUPPLIER 
 09-12-2022,Adults,Cera Care Operations Ltd,Home Care - Private Contractors Payment,523.16,0.00,COMMERCIAL SUPPLIER 
 09-12-2022,Adults,Cera Care Operations Ltd,Home Care - Private Contractors Payment,523.16,0.00,COMMERCIAL SUPPLIER 
 04-12-2022,Adults,Homestead Care Service,Home Care - Private Contractors Payment,528.74,0.00,COMMERCIAL SUPPLIER 
 05-12-2022,Adults,Prestige Care & Support Ltd,Home Care - Private Contractors Payment,531.36,0.00,COMMERCIAL SUPPLIER 
 06-12-2022,Adults,Home Sweet Home Care Ltd,Home Care - Private Contractors Payment,531.36,0.00,COMMERCIAL SUPPLIER 
 08-12-2022,Adults,Home Support Services (Havering & Essex) Ltd,Home Care - Private Contractors Payment,531.36,0.00,COMMERCIAL SUPPLIER 
 09-12-2022,Adults,Lodge Group Care UK Ltd,Home Care - Private Contractors Payment,531.36,0.00,COMMERCIAL SUPPLIER 
 06-12-2022,Adults,Hospiva Care & Associates Agency Ltd_a,Home Care - Private Contractors Payment,533.33,0.00,COMMERCIAL SUPPLIER 
 07-12-2022,Adults,Matrix SCM Ltd,Agency Staff,534.45,0.00,COMMERCIAL SUPPLIER 
 14-12-2022,Adults,Matrix SCM Ltd,Agency Staff,534.45,0.00,COMMERCIAL SUPPLIER 
 06-12-2022,Adults,Home Sweet Home Care Ltd,Home Care - Private Contractors Payment,535.95,0.00,COMMERCIAL SUPPLIER 
 07-12-2022,Adults,Care-Away Ltd T/A Care Support,Home Care - Private Contractors Payment,540.80,0.00,COMMERCIAL SUPPLIER 
 04-12-2022,Adults,Homestead Care Service,Home Care - Private Contractors Payment,541.20,0.00,COMMERCIAL SUPPLIER 
 04-12-2022,Adults,Homestead Care Service,Home Care - Private Contractors Payment,541.20,0.00,COMMERCIAL SUPPLIER 
 04-12-2022,Adults,Homestead Care Service,Home Care - Private Contractors Payment,541.20,0.00,COMMERCIAL SUPPLIER 
 06-12-2022,Adults,Home Sweet Home Care Ltd,Home Care - Private Contractors Payment,541.20,0.00,COMMERCIAL SUPPLIER 
 06-12-2022,Adults,Home Sweet Home Care Ltd,Home Care - Private Contractors Payment,541.20,0.00,COMMERCIAL SUPPLIER 
 06-12-2022,Adults,Home Sweet Home Care Ltd,Home Care - Private Contractors Payment,541.20,0.00,COMMERCIAL SUPPLIER 
 09-12-2022,Adults,Lodge Group Care UK Ltd,Home Care - Private Contractors Payment,541.20,0.00,COMMERCIAL SUPPLIER 
 12-12-2022,Adults,John Stanleys Care Agency Ltd,Home Care - Private Contractors Payment,541.86,0.00,COMMERCIAL SUPPLIER 
 08-12-2022,Adults,Home Support Services (Havering & Essex) Ltd,Home Care - Private Contractors Payment,542.51,0.00,COMMERCIAL SUPPLIER 
 08-12-2022,Adults,Home Support Services (Havering & Essex) Ltd,Home Care - Private Contractors Payment,542.84,0.00,COMMERCIAL SUPPLIER 
 09-12-2022,Adults,Affinia Healthcare Ltd_a,Supported Other Accommodation - Private Contractors Payment,543.20,0.00,COMMERCIAL SUPPLIER 
 09-12-2022,Adults,Outlook Care - 76 Neave Crescent,Supported Other Accommodation - Private Contractors Payment,543.32,0.00,COMMERCIAL SUPPLIER 
 04-12-2022,Adults,Homestead Care Service,Home Care - Private Contractors Payment,544.81,0.00,COMMERCIAL SUPPLIER 
 08-12-2022,Adults,Home Support Services (Havering & Essex) Ltd,Home Care - Private Contractors Payment,544.81,0.00,COMMERCIAL SUPPLIER 
 29-12-2022,Adults,Matrix SCM Ltd,Agency Staff,546.08,0.00,COMMERCIAL SUPPLIER 
 09-12-2022,Adults,Paradise Independent Living,Supported Other Accommodation - Private Contractors Payment,546.24,0.00,NON COMMERCIAL SUPPLIER 
 09-12-2022,Adults,Beechcourt Care Centre - Bondcare,Nursing Care Income,547.23,0.00,COMMERCIAL SUPPLIER 
 09-12-2022,Adults,Lodge Group Care UK Ltd,Home Care - Private Contractors Payment,548.09,0.00,COMMERCIAL SUPPLIER 
 04-12-2022,Adults,Homestead Care Service,Home Care - Private Contractors Payment,548.42,0.00,COMMERCIAL SUPPLIER 
 03-12-2022,Adults,Personal Information � Redacted,Home Care - Private Contractors Payment,551.04,0.00,INDIVIDUALS 
 03-12-2022,Adults,Personal Information � Redacted,Home Care - Private Contractors Payment,551.04,0.00,INDIVIDUALS 
 03-12-2022,Adults,Personal Information � Redacted,Home Care - Private Contractors Payment,551.04,0.00,INDIVIDUALS 
 03-12-2022,Adults,Personal Information � Redacted,Home Care - Private Contractors Payment,551.04,0.00,INDIVIDUALS 
 03-12-2022,Adults,Personal Information � Redacted,Home Care - Private Contractors Payment,551.04,0.00,INDIVIDUALS 
 05-12-2022,Adults,Prestige Care & Support Ltd,Home Care - Private Contractors Payment,551.04,0.00,COMMERCIAL SUPPLIER 
 05-12-2022,Adults,Prestige Care & Support Ltd,Home Care - Private Contractors Payment,551.04,0.00,COMMERCIAL SUPPLIER 
 05-12-2022,Adults,Prestige Care & Support Ltd,Home Care - Private Contractors Payment,551.04,0.00,COMMERCIAL SUPPLIER 
 05-12-2022,Adults,Outreach Support Services Ltd,Home Care - Private Contractors Payment,551.04,0.00,COMMERCIAL SUPPLIER 
 05-12-2022,Adults,Outreach Support Services Ltd,Home Care - Private Contractors Payment,551.04,0.00,COMMERCIAL SUPPLIER 
 05-12-2022,Adults,Outreach Support Services Ltd,Home Care - Private Contractors Payment,551.04,0.00,COMMERCIAL SUPPLIER 
 05-12-2022,Adults,Outreach Support Services Ltd,Home Care - Private Contractors Payment,551.04,0.00,COMMERCIAL SUPPLIER 
 05-12-2022,Adults,Passion Tree Care Services Ltd,Home Care - Private Contractors Payment,551.04,0.00,COMMERCIAL SUPPLIER 
 05-12-2022,Adults,Passion Tree Care Services Ltd,Home Care - Private Contractors Payment,551.04,0.00,COMMERCIAL SUPPLIER 
 05-12-2022,Adults,Passion Tree Care Services Ltd,Home Care - Private Contractors Payment,551.04,0.00,COMMERCIAL SUPPLIER 
 05-12-2022,Adults,Passion Tree Care Services Ltd,Home Care - Private Contractors Payment,551.04,0.00,COMMERCIAL SUPPLIER 
 05-12-2022,Adults,Passion Tree Care Services Ltd,Home Care - Private Contractors Payment,551.04,0.00,COMMERCIAL SUPPLIER 
 06-12-2022,Adults,Hospiva Care & Associates Agency Ltd_a,Home Care - Private Contractors Payment,551.04,0.00,COMMERCIAL SUPPLIER 
 06-12-2022,Adults,Home Sweet Home Care Ltd,Home Care - Private Contractors Payment,551.04,0.00,COMMERCIAL SUPPLIER 
 06-12-2022,Adults,Home Sweet Home Care Ltd,Home Care - Private Contractors Payment,551.04,0.00,COMMERCIAL SUPPLIER 
 06-12-2022,Adults,Home Sweet Home Care Ltd,Home Care - Private Contractors Payment,551.04,0.00,COMMERCIAL SUPPLIER 
 06-12-2022,Adults,Home Sweet Home Care Ltd,Home Care - Private Contractors Payment,551.04,0.00,COMMERCIAL SUPPLIER 
 06-12-2022,Adults,Home Sweet Home Care Ltd,Home Care - Private Contractors Payment,551.04,0.00,COMMERCIAL SUPPLIER 
 06-12-2022,Adults,Home Sweet Home Care Ltd,Home Care - Private Contractors Payment,551.04,0.00,COMMERCIAL SUPPLIER 
 06-12-2022,Adults,London Homecare Ltd,Home Care - Private Contractors Payment,551.04,0.00,COMMERCIAL SUPPLIER 
 08-12-2022,Adults,Home Support Services (Havering & Essex) Ltd,Home Care - Private Contractors Payment,551.04,0.00,COMMERCIAL SUPPLIER 
 08-12-2022,Adults,Home Support Services (Havering & Essex) Ltd,Home Care - Private Contractors Payment,551.04,0.00,COMMERCIAL SUPPLIER 
 08-12-2022,Adults,Home Support Services (Havering & Essex) Ltd,Home Care - Private Contractors Payment,551.04,0.00,COMMERCIAL SUPPLIER 
 08-12-2022,Adults,Home Support Services (Havering & Essex) Ltd,Home Care - Private Contractors Payment,551.04,0.00,COMMERCIAL SUPPLIER 
 08-12-2022,Adults,Home Support Services (Havering & Essex) Ltd,Home Care - Private Contractors Payment,551.04,0.00,COMMERCIAL SUPPLIER 
 08-12-2022,Adults,Home Support Services (Havering & Essex) Ltd,Home Care - Private Contractors Payment,551.04,0.00,COMMERCIAL SUPPLIER 
 08-12-2022,Adults,Home Support Services (Havering & Essex) Ltd,Home Care - Private Contractors Payment,551.04,0.00,COMMERCIAL SUPPLIER 
 08-12-2022,Adults,Inna Care Ltd,Home Care - Private Contractors Payment,551.04,0.00,COMMERCIAL SUPPLIER 
 08-12-2022,Adults,Inna Care Ltd,Home Care - Private Contractors Payment,551.04,0.00,COMMERCIAL SUPPLIER 
 08-12-2022,Adults,Inna Care Ltd,Home Care - Private Contractors Payment,551.04,0.00,COMMERCIAL SUPPLIER 
 08-12-2022,Adults,Inna Care Ltd,Home Care - Private Contractors Payment,551.04,0.00,COMMERCIAL SUPPLIER 
 08-12-2022,Adults,Inna Care Ltd,Home Care - Private Contractors Payment,551.04,0.00,COMMERCIAL SUPPLIER 
 08-12-2022,Adults,Inna Care Ltd,Home Care - Private Contractors Payment,551.04,0.00,COMMERCIAL SUPPLIER 
 09-12-2022,Adults,Lodge Group Care UK Ltd,Home Care - Private Contractors Payment,551.04,0.00,COMMERCIAL SUPPLIER 
 09-12-2022,Adults,Lodge Group Care UK Ltd,Home Care - Private Contractors Payment,551.04,0.00,COMMERCIAL SUPPLIER 
 09-12-2022,Adults,Lodge Group Care UK Ltd,Home Care - Private Contractors Payment,551.04,0.00,COMMERCIAL SUPPLIER 
 09-12-2022,Adults,Lodge Group Care UK Ltd,Home Care - Private Contractors Payment,551.04,0.00,COMMERCIAL SUPPLIER 
 09-12-2022,Adults,Lodge Group Care UK Ltd,Home Care - Private Contractors Payment,551.04,0.00,COMMERCIAL SUPPLIER 
 09-12-2022,Adults,Lodge Group Care UK Ltd,Home Care - Private Contractors Payment,551.04,0.00,COMMERCIAL SUPPLIER 
 09-12-2022,Adults,Cera Care Operations Ltd,Home Care - Private Contractors Payment,551.04,0.00,COMMERCIAL SUPPLIER 
 09-12-2022,Adults,Cera Care Operations Ltd,Home Care - Private Contractors Payment,551.04,0.00,COMMERCIAL SUPPLIER 
 09-12-2022,Adults,Cera Care Operations Ltd,Home Care - Private Contractors Payment,551.04,0.00,COMMERCIAL SUPPLIER 
 09-12-2022,Adults,Morepower Ltd t/a Aqs Homecare,Home Care - Private Contractors Payment,551.04,0.00,COMMERCIAL SUPPLIER 
 12-12-2022,Adults,Prior Care Ltd_a,Home Care - Private Contractors Payment,551.04,0.00,COMMERCIAL SUPPLIER 
 12-12-2022,Adults,Crystalize Care Services,Home Care - Private Contractors Payment,551.04,0.00,COMMERCIAL SUPPLIER 
 09-12-2022,Adults,Cera Care Operations Ltd,Home Care - Private Contractors Payment,551.37,0.00,COMMERCIAL SUPPLIER 
 09-12-2022,Adults,Morepower Ltd t/a Aqs Homecare,Home Care - Private Contractors Payment,551.37,0.00,COMMERCIAL SUPPLIER 
 09-12-2022,Adults,Lodge Group Care UK Ltd,Home Care - Private Contractors Payment,551.70,0.00,COMMERCIAL SUPPLIER 
 12-12-2022,Adults,Prior Care Ltd_a,Home Care - Private Contractors Payment,551.70,0.00,COMMERCIAL SUPPLIER 
 09-12-2022,Adults,Cera Care Operations Ltd,Home Care - Private Contractors Payment,552.02,0.00,COMMERCIAL SUPPLIER 
 09-12-2022,Adults,Cera Care Operations Ltd,Home Care - Private Contractors Payment,552.02,0.00,COMMERCIAL SUPPLIER 
 06-12-2022,Adults,Home Sweet Home Care Ltd,Home Care - Private Contractors Payment,552.68,0.00,COMMERCIAL SUPPLIER 
 06-12-2022,Adults,Home Sweet Home Care Ltd,Home Care - Private Contractors Payment,553.01,0.00,COMMERCIAL SUPPLIER 
 08-12-2022,Adults,Home Support Services (Havering & Essex) Ltd,Home Care - Private Contractors Payment,553.01,0.00,COMMERCIAL SUPPLIER 
 12-12-2022,Adults,Prior Care Ltd_a,Home Care - Private Contractors Payment,553.01,0.00,COMMERCIAL SUPPLIER 
 06-12-2022,Adults,Home Sweet Home Care Ltd,Home Care - Private Contractors Payment,553.34,0.00,COMMERCIAL SUPPLIER 
 09-12-2022,Adults,Cera Care Operations Ltd,Home Care - Private Contractors Payment,553.34,0.00,COMMERCIAL SUPPLIER 
 08-12-2022,Adults,Home Support Services (Havering & Essex) Ltd,Home Care - Private Contractors Payment,553.66,0.00,COMMERCIAL SUPPLIER 
 09-12-2022,Adults,Cera Care Operations Ltd,Home Care - Private Contractors Payment,553.66,0.00,COMMERCIAL SUPPLIER 
 09-12-2022,Adults,Lodge Group Care UK Ltd,Home Care - Private Contractors Payment,554.32,0.00,COMMERCIAL SUPPLIER 
 06-12-2022,Adults,Hospiva Care & Associates Agency Ltd_a,Home Care - Private Contractors Payment,554.65,0.00,COMMERCIAL SUPPLIER 
 07-12-2022,Adults,Anytime Care 2020_a,Home Care - Private Contractors Payment,554.98,0.00,COMMERCIAL SUPPLIER 
 07-12-2022,Adults,Quality Healthcare Solutions Ltd t/a Kare Plus Romford,Home Care - Private Contractors Payment,555.30,0.00,COMMERCIAL SUPPLIER 
 08-12-2022,Adults,Home Support Services (Havering & Essex) Ltd,Home Care - Private Contractors Payment,555.30,0.00,COMMERCIAL SUPPLIER 
 06-12-2022,Adults,Home Sweet Home Care Ltd,Home Care - Private Contractors Payment,555.63,0.00,COMMERCIAL SUPPLIER 
 06-12-2022,Adults,Home Sweet Home Care Ltd,Home Care - Private Contractors Payment,555.96,0.00,COMMERCIAL SUPPLIER 
 08-12-2022,Adults,Home Support Services (Havering & Essex) Ltd,Home Care - Private Contractors Payment,556.29,0.00,COMMERCIAL SUPPLIER 
 05-12-2022,Adults,Prestige Care & Support Ltd,Home Care - Private Contractors Payment,556.94,0.00,COMMERCIAL SUPPLIER 
 08-12-2022,Adults,Home Support Services (Havering & Essex) Ltd,Home Care - Private Contractors Payment,556.94,0.00,COMMERCIAL SUPPLIER 
 09-12-2022,Adults,Morepower Ltd t/a Aqs Homecare,Home Care - Private Contractors Payment,556.94,0.00,COMMERCIAL SUPPLIER 
 09-12-2022,Adults,Ranc Care Homes Ltd - Romford Care Centre,Respite Care - Private Contractors Payment,557.14,0.00,COMMERCIAL SUPPLIER 
 04-12-2022,Adults,Homestead Care Service,Home Care - Private Contractors Payment,557.27,0.00,COMMERCIAL SUPPLIER 
 06-12-2022,Adults,Home Sweet Home Care Ltd,Home Care - Private Contractors Payment,557.27,0.00,COMMERCIAL SUPPLIER 
 08-12-2022,Adults,Home Support Services (Havering & Essex) Ltd,Home Care - Private Contractors Payment,557.60,0.00,COMMERCIAL SUPPLIER 
 09-12-2022,Adults,Morepower Ltd t/a Aqs Homecare,Home Care - Private Contractors Payment,558.26,0.00,COMMERCIAL SUPPLIER 
 06-12-2022,Adults,Home Sweet Home Care Ltd,Home Care - Private Contractors Payment,558.58,0.00,COMMERCIAL SUPPLIER 
 07-12-2022,Adults,Quality Healthcare Solutions Ltd t/a Kare Plus Romford,Home Care - Private Contractors Payment,558.58,0.00,COMMERCIAL SUPPLIER 
 08-12-2022,Adults,Home Support Services (Havering & Essex) Ltd,Home Care - Private Contractors Payment,558.91,0.00,COMMERCIAL SUPPLIER 
 12-12-2022,Adults,Prior Care Ltd_a,Home Care - Private Contractors Payment,558.91,0.00,COMMERCIAL SUPPLIER 
 08-12-2022,Adults,Home Support Services (Havering & Essex) Ltd,Home Care - Private Contractors Payment,559.57,0.00,COMMERCIAL SUPPLIER 
 09-12-2022,Adults,Morepower Ltd t/a Aqs Homecare,Home Care - Private Contractors Payment,559.90,0.00,COMMERCIAL SUPPLIER 
 08-12-2022,Adults,Jaktol Day Centers,Daycare - Private Contractors Payment,559.92,0.00,COMMERCIAL SUPPLIER 
 08-12-2022,Adults,Jaktol Day Centers,Daycare - Private Contractors Payment,559.92,0.00,COMMERCIAL SUPPLIER 
 06-12-2022,Adults,Home Sweet Home Care Ltd,Home Care - Private Contractors Payment,560.88,0.00,COMMERCIAL SUPPLIER 
 09-12-2022,Adults,Morepower Ltd t/a Aqs Homecare,Home Care - Private Contractors Payment,560.88,0.00,COMMERCIAL SUPPLIER 
 08-12-2022,Adults,Home Support Services (Havering & Essex) Ltd,Home Care - Private Contractors Payment,561.21,0.00,COMMERCIAL SUPPLIER 
 06-12-2022,Adults,Home Sweet Home Care Ltd,Home Care - Private Contractors Payment,562.19,0.00,COMMERCIAL SUPPLIER 
 04-12-2022,Adults,Homestead Care Service,Home Care - Private Contractors Payment,562.85,0.00,COMMERCIAL SUPPLIER 
 09-12-2022,Adults,Cera Care Operations Ltd,Home Care - Private Contractors Payment,563.18,0.00,COMMERCIAL SUPPLIER 
 09-12-2022,Adults,Morepower Ltd t/a Aqs Homecare,Home Care - Private Contractors Payment,563.18,0.00,COMMERCIAL SUPPLIER 
 12-12-2022,Adults,John Stanleys Care Agency Ltd,Home Care - Private Contractors Payment,563.50,0.00,COMMERCIAL SUPPLIER 
 12-12-2022,Adults,Prior Care Ltd_a,Home Care - Private Contractors Payment,564.82,0.00,COMMERCIAL SUPPLIER 
 04-12-2022,Adults,Homestead Care Service,Home Care - Private Contractors Payment,566.13,0.00,COMMERCIAL SUPPLIER 
 09-12-2022,Adults,Morepower Ltd t/a Aqs Homecare,Home Care - Private Contractors Payment,566.13,0.00,COMMERCIAL SUPPLIER 
 07-12-2022,Adults,Anytime Care 2020_a,Home Care - Private Contractors Payment,567.44,0.00,COMMERCIAL SUPPLIER 
 07-12-2022,Adults,Matrix SCM Ltd,Agency Staff,568.12,0.00,COMMERCIAL SUPPLIER 
 09-12-2022,Adults,Raynet Recruitment Agency Ltd,Supported Other Accommodation - Private Contractors Payment,568.56,0.00,COMMERCIAL SUPPLIER 
 06-12-2022,Adults,Home Sweet Home Care Ltd,Home Care - Private Contractors Payment,570.06,0.00,COMMERCIAL SUPPLIER 
 09-12-2022,Adults,Cera Care Operations Ltd,Home Care - Private Contractors Payment,570.72,0.00,COMMERCIAL SUPPLIER 
 09-12-2022,Adults,Ash Grove Residential Care Home,Respite Care - Private Contractors Payment,571.43,0.00,COMMERCIAL SUPPLIER 
 08-12-2022,Adults,Home Support Services (Havering & Essex) Ltd,Home Care - Private Contractors Payment,572.36,0.00,COMMERCIAL SUPPLIER 
 09-12-2022,Adults,Cera Care Operations Ltd,Home Care - Private Contractors Payment,572.36,0.00,COMMERCIAL SUPPLIER 
 08-12-2022,Adults,Home Support Services (Havering & Essex) Ltd,Home Care - Private Contractors Payment,573.67,0.00,COMMERCIAL SUPPLIER 
 21-12-2022,Adults,Matrix SCM Ltd,Agency Staff,574.26,0.00,COMMERCIAL SUPPLIER 
 29-12-2022,Adults,Matrix SCM Ltd,Agency Staff,574.26,0.00,COMMERCIAL SUPPLIER 
 06-12-2022,Adults,Hospiva Care & Associates Agency Ltd_a,Home Care - Private Contractors Payment,574.33,0.00,COMMERCIAL SUPPLIER 
 04-12-2022,Adults,Homestead Care Service,Home Care - Private Contractors Payment,574.66,0.00,COMMERCIAL SUPPLIER 
 06-12-2022,Adults,Hospiva Care & Associates Agency Ltd_a,Home Care - Private Contractors Payment,574.66,0.00,COMMERCIAL SUPPLIER 
 06-12-2022,Adults,Home Sweet Home Care Ltd,Home Care - Private Contractors Payment,574.98,0.00,COMMERCIAL SUPPLIER 
 08-12-2022,Adults,Home Support Services (Havering & Essex) Ltd,Home Care - Private Contractors Payment,575.31,0.00,COMMERCIAL SUPPLIER 
 13-12-2022,Adults,Funky Willows Ltd,Daycare - Private Contractors Payment,576.00,0.00,COMMERCIAL SUPPLIER 
 12-12-2022,Adults,Prior Care Ltd_a,Home Care - Private Contractors Payment,580.56,0.00,COMMERCIAL SUPPLIER 
 06-12-2022,Adults,Home Sweet Home Care Ltd,Home Care - Private Contractors Payment,580.89,0.00,COMMERCIAL SUPPLIER 
 09-12-2022,Adults,Cera Care Operations Ltd,Home Care - Private Contractors Payment,582.20,0.00,COMMERCIAL SUPPLIER 
 06-12-2022,Adults,Care-Away Ltd T/A Care Support,Home Care - Private Contractors Payment,582.40,0.00,COMMERCIAL SUPPLIER 
 07-12-2022,Adults,Care-Away Ltd T/A Care Support,Home Care - Private Contractors Payment,582.40,0.00,COMMERCIAL SUPPLIER 
 07-12-2022,Adults,Care-Away Ltd T/A Care Support,Home Care - Private Contractors Payment,582.40,0.00,COMMERCIAL SUPPLIER 
 04-12-2022,Adults,Homestead Care Service,Home Care - Private Contractors Payment,583.84,0.00,COMMERCIAL SUPPLIER 
 08-12-2022,Adults,Home Support Services (Havering & Essex) Ltd,Home Care - Private Contractors Payment,584.82,0.00,COMMERCIAL SUPPLIER 
 03-12-2022,Adults,Personal Information � Redacted,Home Care - Private Contractors Payment,585.48,0.00,INDIVIDUALS 
 06-12-2022,Adults,Home Sweet Home Care Ltd,Home Care - Private Contractors Payment,586.79,0.00,COMMERCIAL SUPPLIER 
 04-12-2022,Adults,Homestead Care Service,Home Care - Private Contractors Payment,587.45,0.00,COMMERCIAL SUPPLIER 
 08-12-2022,Adults,Home Support Services (Havering & Essex) Ltd,Home Care - Private Contractors Payment,588.10,0.00,COMMERCIAL SUPPLIER 
 04-12-2022,Adults,Homestead Care Service,Home Care - Private Contractors Payment,588.76,0.00,COMMERCIAL SUPPLIER 
 06-12-2022,Adults,London Homecare Ltd,Home Care - Private Contractors Payment,590.40,0.00,COMMERCIAL SUPPLIER 
 09-12-2022,Adults,Lodge Group Care UK Ltd,Home Care - Private Contractors Payment,591.06,0.00,COMMERCIAL SUPPLIER 
 09-12-2022,Adults,Morepower Ltd t/a Aqs Homecare,Home Care - Private Contractors Payment,591.71,0.00,COMMERCIAL SUPPLIER 
 09-12-2022,Adults,One Tree Estates Ltd t/a Ashbrook Nursing Home,Nursing Homes - Private Contractors Payment,594.00,0.00,COMMERCIAL SUPPLIER 
 12-12-2022,Adults,John Stanleys Care Agency Ltd,Home Care - Private Contractors Payment,594.01,0.00,COMMERCIAL SUPPLIER 
 09-12-2022,Adults,Ebury Court_a,Residential Placements - Private Contractors Payment,595.71,0.00,COMMERCIAL SUPPLIER 
 09-12-2022,Adults,Morepower Ltd t/a Aqs Homecare,Home Care - Private Contractors Payment,596.63,0.00,COMMERCIAL SUPPLIER 
 09-12-2022,Adults,Emerson Court_a,Residential Care Income,596.72,0.00,COMMERCIAL SUPPLIER 
 09-12-2022,Adults,Emerson Court_a,Residential Care Income,596.72,0.00,COMMERCIAL SUPPLIER 
 12-12-2022,Adults,John Stanleys Care Agency Ltd,Home Care - Private Contractors Payment,596.96,0.00,COMMERCIAL SUPPLIER 
 03-12-2022,Adults,Personal Information � Redacted,Home Care - Private Contractors Payment,597.21,0.00,INDIVIDUALS 
 09-12-2022,Adults,Lodge Group Care UK Ltd,Home Care - Private Contractors Payment,597.94,0.00,COMMERCIAL SUPPLIER 
 06-12-2022,Adults,Home Sweet Home Care Ltd,Home Care - Private Contractors Payment,599.58,0.00,COMMERCIAL SUPPLIER 
 02-12-2022,Adults,Romford Private Hire Ltd,Client Transport,600.00,0.00,COMMERCIAL SUPPLIER 
 05-12-2022,Adults,Prestige Care & Support Ltd,Home Care - Private Contractors Payment,600.24,0.00,COMMERCIAL SUPPLIER 
 06-12-2022,Adults,Home Sweet Home Care Ltd,Home Care - Private Contractors Payment,600.24,0.00,COMMERCIAL SUPPLIER 
 06-12-2022,Adults,Home Sweet Home Care Ltd,Home Care - Private Contractors Payment,600.24,0.00,COMMERCIAL SUPPLIER 
 07-12-2022,Adults,Quality Healthcare Solutions Ltd t/a Kare Plus Romford,Home Care - Private Contractors Payment,600.24,0.00,COMMERCIAL SUPPLIER 
 09-12-2022,Adults,Lodge Group Care UK Ltd,Home Care - Private Contractors Payment,600.57,0.00,COMMERCIAL SUPPLIER 
 08-12-2022,Adults,Home Support Services (Havering & Essex) Ltd,Home Care - Private Contractors Payment,601.55,0.00,COMMERCIAL SUPPLIER 
 08-12-2022,Adults,Home Support Services (Havering & Essex) Ltd,Home Care - Private Contractors Payment,601.88,0.00,COMMERCIAL SUPPLIER 
 07-12-2022,Adults,Anytime Care 2020_a,Home Care - Private Contractors Payment,602.21,0.00,COMMERCIAL SUPPLIER 
 12-12-2022,Adults,Prior Care Ltd_a,Home Care - Private Contractors Payment,604.50,0.00,COMMERCIAL SUPPLIER 
 05-12-2022,Adults,Prestige Care & Support Ltd,Home Care - Private Contractors Payment,605.49,0.00,COMMERCIAL SUPPLIER 
 05-12-2022,Adults,Prestige Care & Support Ltd,Home Care - Private Contractors Payment,606.14,0.00,COMMERCIAL SUPPLIER 
 09-12-2022,Adults,Lodge Group Care UK Ltd,Home Care - Private Contractors Payment,608.11,0.00,COMMERCIAL SUPPLIER 
 21-12-2022,Adults,Matrix SCM Ltd,Agency Staff,608.40,0.00,COMMERCIAL SUPPLIER 
 21-12-2022,Adults,Matrix SCM Ltd,Agency Staff,608.41,0.00,COMMERCIAL SUPPLIER 
 09-12-2022,Adults,Lodge Group Care UK Ltd,Home Care - Private Contractors Payment,609.10,0.00,COMMERCIAL SUPPLIER 
 04-12-2022,Adults,Homestead Care Service,Home Care - Private Contractors Payment,609.75,0.00,COMMERCIAL SUPPLIER 
 08-12-2022,Adults,Home Support Services (Havering & Essex) Ltd,Home Care - Private Contractors Payment,610.08,0.00,COMMERCIAL SUPPLIER 
 07-12-2022,Adults,Matrix SCM Ltd,Agency Staff,610.91,0.00,COMMERCIAL SUPPLIER 
 14-12-2022,Adults,Matrix SCM Ltd,Agency Staff,610.92,0.00,COMMERCIAL SUPPLIER 
 21-12-2022,Adults,Matrix SCM Ltd,Agency Staff,610.92,0.00,COMMERCIAL SUPPLIER 
 29-12-2022,Adults,Matrix SCM Ltd,Agency Staff,610.92,0.00,COMMERCIAL SUPPLIER 
 04-12-2022,Adults,Homestead Care Service,Home Care - Private Contractors Payment,611.06,0.00,COMMERCIAL SUPPLIER 
 07-12-2022,Adults,Matrix SCM Ltd,Agency Staff,611.64,0.00,COMMERCIAL SUPPLIER 
 14-12-2022,Adults,Matrix SCM Ltd,Agency Staff,611.64,0.00,COMMERCIAL SUPPLIER 
 12-12-2022,Adults,John Stanleys Care Agency Ltd,Home Care - Private Contractors Payment,615.33,0.00,COMMERCIAL SUPPLIER 
 07-12-2022,Adults,Quality Healthcare Solutions Ltd t/a Kare Plus Romford,Home Care - Private Contractors Payment,616.31,0.00,COMMERCIAL SUPPLIER 
 09-12-2022,Adults,Morepower Ltd t/a Aqs Homecare,Home Care - Private Contractors Payment,616.64,0.00,COMMERCIAL SUPPLIER 
 05-12-2022,Adults,Prestige Care & Support Ltd,Home Care - Private Contractors Payment,619.92,0.00,COMMERCIAL SUPPLIER 
 12-12-2022,Adults,Crystalize Care Services,Home Care - Private Contractors Payment,619.92,0.00,COMMERCIAL SUPPLIER 
 12-12-2022,Adults,Crystalize Care Services,Home Care - Private Contractors Payment,619.92,0.00,COMMERCIAL SUPPLIER 
 07-12-2022,Adults,Action First Assessments Ltd,Private Contractors Payment - Other,620.00,0.00,COMMERCIAL SUPPLIER 
 09-12-2022,Adults,Barleycroft Care Home Ltd,Residential Placements - Private Contractors Payment,620.00,0.00,COMMERCIAL SUPPLIER 
 07-12-2022,Adults,Matrix SCM Ltd,Agency Staff,622.08,0.00,COMMERCIAL SUPPLIER 
 14-12-2022,Adults,Matrix SCM Ltd,Agency Staff,622.08,0.00,COMMERCIAL SUPPLIER 
 06-12-2022,Adults,Care-Away Ltd T/A Care Support,Home Care - Private Contractors Payment,624.00,0.00,COMMERCIAL SUPPLIER 
 03-12-2022,Adults,Personal Information � Redacted,Home Care - Private Contractors Payment,624.84,0.00,INDIVIDUALS 
 06-12-2022,Adults,Home Sweet Home Care Ltd,Home Care - Private Contractors Payment,624.84,0.00,COMMERCIAL SUPPLIER 
 21-12-2022,Adults,Matrix SCM Ltd,Agency Staff,626.07,0.00,COMMERCIAL SUPPLIER 
 06-12-2022,Adults,Home Sweet Home Care Ltd,Home Care - Private Contractors Payment,627.14,0.00,COMMERCIAL SUPPLIER 
 09-12-2022,Adults,MNS Care Plc_a,Nursing Care Income,627.80,0.00,COMMERCIAL SUPPLIER 
 04-12-2022,Adults,Homestead Care Service,Home Care - Private Contractors Payment,628.78,0.00,COMMERCIAL SUPPLIER 
 14-12-2022,Adults,Access UK Ltd,Private Contractors Payment - Other,629.00,0.00,COMMERCIAL SUPPLIER 
 06-12-2022,Adults,Home Sweet Home Care Ltd,Home Care - Private Contractors Payment,629.76,0.00,COMMERCIAL SUPPLIER 
 09-12-2022,Adults,Cygnet Health Care,Residential Placements - Private Contractors Payment,630.00,0.00,COMMERCIAL SUPPLIER 
 08-12-2022,Adults,Home Support Services (Havering & Essex) Ltd,Home Care - Private Contractors Payment,631.07,0.00,COMMERCIAL SUPPLIER 
 09-12-2022,Adults,Morepower Ltd t/a Aqs Homecare,Home Care - Private Contractors Payment,631.40,0.00,COMMERCIAL SUPPLIER 
 09-12-2022,Adults,Oaks Residential Home,Residential Care Income,631.76,0.00,COMMERCIAL SUPPLIER 
 07-12-2022,Adults,Quality Healthcare Solutions Ltd t/a Kare Plus Romford,Home Care - Private Contractors Payment,632.06,0.00,COMMERCIAL SUPPLIER 
 14-12-2022,Adults,Matrix SCM Ltd,Agency Staff,632.90,0.00,COMMERCIAL SUPPLIER 
 05-12-2022,Adults,Prestige Care & Support Ltd,Home Care - Private Contractors Payment,634.02,0.00,COMMERCIAL SUPPLIER 
 09-12-2022,Adults,Lodge Group Care UK Ltd,Home Care - Private Contractors Payment,636.98,0.00,COMMERCIAL SUPPLIER 
 05-12-2022,Adults,Prestige Care & Support Ltd,Home Care - Private Contractors Payment,639.60,0.00,COMMERCIAL SUPPLIER 
 06-12-2022,Adults,Home Sweet Home Care Ltd,Home Care - Private Contractors Payment,639.93,0.00,COMMERCIAL SUPPLIER 
 07-12-2022,Adults,Matrix SCM Ltd,Agency Staff,640.22,0.00,COMMERCIAL SUPPLIER 
 21-12-2022,Adults,Matrix SCM Ltd,Agency Staff,641.23,0.00,COMMERCIAL SUPPLIER 
 09-12-2022,Adults,Affinia Healthcare Ltd_a,Supported Other Accommodation - Private Contractors Payment,642.00,0.00,COMMERCIAL SUPPLIER 
 08-12-2022,Adults,Home Support Services (Havering & Essex) Ltd,Home Care - Private Contractors Payment,643.54,0.00,COMMERCIAL SUPPLIER 
 09-12-2022,Adults,Morepower Ltd t/a Aqs Homecare,Home Care - Private Contractors Payment,648.78,0.00,COMMERCIAL SUPPLIER 
 06-12-2022,Adults,Home Sweet Home Care Ltd,Home Care - Private Contractors Payment,649.44,0.00,COMMERCIAL SUPPLIER 
 09-12-2022,Adults,Cera Care Operations Ltd,Home Care - Private Contractors Payment,654.36,0.00,COMMERCIAL SUPPLIER 
 14-12-2022,Adults,Matrix SCM Ltd,Agency Staff,657.74,0.00,COMMERCIAL SUPPLIER 
 08-12-2022,Adults,Home Support Services (Havering & Essex) Ltd,Home Care - Private Contractors Payment,659.28,0.00,COMMERCIAL SUPPLIER 
 14-12-2022,Adults,Matrix SCM Ltd,Agency Staff,659.43,0.00,COMMERCIAL SUPPLIER 
 06-12-2022,Adults,Home Sweet Home Care Ltd,Home Care - Private Contractors Payment,659.94,0.00,COMMERCIAL SUPPLIER 
 21-12-2022,Adults,Pristine Care London Ltd ,Daycare - Private Contractors Payment,660.00,0.00,COMMERCIAL SUPPLIER 
 09-12-2022,Adults,Lodge Group Care UK Ltd,Home Care - Private Contractors Payment,662.56,0.00,COMMERCIAL SUPPLIER 
 09-12-2022,Adults,Lodge Group Care UK Ltd,Home Care - Private Contractors Payment,662.89,0.00,COMMERCIAL SUPPLIER 
 04-12-2022,Adults,Homestead Care Service,Home Care - Private Contractors Payment,665.18,0.00,COMMERCIAL SUPPLIER 
 09-12-2022,Adults,Lodge Group Care UK Ltd,Home Care - Private Contractors Payment,666.82,0.00,COMMERCIAL SUPPLIER 
 14-12-2022,Adults,Matrix SCM Ltd,Agency Staff,668.47,0.00,COMMERCIAL SUPPLIER 
 07-12-2022,Adults,Anytime Care 2020_a,Home Care - Private Contractors Payment,669.12,0.00,COMMERCIAL SUPPLIER 
 08-12-2022,Adults,Home Support Services (Havering & Essex) Ltd,Home Care - Private Contractors Payment,669.12,0.00,COMMERCIAL SUPPLIER 
 08-12-2022,Adults,Home Support Services (Havering & Essex) Ltd,Home Care - Private Contractors Payment,669.12,0.00,COMMERCIAL SUPPLIER 
 08-12-2022,Adults,Inna Care Ltd,Home Care - Private Contractors Payment,669.12,0.00,COMMERCIAL SUPPLIER 
 12-12-2022,Adults,Crystalize Care Services,Home Care - Private Contractors Payment,669.12,0.00,COMMERCIAL SUPPLIER 
 04-12-2022,Adults,Homestead Care Service,Home Care - Private Contractors Payment,669.78,0.00,COMMERCIAL SUPPLIER 
 12-12-2022,Adults,Prior Care Ltd_a,Home Care - Private Contractors Payment,670.10,0.00,COMMERCIAL SUPPLIER 
 06-12-2022,Adults,Home Sweet Home Care Ltd,Home Care - Private Contractors Payment,674.37,0.00,COMMERCIAL SUPPLIER 
 21-12-2022,Adults,Potton Services Ltd,Home Care - Private Contractors Payment,676.50,0.00,COMMERCIAL SUPPLIER 
 09-12-2022,Adults,Beechcourt Care Centre - Bondcare,Nursing Homes - Private Contractors Payment,678.00,0.00,COMMERCIAL SUPPLIER 
 08-12-2022,Adults,Home Support Services (Havering & Essex) Ltd,Home Care - Private Contractors Payment,678.30,0.00,COMMERCIAL SUPPLIER 
 09-12-2022,Adults,Affinia Healthcare Ltd_a,Supported Other Accommodation - Private Contractors Payment,678.96,0.00,COMMERCIAL SUPPLIER 
 20-12-2022,Adults,Rosemont Care Limited,Home Care - Private Contractors Payment,678.96,0.00,COMMERCIAL SUPPLIER 
 21-12-2022,Adults,Matrix SCM Ltd,Agency Staff,682.08,0.00,COMMERCIAL SUPPLIER 
 07-12-2022,Adults,Care-Away Ltd T/A Care Support,Home Care - Private Contractors Payment,682.24,0.00,COMMERCIAL SUPPLIER 
 07-12-2022,Adults,Quality Healthcare Solutions Ltd t/a Kare Plus Romford,Home Care - Private Contractors Payment,682.57,0.00,COMMERCIAL SUPPLIER 
 09-12-2022,Adults,Personal Information � Redacted,Direct Payments Income,683.04,0.00,INDIVIDUALS 
 09-12-2022,Adults,Personal Information � Redacted,Direct Payments Income,683.04,0.00,INDIVIDUALS 
 05-12-2022,Adults,Tapestry_a.,Daycare - Private Contractors Payment,684.00,0.00,COMMERCIAL SUPPLIER 
 05-12-2022,Adults,Tapestry_a.,Daycare - Private Contractors Payment,684.00,0.00,COMMERCIAL SUPPLIER 
 05-12-2022,Adults,Tapestry_a.,Daycare - Private Contractors Payment,684.00,0.00,COMMERCIAL SUPPLIER 
 05-12-2022,Adults,Tapestry_a.,Daycare - Private Contractors Payment,684.00,0.00,COMMERCIAL SUPPLIER 
 05-12-2022,Adults,Tapestry_a.,Daycare - Private Contractors Payment,684.00,0.00,COMMERCIAL SUPPLIER 
 05-12-2022,Adults,Tapestry_a.,Daycare - Private Contractors Payment,684.00,0.00,COMMERCIAL SUPPLIER 
 05-12-2022,Adults,Tapestry_a.,Daycare - Private Contractors Payment,684.00,0.00,COMMERCIAL SUPPLIER 
 04-12-2022,Adults,Homestead Care Service,Home Care - Private Contractors Payment,684.86,0.00,COMMERCIAL SUPPLIER 
 09-12-2022,Adults,Lodge Group Care UK Ltd,Home Care - Private Contractors Payment,685.85,0.00,COMMERCIAL SUPPLIER 
 09-12-2022,Adults,Gemini Assisted Living Ltd,Supported Other Accommodation - Private Contractors Payment,686.40,0.00,COMMERCIAL SUPPLIER 
 29-12-2022,Adults,Matrix SCM Ltd,Agency Staff,686.72,0.00,COMMERCIAL SUPPLIER 
 06-12-2022,Adults,Home Sweet Home Care Ltd,Home Care - Private Contractors Payment,687.49,0.00,COMMERCIAL SUPPLIER 
 13-12-2022,Adults,Mayflower Travel,Client Transport,688.00,0.00,COMMERCIAL SUPPLIER 
 03-12-2022,Adults,Personal Information � Redacted,Home Care - Private Contractors Payment,688.80,0.00,INDIVIDUALS 
 06-12-2022,Adults,London Homecare Ltd,Home Care - Private Contractors Payment,688.80,0.00,COMMERCIAL SUPPLIER 
 09-12-2022,Adults,Morepower Ltd t/a Aqs Homecare,Home Care - Private Contractors Payment,690.11,0.00,COMMERCIAL SUPPLIER 
 29-12-2022,Adults,Matrix SCM Ltd,Agency Staff,690.55,0.00,COMMERCIAL SUPPLIER 
 08-12-2022,Adults,Home Support Services (Havering & Essex) Ltd,Home Care - Private Contractors Payment,693.06,0.00,COMMERCIAL SUPPLIER 
 09-12-2022,Adults,Nightingale Residential Care Home Ltd,Respite Care - Private Contractors Payment,695.00,0.00,COMMERCIAL SUPPLIER 
 21-12-2022,Adults,Matrix SCM Ltd,Agency Staff,696.61,0.00,COMMERCIAL SUPPLIER 
 21-12-2022,Adults,Matrix SCM Ltd,Agency Staff,696.61,0.00,COMMERCIAL SUPPLIER 
 21-12-2022,Adults,Matrix SCM Ltd,Agency Staff,696.61,0.00,COMMERCIAL SUPPLIER 
 29-12-2022,Adults,Matrix SCM Ltd,Agency Staff,696.61,0.00,COMMERCIAL SUPPLIER 
 29-12-2022,Adults,Matrix SCM Ltd,Agency Staff,696.61,0.00,COMMERCIAL SUPPLIER 
 29-12-2022,Adults,Matrix SCM Ltd,Agency Staff,696.61,0.00,COMMERCIAL SUPPLIER 
 04-12-2022,Adults,Homestead Care Service,Home Care - Private Contractors Payment,698.31,0.00,COMMERCIAL SUPPLIER 
 06-12-2022,Adults,Care-Away Ltd T/A Care Support,Home Care - Private Contractors Payment,698.88,0.00,COMMERCIAL SUPPLIER 
 06-12-2022,Adults,Care-Away Ltd T/A Care Support,Home Care - Private Contractors Payment,698.88,0.00,COMMERCIAL SUPPLIER 
 07-12-2022,Adults,Care-Away Ltd T/A Care Support,Home Care - Private Contractors Payment,698.88,0.00,COMMERCIAL SUPPLIER 
 04-12-2022,Adults,Homestead Care Service,Home Care - Private Contractors Payment,698.97,0.00,COMMERCIAL SUPPLIER 
 08-12-2022,Adults,Home Support Services (Havering & Essex) Ltd,Home Care - Private Contractors Payment,698.97,0.00,COMMERCIAL SUPPLIER 
 15-12-2022,Adults,Inclusive Care Support Limited,Supported Other Accommodation - Private Contractors Payment,700.84,0.00,COMMERCIAL SUPPLIER 
 15-12-2022,Adults,Inclusive Care Support Limited,Supported Other Accommodation - Private Contractors Payment,700.84,0.00,COMMERCIAL SUPPLIER 
 15-12-2022,Adults,Inclusive Care Support Limited,Long Term Support - Community: Supported Living,700.84,0.00,COMMERCIAL SUPPLIER 
 15-12-2022,Adults,Inclusive Care Support Limited,Supported Other Accommodation - Private Contractors Payment,700.84,0.00,COMMERCIAL SUPPLIER 
 15-12-2022,Adults,Inclusive Care Support Limited,Supported Other Accommodation - Private Contractors Payment,700.84,0.00,COMMERCIAL SUPPLIER 
 05-12-2022,Adults,Prestige Care & Support Ltd,Home Care - Private Contractors Payment,704.54,0.00,COMMERCIAL SUPPLIER 
 06-12-2022,Adults,Home Sweet Home Care Ltd,Home Care - Private Contractors Payment,704.87,0.00,COMMERCIAL SUPPLIER 
 05-12-2022,Adults,Prestige Care & Support Ltd,Home Care - Private Contractors Payment,705.86,0.00,COMMERCIAL SUPPLIER 
 03-12-2022,Adults,Personal Information � Redacted,Home Care - Private Contractors Payment,708.48,0.00,INDIVIDUALS 
 05-12-2022,Adults,IJB Healthcare Ltd,Home Care - Private Contractors Payment,708.48,0.00,COMMERCIAL SUPPLIER 
 05-12-2022,Adults,Outreach Support Services Ltd,Home Care - Private Contractors Payment,708.48,0.00,COMMERCIAL SUPPLIER 
 09-12-2022,Adults,Lodge Group Care UK Ltd,Home Care - Private Contractors Payment,708.48,0.00,COMMERCIAL SUPPLIER 
 12-12-2022,Adults,Gims Care Solution Ltd_a,Home Care - Private Contractors Payment,708.48,0.00,NON COMMERCIAL SUPPLIER 
 08-12-2022,Adults,Home Support Services (Havering & Essex) Ltd,Home Care - Private Contractors Payment,709.14,0.00,COMMERCIAL SUPPLIER 
 21-12-2022,Adults,Matrix SCM Ltd,Agency Staff,710.27,0.00,COMMERCIAL SUPPLIER 
 29-12-2022,Adults,Matrix SCM Ltd,Agency Staff,710.27,0.00,COMMERCIAL SUPPLIER 
 04-12-2022,Adults,Westminster Homecare Ltd_a,Home Care - Private Contractors Payment,711.43,0.00,COMMERCIAL SUPPLIER 
 07-12-2022,Adults,Matrix SCM Ltd,Agency Staff,712.10,0.00,COMMERCIAL SUPPLIER 
 14-12-2022,Adults,Matrix SCM Ltd,Agency Staff,712.10,0.00,COMMERCIAL SUPPLIER 
 04-12-2022,Adults,Homestead Care Service,Home Care - Private Contractors Payment,712.42,0.00,COMMERCIAL SUPPLIER 
 09-12-2022,Adults,Lodge Group Care UK Ltd,Home Care - Private Contractors Payment,712.74,0.00,COMMERCIAL SUPPLIER 
 07-12-2022,Adults,Matrix SCM Ltd,Agency Staff,713.61,0.00,COMMERCIAL SUPPLIER 
 12-12-2022,Adults,John Stanleys Care Agency Ltd,Home Care - Private Contractors Payment,715.37,0.00,COMMERCIAL SUPPLIER 
 06-12-2022,Adults,Care-Away Ltd T/A Care Support,Home Care - Private Contractors Payment,715.52,0.00,COMMERCIAL SUPPLIER 
 06-12-2022,Adults,Care-Away Ltd T/A Care Support,Home Care - Private Contractors Payment,715.52,0.00,COMMERCIAL SUPPLIER 
 06-12-2022,Adults,Care-Away Ltd T/A Care Support,Home Care - Private Contractors Payment,715.52,0.00,COMMERCIAL SUPPLIER 
 06-12-2022,Adults,Care-Away Ltd T/A Care Support,Home Care - Private Contractors Payment,715.52,0.00,COMMERCIAL SUPPLIER 
 09-12-2022,Adults,Lodge Group Care UK Ltd,Home Care - Private Contractors Payment,724.88,0.00,COMMERCIAL SUPPLIER 
 08-12-2022,Adults,Home Support Services (Havering & Essex) Ltd,Home Care - Private Contractors Payment,725.86,0.00,COMMERCIAL SUPPLIER 
 12-12-2022,Adults,Prior Care Ltd_a,Home Care - Private Contractors Payment,726.19,0.00,COMMERCIAL SUPPLIER 
 08-12-2022,Adults,Home Support Services (Havering & Essex) Ltd,Home Care - Private Contractors Payment,728.16,0.00,COMMERCIAL SUPPLIER 
 08-12-2022,Adults,Home Support Services (Havering & Essex) Ltd,Home Care - Private Contractors Payment,728.16,0.00,COMMERCIAL SUPPLIER 
 09-12-2022,Adults,Lodge Group Care UK Ltd,Home Care - Private Contractors Payment,730.78,0.00,COMMERCIAL SUPPLIER 
 09-12-2022,Adults,Lodge Group Care UK Ltd,Home Care - Private Contractors Payment,731.11,0.00,COMMERCIAL SUPPLIER 
 06-12-2022,Adults,Home Sweet Home Care Ltd,Home Care - Private Contractors Payment,732.10,0.00,COMMERCIAL SUPPLIER 
 14-12-2022,Adults,Matrix SCM Ltd,Agency Staff,732.26,0.00,COMMERCIAL SUPPLIER 
 21-12-2022,Adults,Matrix SCM Ltd,Agency Staff,732.26,0.00,COMMERCIAL SUPPLIER 
 29-12-2022,Adults,Matrix SCM Ltd,Agency Staff,732.26,0.00,COMMERCIAL SUPPLIER 
 07-12-2022,Adults,Matrix SCM Ltd,Agency Staff,735.84,0.00,COMMERCIAL SUPPLIER 
 14-12-2022,Adults,Matrix SCM Ltd,Agency Staff,735.84,0.00,COMMERCIAL SUPPLIER 
 09-12-2022,Adults,Cera Care Operations Ltd,Home Care - Private Contractors Payment,738.66,0.00,COMMERCIAL SUPPLIER 
 21-12-2022,Adults,Matrix SCM Ltd,Agency Staff,739.90,0.00,COMMERCIAL SUPPLIER 
 07-12-2022,Adults,Matrix SCM Ltd,Agency Staff,741.75,0.00,COMMERCIAL SUPPLIER 
 14-12-2022,Adults,Matrix SCM Ltd,Agency Staff,741.75,0.00,COMMERCIAL SUPPLIER 
 05-12-2022,Adults,Prestige Care & Support Ltd,Home Care - Private Contractors Payment,744.56,0.00,COMMERCIAL SUPPLIER 
 09-12-2022,Adults,Ashgate House Ltd_a,Residential Placements - Private Contractors Payment,746.16,0.00,COMMERCIAL SUPPLIER 
 05-12-2022,Adults,Prestige Care & Support Ltd,Home Care - Private Contractors Payment,747.51,0.00,COMMERCIAL SUPPLIER 
 07-12-2022,Adults,Quality Healthcare Solutions Ltd t/a Kare Plus Romford,Home Care - Private Contractors Payment,750.79,0.00,COMMERCIAL SUPPLIER 
 07-12-2022,Adults,Matrix SCM Ltd,Agency Staff,752.03,0.00,COMMERCIAL SUPPLIER 
 14-12-2022,Adults,Matrix SCM Ltd,Agency Staff,752.03,0.00,COMMERCIAL SUPPLIER 
 08-12-2022,Adults,Home Support Services (Havering & Essex) Ltd,Home Care - Private Contractors Payment,752.10,0.00,COMMERCIAL SUPPLIER 
 07-12-2022,Adults,Matrix SCM Ltd,Agency Staff,752.85,0.00,COMMERCIAL SUPPLIER 
 07-12-2022,Adults,Matrix SCM Ltd,Agency Staff,752.85,0.00,COMMERCIAL SUPPLIER 
 04-12-2022,Adults,Homestead Care Service,Home Care - Private Contractors Payment,753.09,0.00,COMMERCIAL SUPPLIER 
 08-12-2022,Adults,Home Support Services (Havering & Essex) Ltd,Home Care - Private Contractors Payment,758.34,0.00,COMMERCIAL SUPPLIER 
 09-12-2022,Adults,Morepower Ltd t/a Aqs Homecare,Home Care - Private Contractors Payment,758.34,0.00,COMMERCIAL SUPPLIER 
 05-12-2022,Adults,Bluebird Care Havering,Home Care - Private Contractors Payment,762.60,0.00,COMMERCIAL SUPPLIER 
 19-12-2022,Adults,Bluebird Care Havering,Home Care - Private Contractors Payment,762.60,0.00,COMMERCIAL SUPPLIER 
 04-12-2022,Adults,Homestead Care Service,Home Care - Private Contractors Payment,763.91,0.00,COMMERCIAL SUPPLIER 
 07-12-2022,Adults,Quality Healthcare Solutions Ltd t/a Kare Plus Romford,Home Care - Private Contractors Payment,765.55,0.00,COMMERCIAL SUPPLIER 
 09-12-2022,Adults,Castle Care UK Ltd,Nursing Homes - Private Contractors Payment,765.81,0.00,COMMERCIAL SUPPLIER 
 09-12-2022,Adults,Morepower Ltd t/a Aqs Homecare,Home Care - Private Contractors Payment,767.19,0.00,COMMERCIAL SUPPLIER 
 08-12-2022,Adults,Home Support Services (Havering & Essex) Ltd,Home Care - Private Contractors Payment,767.52,0.00,COMMERCIAL SUPPLIER 
 09-12-2022,Adults,Lodge Group Care UK Ltd,Home Care - Private Contractors Payment,767.85,0.00,COMMERCIAL SUPPLIER 
 07-12-2022,Adults,Matrix SCM Ltd,Agency Staff,772.19,0.00,COMMERCIAL SUPPLIER 
 14-12-2022,Adults,Matrix SCM Ltd,Agency Staff,772.19,0.00,COMMERCIAL SUPPLIER 
 09-12-2022,Adults,Chosen Care Group Ltd,Supported Other Accommodation - Private Contractors Payment,772.60,0.00,COMMERCIAL SUPPLIER 
 06-12-2022,Adults,Home Sweet Home Care Ltd,Home Care - Private Contractors Payment,772.77,0.00,COMMERCIAL SUPPLIER 
 21-12-2022,Adults,Matrix SCM Ltd,Agency Staff,774.90,0.00,COMMERCIAL SUPPLIER 
 09-12-2022,Adults,Acorn Village_a,Residential Placements - Private Contractors Payment,774.92,0.00,COMMERCIAL SUPPLIER 
 07-12-2022,Adults,Matrix SCM Ltd,Agency Staff,777.42,0.00,COMMERCIAL SUPPLIER 
 21-12-2022,Adults,Matrix SCM Ltd,Agency Staff,777.42,0.00,COMMERCIAL SUPPLIER 
 12-12-2022,Adults,Prior Care Ltd_a,Home Care - Private Contractors Payment,778.34,0.00,COMMERCIAL SUPPLIER 
 04-12-2022,Adults,Homestead Care Service,Home Care - Private Contractors Payment,779.98,0.00,COMMERCIAL SUPPLIER 
 29-12-2022,Adults,Matrix SCM Ltd,Agency Staff,781.32,0.00,COMMERCIAL SUPPLIER 
 09-12-2022,Adults,Lodge Group Care UK Ltd,Home Care - Private Contractors Payment,783.26,0.00,COMMERCIAL SUPPLIER 
 07-12-2022,Adults,Matrix SCM Ltd,Agency Staff,783.36,0.00,COMMERCIAL SUPPLIER 
 07-12-2022,Adults,Anytime Care 2020_a,Home Care - Private Contractors Payment,783.59,0.00,COMMERCIAL SUPPLIER 
 06-12-2022,Adults,Home Sweet Home Care Ltd,Home Care - Private Contractors Payment,784.90,0.00,COMMERCIAL SUPPLIER 
 03-12-2022,Adults,Personal Information � Redacted,Home Care - Private Contractors Payment,787.20,0.00,INDIVIDUALS 
 03-12-2022,Adults,Personal Information � Redacted,Home Care - Private Contractors Payment,787.20,0.00,INDIVIDUALS 
 03-12-2022,Adults,Personal Information � Redacted,Home Care - Private Contractors Payment,787.20,0.00,INDIVIDUALS 
 03-12-2022,Adults,Personal Information � Redacted,Home Care - Private Contractors Payment,787.20,0.00,INDIVIDUALS 
 08-12-2022,Adults,Carers Trust East Midlands,Home Care - Private Contractors Payment,787.20,0.00,COMMERCIAL SUPPLIER 
 08-12-2022,Adults,Carers Trust East Midlands,Home Care - Private Contractors Payment,787.20,0.00,COMMERCIAL SUPPLIER 
 09-12-2022,Adults,Lodge Group Care UK Ltd,Home Care - Private Contractors Payment,788.51,0.00,COMMERCIAL SUPPLIER 
 09-12-2022,Adults,Lodge Group Care UK Ltd,Home Care - Private Contractors Payment,788.84,0.00,COMMERCIAL SUPPLIER 
 09-12-2022,Adults,Cera Care Operations Ltd,Home Care - Private Contractors Payment,789.17,0.00,COMMERCIAL SUPPLIER 
 21-12-2022,Adults,Matrix SCM Ltd,Agency Staff,790.91,0.00,COMMERCIAL SUPPLIER 
 21-12-2022,Adults,Matrix SCM Ltd,Agency Staff,790.91,0.00,COMMERCIAL SUPPLIER 
 21-12-2022,Adults,Matrix SCM Ltd,Agency Staff,790.91,0.00,COMMERCIAL SUPPLIER 
 29-12-2022,Adults,Matrix SCM Ltd,Agency Staff,790.91,0.00,COMMERCIAL SUPPLIER 
 12-12-2022,Adults,John Stanleys Care Agency Ltd,Home Care - Private Contractors Payment,791.14,0.00,COMMERCIAL SUPPLIER 
 09-12-2022,Adults,Ranc Care Homes Ltd - Romford Care Centre,Residential Placements - Private Contractors Payment,794.29,0.00,COMMERCIAL SUPPLIER 
 07-12-2022,Adults,Matrix SCM Ltd,Agency Staff,794.88,0.00,COMMERCIAL SUPPLIER 
 09-12-2022,Adults,Outlook Care - 76 Neave Crescent,Supported Other Accommodation - Private Contractors Payment,796.96,0.00,COMMERCIAL SUPPLIER 
 08-12-2022,Adults,Inna Care Ltd,Home Care - Private Contractors Payment,797.04,0.00,COMMERCIAL SUPPLIER 
 09-12-2022,Adults,Morepower Ltd t/a Aqs Homecare,Home Care - Private Contractors Payment,798.35,0.00,COMMERCIAL SUPPLIER 
 06-12-2022,Adults,Care-Away Ltd T/A Care Support,Home Care - Private Contractors Payment,798.72,0.00,COMMERCIAL SUPPLIER 
 06-12-2022,Adults,R G Care Ltd ,Daycare - Private Contractors Payment,800.00,0.00,COMMERCIAL SUPPLIER 
 09-12-2022,Adults,Morepower Ltd t/a Aqs Homecare,Home Care - Private Contractors Payment,801.63,0.00,COMMERCIAL SUPPLIER 
 09-12-2022,Adults,Morepower Ltd t/a Aqs Homecare,Home Care - Private Contractors Payment,801.96,0.00,COMMERCIAL SUPPLIER 
 08-12-2022,Adults,Home Support Services (Havering & Essex) Ltd,Home Care - Private Contractors Payment,803.27,0.00,COMMERCIAL SUPPLIER 
 09-12-2022,Adults,Lodge Group Care UK Ltd,Home Care - Private Contractors Payment,805.90,0.00,COMMERCIAL SUPPLIER 
 04-12-2022,Adults,Homestead Care Service,Home Care - Private Contractors Payment,806.88,0.00,COMMERCIAL SUPPLIER 
 04-12-2022,Adults,Homestead Care Service,Home Care - Private Contractors Payment,806.88,0.00,COMMERCIAL SUPPLIER 
 06-12-2022,Adults,Home Sweet Home Care Ltd,Home Care - Private Contractors Payment,806.88,0.00,COMMERCIAL SUPPLIER 
 08-12-2022,Adults,Home Support Services (Havering & Essex) Ltd,Home Care - Private Contractors Payment,806.88,0.00,COMMERCIAL SUPPLIER 
 08-12-2022,Adults,Home Support Services (Havering & Essex) Ltd,Home Care - Private Contractors Payment,808.19,0.00,COMMERCIAL SUPPLIER 
 06-12-2022,Adults,Home Sweet Home Care Ltd,Home Care - Private Contractors Payment,808.52,0.00,COMMERCIAL SUPPLIER 
 06-12-2022,Adults,Hospiva Care & Associates Agency Ltd_a,Home Care - Private Contractors Payment,809.18,0.00,COMMERCIAL SUPPLIER 
 09-12-2022,Adults,Cera Care Operations Ltd,Home Care - Private Contractors Payment,809.50,0.00,COMMERCIAL SUPPLIER 
 06-12-2022,Adults,Home Sweet Home Care Ltd,Home Care - Private Contractors Payment,811.14,0.00,COMMERCIAL SUPPLIER 
 09-12-2022,Adults,Cera Care Operations Ltd,Home Care - Private Contractors Payment,814.75,0.00,COMMERCIAL SUPPLIER 
 06-12-2022,Adults,Care-Away Ltd T/A Care Support,Home Care - Private Contractors Payment,815.36,0.00,COMMERCIAL SUPPLIER 
 06-12-2022,Adults,Care-Away Ltd T/A Care Support,Home Care - Private Contractors Payment,815.36,0.00,COMMERCIAL SUPPLIER 
 05-12-2022,Adults,Prestige Care & Support Ltd,Home Care - Private Contractors Payment,816.72,0.00,COMMERCIAL SUPPLIER 
 06-12-2022,Adults,Home Sweet Home Care Ltd,Home Care - Private Contractors Payment,816.72,0.00,COMMERCIAL SUPPLIER 
 08-12-2022,Adults,Home Support Services (Havering & Essex) Ltd,Home Care - Private Contractors Payment,816.72,0.00,COMMERCIAL SUPPLIER 
 09-12-2022,Adults,Cera Care Operations Ltd,Home Care - Private Contractors Payment,817.05,0.00,COMMERCIAL SUPPLIER 
 06-12-2022,Adults,Home Sweet Home Care Ltd,Home Care - Private Contractors Payment,817.38,0.00,COMMERCIAL SUPPLIER 
 04-12-2022,Adults,Homestead Care Service,Home Care - Private Contractors Payment,818.69,0.00,COMMERCIAL SUPPLIER 
 05-12-2022,Adults,Prestige Care & Support Ltd,Home Care - Private Contractors Payment,818.69,0.00,COMMERCIAL SUPPLIER 
 09-12-2022,Adults,Lodge Group Care UK Ltd,Home Care - Private Contractors Payment,819.34,0.00,COMMERCIAL SUPPLIER 
 09-12-2022,Adults,Lodge Group Care UK Ltd,Home Care - Private Contractors Payment,820.33,0.00,COMMERCIAL SUPPLIER 
 09-12-2022,Adults,Lodge Group Care UK Ltd,Home Care - Private Contractors Payment,820.33,0.00,COMMERCIAL SUPPLIER 
 06-12-2022,Adults,Home Sweet Home Care Ltd,Home Care - Private Contractors Payment,820.66,0.00,COMMERCIAL SUPPLIER 
 09-12-2022,Adults,Morepower Ltd t/a Aqs Homecare,Home Care - Private Contractors Payment,821.64,0.00,COMMERCIAL SUPPLIER 
 04-12-2022,Adults,Homestead Care Service,Home Care - Private Contractors Payment,823.28,0.00,COMMERCIAL SUPPLIER 
 29-12-2022,Adults,Matrix SCM Ltd,Agency Staff,823.90,0.00,COMMERCIAL SUPPLIER 
 21-12-2022,Adults,Matrix SCM Ltd,Agency Staff,824.05,0.00,COMMERCIAL SUPPLIER 
 09-12-2022,Adults,Lodge Group Care UK Ltd,Home Care - Private Contractors Payment,824.59,0.00,COMMERCIAL SUPPLIER 
 05-12-2022,Adults,Prestige Care & Support Ltd,Home Care - Private Contractors Payment,825.25,0.00,COMMERCIAL SUPPLIER 
 07-12-2022,Adults,Quality Healthcare Solutions Ltd t/a Kare Plus Romford,Home Care - Private Contractors Payment,825.25,0.00,COMMERCIAL SUPPLIER 
 06-12-2022,Adults,Home Sweet Home Care Ltd,Home Care - Private Contractors Payment,825.90,0.00,COMMERCIAL SUPPLIER 
 03-12-2022,Adults,Personal Information � Redacted,Home Care - Private Contractors Payment,826.56,0.00,INDIVIDUALS 
 03-12-2022,Adults,Personal Information � Redacted,Home Care - Private Contractors Payment,826.56,0.00,INDIVIDUALS 
 05-12-2022,Adults,Prestige Care & Support Ltd,Home Care - Private Contractors Payment,826.56,0.00,COMMERCIAL SUPPLIER 
 05-12-2022,Adults,Prestige Care & Support Ltd,Home Care - Private Contractors Payment,826.56,0.00,COMMERCIAL SUPPLIER 
 05-12-2022,Adults,Outreach Support Services Ltd,Home Care - Private Contractors Payment,826.56,0.00,COMMERCIAL SUPPLIER 
 05-12-2022,Adults,Outreach Support Services Ltd,Home Care - Private Contractors Payment,826.56,0.00,COMMERCIAL SUPPLIER 
 05-12-2022,Adults,Passion Tree Care Services Ltd,Home Care - Private Contractors Payment,826.56,0.00,COMMERCIAL SUPPLIER 
 06-12-2022,Adults,Home Sweet Home Care Ltd,Home Care - Private Contractors Payment,826.56,0.00,COMMERCIAL SUPPLIER 
 06-12-2022,Adults,Home Sweet Home Care Ltd,Home Care - Private Contractors Payment,826.56,0.00,COMMERCIAL SUPPLIER 
 06-12-2022,Adults,Home Sweet Home Care Ltd,Home Care - Private Contractors Payment,826.56,0.00,COMMERCIAL SUPPLIER 
 06-12-2022,Adults,London Homecare Ltd,Home Care - Private Contractors Payment,826.56,0.00,COMMERCIAL SUPPLIER 
 06-12-2022,Adults,London Homecare Ltd,Home Care - Private Contractors Payment,826.56,0.00,COMMERCIAL SUPPLIER 
 07-12-2022,Adults,Anytime Care 2020_a,Home Care - Private Contractors Payment,826.56,0.00,COMMERCIAL SUPPLIER 
 08-12-2022,Adults,Home Support Services (Havering & Essex) Ltd,Home Care - Private Contractors Payment,826.56,0.00,COMMERCIAL SUPPLIER 
 08-12-2022,Adults,Home Support Services (Havering & Essex) Ltd,Home Care - Private Contractors Payment,826.56,0.00,COMMERCIAL SUPPLIER 
 08-12-2022,Adults,Home Support Services (Havering & Essex) Ltd,Home Care - Private Contractors Payment,826.56,0.00,COMMERCIAL SUPPLIER 
 08-12-2022,Adults,Home Support Services (Havering & Essex) Ltd,Home Care - Private Contractors Payment,826.56,0.00,COMMERCIAL SUPPLIER 
 08-12-2022,Adults,Home Support Services (Havering & Essex) Ltd,Home Care - Private Contractors Payment,826.56,0.00,COMMERCIAL SUPPLIER 
 08-12-2022,Adults,Inna Care Ltd,Home Care - Private Contractors Payment,826.56,0.00,COMMERCIAL SUPPLIER 
 08-12-2022,Adults,Inna Care Ltd,Home Care - Private Contractors Payment,826.56,0.00,COMMERCIAL SUPPLIER 
 08-12-2022,Adults,Inna Care Ltd,Home Care - Private Contractors Payment,826.56,0.00,COMMERCIAL SUPPLIER 
 08-12-2022,Adults,Inna Care Ltd,Home Care - Private Contractors Payment,826.56,0.00,COMMERCIAL SUPPLIER 
 08-12-2022,Adults,Inna Care Ltd,Home Care - Private Contractors Payment,826.56,0.00,COMMERCIAL SUPPLIER 
 09-12-2022,Adults,Lodge Group Care UK Ltd,Home Care - Private Contractors Payment,826.56,0.00,COMMERCIAL SUPPLIER 
 09-12-2022,Adults,Lodge Group Care UK Ltd,Home Care - Private Contractors Payment,826.56,0.00,COMMERCIAL SUPPLIER 
 09-12-2022,Adults,Lodge Group Care UK Ltd,Home Care - Private Contractors Payment,826.56,0.00,COMMERCIAL SUPPLIER 
 09-12-2022,Adults,Lodge Group Care UK Ltd,Home Care - Private Contractors Payment,826.56,0.00,COMMERCIAL SUPPLIER 
 09-12-2022,Adults,Lodge Group Care UK Ltd,Home Care - Private Contractors Payment,826.56,0.00,COMMERCIAL SUPPLIER 
 09-12-2022,Adults,Lodge Group Care UK Ltd,Home Care - Private Contractors Payment,826.56,0.00,COMMERCIAL SUPPLIER 
 09-12-2022,Adults,Lodge Group Care UK Ltd,Home Care - Private Contractors Payment,826.56,0.00,COMMERCIAL SUPPLIER 
 09-12-2022,Adults,Lodge Group Care UK Ltd,Home Care - Private Contractors Payment,826.56,0.00,COMMERCIAL SUPPLIER 
 09-12-2022,Adults,Lodge Group Care UK Ltd,Home Care - Private Contractors Payment,826.56,0.00,COMMERCIAL SUPPLIER 
 09-12-2022,Adults,Lodge Group Care UK Ltd,Home Care - Private Contractors Payment,826.56,0.00,COMMERCIAL SUPPLIER 
 09-12-2022,Adults,Lodge Group Care UK Ltd,Home Care - Private Contractors Payment,826.56,0.00,COMMERCIAL SUPPLIER 
 09-12-2022,Adults,Cera Care Operations Ltd,Home Care - Private Contractors Payment,826.56,0.00,COMMERCIAL SUPPLIER 
 09-12-2022,Adults,Morepower Ltd t/a Aqs Homecare,Home Care - Private Contractors Payment,826.56,0.00,COMMERCIAL SUPPLIER 
 17-12-2022,Adults,Personal Information � Redacted,Home Care - Private Contractors Payment,826.56,0.00,INDIVIDUALS 
 20-12-2022,Adults,Rosemont Care Limited,Home Care - Private Contractors Payment,826.56,0.00,COMMERCIAL SUPPLIER 
 20-12-2022,Adults,Rosemont Care Limited,Home Care - Private Contractors Payment,826.56,0.00,COMMERCIAL SUPPLIER 
 08-12-2022,Adults,Home Support Services (Havering & Essex) Ltd,Home Care - Private Contractors Payment,826.89,0.00,COMMERCIAL SUPPLIER 
 08-12-2022,Adults,Home Support Services (Havering & Essex) Ltd,Home Care - Private Contractors Payment,826.89,0.00,COMMERCIAL SUPPLIER 
 09-12-2022,Adults,Lodge Group Care UK Ltd,Home Care - Private Contractors Payment,826.89,0.00,COMMERCIAL SUPPLIER 
 08-12-2022,Adults,Home Support Services (Havering & Essex) Ltd,Home Care - Private Contractors Payment,827.22,0.00,COMMERCIAL SUPPLIER 
 09-12-2022,Adults,Lodge Group Care UK Ltd,Home Care - Private Contractors Payment,827.22,0.00,COMMERCIAL SUPPLIER 
 21-12-2022,Adults,Matrix SCM Ltd,Agency Staff,827.28,0.00,COMMERCIAL SUPPLIER 
 07-12-2022,Adults,Quality Healthcare Solutions Ltd t/a Kare Plus Romford,Home Care - Private Contractors Payment,827.54,0.00,COMMERCIAL SUPPLIER 
 07-12-2022,Adults,Anytime Care 2020_a,Home Care - Private Contractors Payment,827.54,0.00,COMMERCIAL SUPPLIER 
 09-12-2022,Adults,Lodge Group Care UK Ltd,Home Care - Private Contractors Payment,827.87,0.00,COMMERCIAL SUPPLIER 
 09-12-2022,Adults,Lodge Group Care UK Ltd,Home Care - Private Contractors Payment,827.87,0.00,COMMERCIAL SUPPLIER 
 09-12-2022,Adults,Lodge Group Care UK Ltd,Home Care - Private Contractors Payment,827.87,0.00,COMMERCIAL SUPPLIER 
 09-12-2022,Adults,Morepower Ltd t/a Aqs Homecare,Home Care - Private Contractors Payment,827.87,0.00,COMMERCIAL SUPPLIER 
 04-12-2022,Adults,Homestead Care Service,Home Care - Private Contractors Payment,828.20,0.00,COMMERCIAL SUPPLIER 
 09-12-2022,Adults,Cera Care Operations Ltd,Home Care - Private Contractors Payment,828.20,0.00,COMMERCIAL SUPPLIER 
 08-12-2022,Adults,Home Support Services (Havering & Essex) Ltd,Home Care - Private Contractors Payment,828.86,0.00,COMMERCIAL SUPPLIER 
 12-12-2022,Adults,Prior Care Ltd_a,Home Care - Private Contractors Payment,828.86,0.00,COMMERCIAL SUPPLIER 
 04-12-2022,Adults,Westminster Homecare Ltd_a,Home Care - Private Contractors Payment,829.18,0.00,COMMERCIAL SUPPLIER 
 06-12-2022,Adults,Home Sweet Home Care Ltd,Home Care - Private Contractors Payment,829.18,0.00,COMMERCIAL SUPPLIER 
 14-12-2022,Adults,Matrix SCM Ltd,Agency Staff,829.44,0.00,COMMERCIAL SUPPLIER 
 14-12-2022,Adults,Matrix SCM Ltd,Agency Staff,829.44,0.00,COMMERCIAL SUPPLIER 
 06-12-2022,Adults,Home Sweet Home Care Ltd,Home Care - Private Contractors Payment,829.51,0.00,COMMERCIAL SUPPLIER 
 09-12-2022,Adults,Lodge Group Care UK Ltd,Home Care - Private Contractors Payment,830.50,0.00,COMMERCIAL SUPPLIER 
 04-12-2022,Adults,Westminster Homecare Ltd_a,Home Care - Private Contractors Payment,830.82,0.00,COMMERCIAL SUPPLIER 
 09-12-2022,Adults,Lodge Group Care UK Ltd,Home Care - Private Contractors Payment,831.48,0.00,COMMERCIAL SUPPLIER 
 09-12-2022,Adults,Lodge Group Care UK Ltd,Home Care - Private Contractors Payment,831.81,0.00,COMMERCIAL SUPPLIER 
 09-12-2022,Adults,Morepower Ltd t/a Aqs Homecare,Home Care - Private Contractors Payment,831.81,0.00,COMMERCIAL SUPPLIER 
 06-12-2022,Adults,Care-Away Ltd T/A Care Support,Home Care - Private Contractors Payment,832.00,0.00,COMMERCIAL SUPPLIER 
 09-12-2022,Adults,Lodge Group Care UK Ltd,Home Care - Private Contractors Payment,832.46,0.00,COMMERCIAL SUPPLIER 
 06-12-2022,Adults,Home Sweet Home Care Ltd,Home Care - Private Contractors Payment,832.79,0.00,COMMERCIAL SUPPLIER 
 09-12-2022,Adults,Cera Care Operations Ltd,Home Care - Private Contractors Payment,834.43,0.00,COMMERCIAL SUPPLIER 
 21-12-2022,Adults,Matrix SCM Ltd,Agency Staff,834.74,0.00,COMMERCIAL SUPPLIER 
 21-12-2022,Adults,Matrix SCM Ltd,Agency Staff,834.74,0.00,COMMERCIAL SUPPLIER 
 21-12-2022,Adults,Matrix SCM Ltd,Agency Staff,834.74,0.00,COMMERCIAL SUPPLIER 
 08-12-2022,Adults,Home Support Services (Havering & Essex) Ltd,Home Care - Private Contractors Payment,835.09,0.00,COMMERCIAL SUPPLIER 
 05-12-2022,Adults,Prestige Care & Support Ltd,Home Care - Private Contractors Payment,835.74,0.00,COMMERCIAL SUPPLIER 
 06-12-2022,Adults,Home Sweet Home Care Ltd,Home Care - Private Contractors Payment,835.74,0.00,COMMERCIAL SUPPLIER 
 09-12-2022,Adults,Morepower Ltd t/a Aqs Homecare,Home Care - Private Contractors Payment,835.74,0.00,COMMERCIAL SUPPLIER 
 04-12-2022,Adults,Homestead Care Service,Home Care - Private Contractors Payment,836.40,0.00,COMMERCIAL SUPPLIER 
 09-12-2022,Adults,Morepower Ltd t/a Aqs Homecare,Home Care - Private Contractors Payment,836.40,0.00,COMMERCIAL SUPPLIER 
 04-12-2022,Adults,Homestead Care Service,Home Care - Private Contractors Payment,836.73,0.00,COMMERCIAL SUPPLIER 
 06-12-2022,Adults,Hospiva Care & Associates Agency Ltd_a,Home Care - Private Contractors Payment,836.73,0.00,COMMERCIAL SUPPLIER 
 08-12-2022,Adults,Home Support Services (Havering & Essex) Ltd,Home Care - Private Contractors Payment,836.73,0.00,COMMERCIAL SUPPLIER 
 06-12-2022,Adults,Home Sweet Home Care Ltd,Home Care - Private Contractors Payment,838.04,0.00,COMMERCIAL SUPPLIER 
 12-12-2022,Adults,John Stanleys Care Agency Ltd,Home Care - Private Contractors Payment,838.04,0.00,COMMERCIAL SUPPLIER 
 09-12-2022,Adults,Morepower Ltd t/a Aqs Homecare,Home Care - Private Contractors Payment,839.35,0.00,COMMERCIAL SUPPLIER 
 28-12-2022,Adults,Star Mini Cabs.,Client Transport,840.00,0.00,COMMERCIAL SUPPLIER 
 08-12-2022,Adults,Home Support Services (Havering & Essex) Ltd,Home Care - Private Contractors Payment,840.99,0.00,COMMERCIAL SUPPLIER 
 09-12-2022,Adults,Cera Care Operations Ltd,Home Care - Private Contractors Payment,840.99,0.00,COMMERCIAL SUPPLIER 
 06-12-2022,Adults,Hospiva Care & Associates Agency Ltd_a,Home Care - Private Contractors Payment,841.98,0.00,COMMERCIAL SUPPLIER 
 09-12-2022,Adults,Cera Care Operations Ltd,Home Care - Private Contractors Payment,842.30,0.00,COMMERCIAL SUPPLIER 
 21-12-2022,Adults,Matrix SCM Ltd,Agency Staff,842.75,0.00,COMMERCIAL SUPPLIER 
 29-12-2022,Adults,Matrix SCM Ltd,Agency Staff,842.75,0.00,COMMERCIAL SUPPLIER 
 14-12-2022,Adults,Matrix SCM Ltd,Agency Staff,844.58,0.00,COMMERCIAL SUPPLIER 
 14-12-2022,Adults,Matrix SCM Ltd,Agency Staff,844.58,0.00,COMMERCIAL SUPPLIER 
 09-12-2022,Adults,Morepower Ltd t/a Aqs Homecare,Home Care - Private Contractors Payment,844.60,0.00,COMMERCIAL SUPPLIER 
 04-12-2022,Adults,Homestead Care Service,Home Care - Private Contractors Payment,844.93,0.00,COMMERCIAL SUPPLIER 
 09-12-2022,Adults,Cera Care Operations Ltd,Home Care - Private Contractors Payment,845.58,0.00,COMMERCIAL SUPPLIER 
 14-12-2022,Adults,Matrix SCM Ltd,Agency Staff,847.36,0.00,COMMERCIAL SUPPLIER 
 05-12-2022,Adults,Prestige Care & Support Ltd,Home Care - Private Contractors Payment,847.55,0.00,COMMERCIAL SUPPLIER 
 05-12-2022,Adults,Prestige Care & Support Ltd,Home Care - Private Contractors Payment,847.55,0.00,COMMERCIAL SUPPLIER 
 07-12-2022,Adults,Quality Healthcare Solutions Ltd t/a Kare Plus Romford,Home Care - Private Contractors Payment,847.55,0.00,COMMERCIAL SUPPLIER 
 05-12-2022,Adults,Prestige Care & Support Ltd,Home Care - Private Contractors Payment,847.88,0.00,COMMERCIAL SUPPLIER 
 09-12-2022,Adults,Lodge Group Care UK Ltd,Home Care - Private Contractors Payment,847.88,0.00,COMMERCIAL SUPPLIER 
 09-12-2022,Adults,Lodge Group Care UK Ltd,Home Care - Private Contractors Payment,848.54,0.00,COMMERCIAL SUPPLIER 
 04-12-2022,Adults,Homestead Care Service,Home Care - Private Contractors Payment,849.85,0.00,COMMERCIAL SUPPLIER 
 09-12-2022,Adults,Morepower Ltd t/a Aqs Homecare,Home Care - Private Contractors Payment,849.85,0.00,COMMERCIAL SUPPLIER 
 06-12-2022,Adults,Home Sweet Home Care Ltd,Home Care - Private Contractors Payment,850.83,0.00,COMMERCIAL SUPPLIER 
 05-12-2022,Adults,Prestige Care & Support Ltd,Home Care - Private Contractors Payment,854.11,0.00,COMMERCIAL SUPPLIER 
 09-12-2022,Adults,Topaz Care and Support Co Ltd,Supported Other Accommodation - Private Contractors Payment,854.20,0.00,COMMERCIAL SUPPLIER 
 05-12-2022,Adults,Tapestry_a.,Daycare - Private Contractors Payment,855.00,0.00,COMMERCIAL SUPPLIER 
 05-12-2022,Adults,Prestige Care & Support Ltd,Home Care - Private Contractors Payment,855.10,0.00,COMMERCIAL SUPPLIER 
 09-12-2022,Adults,EC Romford Holdings Ltd,Respite Care - Private Contractors Payment,857.14,0.00,COMMERCIAL SUPPLIER 
 04-12-2022,Adults,Eastway Care Ltd_a,Daycare - Private Contractors Payment,860.00,0.00,COMMERCIAL SUPPLIER 
 04-12-2022,Adults,Eastway Care Ltd_a,Daycare - Private Contractors Payment,860.00,0.00,COMMERCIAL SUPPLIER 
 09-12-2022,Adults,Lodge Group Care UK Ltd,Home Care - Private Contractors Payment,861.66,0.00,COMMERCIAL SUPPLIER 
 09-12-2022,Adults,Cera Care Operations Ltd,Home Care - Private Contractors Payment,861.66,0.00,COMMERCIAL SUPPLIER 
 09-12-2022,Adults,Lodge Group Care UK Ltd,Home Care - Private Contractors Payment,861.98,0.00,COMMERCIAL SUPPLIER 
 13-12-2022,Adults,Funky Willows Ltd,Daycare - Private Contractors Payment,864.00,0.00,COMMERCIAL SUPPLIER 
 13-12-2022,Adults,Funky Willows Ltd,Daycare - Private Contractors Payment,864.00,0.00,COMMERCIAL SUPPLIER 
 13-12-2022,Adults,Funky Willows Ltd,Daycare - Private Contractors Payment,864.00,0.00,COMMERCIAL SUPPLIER 
 13-12-2022,Adults,Funky Willows Ltd,Daycare - Private Contractors Payment,864.00,0.00,COMMERCIAL SUPPLIER 
 13-12-2022,Adults,Funky Willows Ltd,Daycare - Private Contractors Payment,864.00,0.00,COMMERCIAL SUPPLIER 
 06-12-2022,Adults,Home Sweet Home Care Ltd,Home Care - Private Contractors Payment,864.61,0.00,COMMERCIAL SUPPLIER 
 06-12-2022,Adults,Care-Away Ltd T/A Care Support,Home Care - Private Contractors Payment,865.28,0.00,COMMERCIAL SUPPLIER 
 03-12-2022,Adults,Personal Information � Redacted,Home Care - Private Contractors Payment,865.92,0.00,INDIVIDUALS 
 09-12-2022,Adults,Westminster Health Care Ltd Derham House,Respite Care - Private Contractors Payment,871.71,0.00,COMMERCIAL SUPPLIER 
 09-12-2022,Adults,Beechcourt Care Centre - Bondcare,Nursing Homes - Private Contractors Payment,871.71,0.00,COMMERCIAL SUPPLIER 
 12-12-2022,Adults,Prior Care Ltd_a,Home Care - Private Contractors Payment,874.78,0.00,COMMERCIAL SUPPLIER 
 09-12-2022,Adults,Morepower Ltd t/a Aqs Homecare,Home Care - Private Contractors Payment,875.43,0.00,COMMERCIAL SUPPLIER 
 04-12-2022,Adults,Homestead Care Service,Home Care - Private Contractors Payment,878.06,0.00,COMMERCIAL SUPPLIER 
 30-12-2022,Adults,Romford Private Hire Ltd,Client Transport,880.00,0.00,COMMERCIAL SUPPLIER 
 09-12-2022,Adults,Ebony Health Care Services Limited,Supported Other Accommodation - Private Contractors Payment,881.48,0.00,COMMERCIAL SUPPLIER 
 06-12-2022,Adults,Care-Away Ltd T/A Care Support,Home Care - Private Contractors Payment,881.92,0.00,COMMERCIAL SUPPLIER 
 09-12-2022,Adults,Cera Care Operations Ltd,Home Care - Private Contractors Payment,882.65,0.00,COMMERCIAL SUPPLIER 
 05-12-2022,Adults,Prestige Care & Support Ltd,Home Care - Private Contractors Payment,882.98,0.00,COMMERCIAL SUPPLIER 
 09-12-2022,Adults,Morepower Ltd t/a Aqs Homecare,Home Care - Private Contractors Payment,883.30,0.00,COMMERCIAL SUPPLIER 
 05-12-2022,Adults,Prestige Care & Support Ltd,Home Care - Private Contractors Payment,889.21,0.00,COMMERCIAL SUPPLIER 
 05-12-2022,Adults,Prestige Care & Support Ltd,Home Care - Private Contractors Payment,895.44,0.00,COMMERCIAL SUPPLIER 
 09-12-2022,Adults,Cera Care Operations Ltd,Home Care - Private Contractors Payment,895.44,0.00,COMMERCIAL SUPPLIER 
 04-12-2022,Adults,Homestead Care Service,Home Care - Private Contractors Payment,895.77,0.00,COMMERCIAL SUPPLIER 
 09-12-2022,Adults,Fresh Tree Care Services,Supported Other Accommodation - Private Contractors Payment,896.00,0.00,COMMERCIAL SUPPLIER 
 14-12-2022,Adults,Matrix SCM Ltd,Agency Staff,896.01,0.00,COMMERCIAL SUPPLIER 
 04-12-2022,Adults,Homestead Care Service,Home Care - Private Contractors Payment,896.10,0.00,COMMERCIAL SUPPLIER 
 04-12-2022,Adults,Homestead Care Service,Home Care - Private Contractors Payment,898.39,0.00,COMMERCIAL SUPPLIER 
 04-12-2022,Adults,Homestead Care Service,Home Care - Private Contractors Payment,903.31,0.00,COMMERCIAL SUPPLIER 
 04-12-2022,Adults,Westminster Homecare Ltd_a,Home Care - Private Contractors Payment,903.97,0.00,COMMERCIAL SUPPLIER 
 09-12-2022,Adults,Pathways Care Group Ltd,Residential Placements - Private Contractors Payment,904.04,0.00,COMMERCIAL SUPPLIER 
 08-12-2022,Adults,Inna Care Ltd,Home Care - Private Contractors Payment,905.28,0.00,COMMERCIAL SUPPLIER 
 05-12-2022,Adults,Prestige Care & Support Ltd,Home Care - Private Contractors Payment,907.25,0.00,COMMERCIAL SUPPLIER 
 08-12-2022,Adults,Home Support Services (Havering & Essex) Ltd,Home Care - Private Contractors Payment,907.25,0.00,COMMERCIAL SUPPLIER 
 12-12-2022,Adults,John Stanleys Care Agency Ltd,Home Care - Private Contractors Payment,909.87,0.00,COMMERCIAL SUPPLIER 
 08-12-2022,Adults,Home Support Services (Havering & Essex) Ltd,Home Care - Private Contractors Payment,910.53,0.00,COMMERCIAL SUPPLIER 
 04-12-2022,Adults,Homestead Care Service,Home Care - Private Contractors Payment,911.18,0.00,COMMERCIAL SUPPLIER 
 05-12-2022,Adults,Tapestry_a.,Daycare - Private Contractors Payment,912.00,0.00,COMMERCIAL SUPPLIER 
 08-12-2022,Adults,Home Support Services (Havering & Essex) Ltd,Home Care - Private Contractors Payment,913.48,0.00,COMMERCIAL SUPPLIER 
 06-12-2022,Adults,Home Sweet Home Care Ltd,Home Care - Private Contractors Payment,915.12,0.00,COMMERCIAL SUPPLIER 
 07-12-2022,Adults,Anytime Care 2020_a,Home Care - Private Contractors Payment,916.43,0.00,COMMERCIAL SUPPLIER 
 09-12-2022,Adults,Lodge Group Care UK Ltd,Home Care - Private Contractors Payment,916.43,0.00,COMMERCIAL SUPPLIER 
 09-12-2022,Adults,Outlook Care - 4 Peel Way,Supported Other Accommodation - Private Contractors Payment,917.60,0.00,COMMERCIAL SUPPLIER 
 09-12-2022,Adults,Omega Elifar Ltd,Residential Placements - Private Contractors Payment,918.40,0.00,COMMERCIAL SUPPLIER 
 09-12-2022,Adults,Cera Care Operations Ltd,Home Care - Private Contractors Payment,919.06,0.00,COMMERCIAL SUPPLIER 
 04-12-2022,Adults,Homestead Care Service,Home Care - Private Contractors Payment,924.30,0.00,COMMERCIAL SUPPLIER 
 06-12-2022,Adults,Home Sweet Home Care Ltd,Home Care - Private Contractors Payment,924.30,0.00,COMMERCIAL SUPPLIER 
 04-12-2022,Adults,Homestead Care Service,Home Care - Private Contractors Payment,924.96,0.00,COMMERCIAL SUPPLIER 
 06-12-2022,Adults,Home Sweet Home Care Ltd,Home Care - Private Contractors Payment,924.96,0.00,COMMERCIAL SUPPLIER 
 09-12-2022,Adults,Morepower Ltd t/a Aqs Homecare,Home Care - Private Contractors Payment,925.94,0.00,COMMERCIAL SUPPLIER 
 09-12-2022,Adults,Cera Care Operations Ltd,Home Care - Private Contractors Payment,927.26,0.00,COMMERCIAL SUPPLIER 
 06-12-2022,Adults,Home Sweet Home Care Ltd,Home Care - Private Contractors Payment,927.58,0.00,COMMERCIAL SUPPLIER 
 09-12-2022,Adults,Lodge Group Care UK Ltd,Home Care - Private Contractors Payment,927.58,0.00,COMMERCIAL SUPPLIER 
 08-12-2022,Adults,Jaktol Day Centers,Daycare - Private Contractors Payment,929.28,0.00,COMMERCIAL SUPPLIER 
 07-12-2022,Adults,Action First Assessments Ltd,Private Contractors Payment - Other,930.00,0.00,COMMERCIAL SUPPLIER 
 07-12-2022,Adults,Anytime Care 2020_a,Home Care - Private Contractors Payment,931.52,0.00,COMMERCIAL SUPPLIER 
 09-12-2022,Adults,Lodge Group Care UK Ltd,Home Care - Private Contractors Payment,931.52,0.00,COMMERCIAL SUPPLIER 
 06-12-2022,Adults,Care-Away Ltd T/A Care Support,Home Care - Private Contractors Payment,931.84,0.00,COMMERCIAL SUPPLIER 
 06-12-2022,Adults,Care-Away Ltd T/A Care Support,Home Care - Private Contractors Payment,931.84,0.00,COMMERCIAL SUPPLIER 
 06-12-2022,Adults,Care-Away Ltd T/A Care Support,Home Care - Private Contractors Payment,931.84,0.00,COMMERCIAL SUPPLIER 
 07-12-2022,Adults,Care-Away Ltd T/A Care Support,Home Care - Private Contractors Payment,931.84,0.00,COMMERCIAL SUPPLIER 
 07-12-2022,Adults,Care-Away Ltd T/A Care Support,Home Care - Private Contractors Payment,931.84,0.00,COMMERCIAL SUPPLIER 
 07-12-2022,Adults,Care-Away Ltd T/A Care Support,Home Care - Private Contractors Payment,931.84,0.00,COMMERCIAL SUPPLIER 
 07-12-2022,Adults,Care-Away Ltd T/A Care Support,Home Care - Private Contractors Payment,931.84,0.00,COMMERCIAL SUPPLIER 
 07-12-2022,Adults,Care-Away Ltd T/A Care Support,Home Care - Private Contractors Payment,931.84,0.00,COMMERCIAL SUPPLIER 
 09-12-2022,Adults,Lodge Group Care UK Ltd,Home Care - Private Contractors Payment,931.85,0.00,COMMERCIAL SUPPLIER 
 09-12-2022,Adults,HC-One Oval Ltd - Chaseview,Nursing Homes - Private Contractors Payment,934.29,0.00,COMMERCIAL SUPPLIER 
 09-12-2022,Adults,Morepower Ltd t/a Aqs Homecare,Home Care - Private Contractors Payment,936.11,0.00,COMMERCIAL SUPPLIER 
 09-12-2022,Adults,Lodge Group Care UK Ltd,Home Care - Private Contractors Payment,936.44,0.00,COMMERCIAL SUPPLIER 
 09-12-2022,Adults,Lodge Group Care UK Ltd,Home Care - Private Contractors Payment,936.77,0.00,COMMERCIAL SUPPLIER 
 05-12-2022,Adults,Passion Tree Care Services Ltd,Home Care - Private Contractors Payment,944.64,0.00,COMMERCIAL SUPPLIER 
 05-12-2022,Adults,Prestige Care & Support Ltd,Home Care - Private Contractors Payment,946.94,0.00,COMMERCIAL SUPPLIER 
 09-12-2022,Adults,Lodge Group Care UK Ltd,Home Care - Private Contractors Payment,948.25,0.00,COMMERCIAL SUPPLIER 
 04-12-2022,Adults,Homestead Care Service,Home Care - Private Contractors Payment,958.09,0.00,COMMERCIAL SUPPLIER 
 04-12-2022,Adults,Homestead Care Service,Home Care - Private Contractors Payment,958.74,0.00,COMMERCIAL SUPPLIER 
 09-12-2022,Adults,2 Peel Way - Outlook Care,Supported Other Accommodation - Private Contractors Payment,963.92,0.00,NON COMMERCIAL SUPPLIER 
 03-12-2022,Adults,Personal Information � Redacted,Home Care - Private Contractors Payment,964.32,0.00,INDIVIDUALS 
 05-12-2022,Adults,Outreach Support Services Ltd,Home Care - Private Contractors Payment,964.32,0.00,COMMERCIAL SUPPLIER 
 06-12-2022,Adults,Premier Carewaiting Ltd,Home Care - Private Contractors Payment,964.32,0.00,COMMERCIAL SUPPLIER 
 09-12-2022,Adults,IECC Care,Supported Other Accommodation - Private Contractors Payment,964.32,0.00,COMMERCIAL SUPPLIER 
 14-12-2022,Adults,Matrix SCM Ltd,Agency Staff,965.44,0.00,COMMERCIAL SUPPLIER 
 12-12-2022,Adults,John Stanleys Care Agency Ltd,Home Care - Private Contractors Payment,968.26,0.00,COMMERCIAL SUPPLIER 
 21-12-2022,Adults,Matrix SCM Ltd,Agency Staff,969.52,0.00,COMMERCIAL SUPPLIER 
 04-12-2022,Adults,Homestead Care Service,Home Care - Private Contractors Payment,969.90,0.00,COMMERCIAL SUPPLIER 
 06-12-2022,Adults,Home Sweet Home Care Ltd,Home Care - Private Contractors Payment,974.16,0.00,COMMERCIAL SUPPLIER 
 06-12-2022,Adults,Premier Carewaiting Ltd,Home Care - Private Contractors Payment,974.16,0.00,COMMERCIAL SUPPLIER 
 14-12-2022,Adults,Matrix SCM Ltd,Agency Staff,974.40,0.00,COMMERCIAL SUPPLIER 
 21-12-2022,Adults,Matrix SCM Ltd,Agency Staff,974.40,0.00,COMMERCIAL SUPPLIER 
 09-12-2022,Adults,Lodge Group Care UK Ltd,Home Care - Private Contractors Payment,976.13,0.00,COMMERCIAL SUPPLIER 
 04-12-2022,Adults,Homestead Care Service,Home Care - Private Contractors Payment,977.44,0.00,COMMERCIAL SUPPLIER 
 05-12-2022,Adults,Prestige Care & Support Ltd,Home Care - Private Contractors Payment,980.72,0.00,COMMERCIAL SUPPLIER 
 09-12-2022,Adults,Cera Care Operations Ltd,Home Care - Private Contractors Payment,981.70,0.00,COMMERCIAL SUPPLIER 
 03-12-2022,Adults,Personal Information � Redacted,Home Care - Private Contractors Payment,984.00,0.00,INDIVIDUALS 
 08-12-2022,Adults,Inna Care Ltd,Home Care - Private Contractors Payment,984.00,0.00,COMMERCIAL SUPPLIER 
 09-12-2022,Adults,Castle Care UK Ltd,Nursing Homes - Private Contractors Payment,984.61,0.00,COMMERCIAL SUPPLIER 
 14-12-2022,Adults,Matrix SCM Ltd,Agency Staff,986.63,0.00,COMMERCIAL SUPPLIER 
 09-12-2022,Adults,Ebony Health Care Services Limited,Supported Other Accommodation - Private Contractors Payment,992.24,0.00,COMMERCIAL SUPPLIER 
 09-12-2022,Adults,Cera Care Operations Ltd,Home Care - Private Contractors Payment,993.18,0.00,COMMERCIAL SUPPLIER 
 06-12-2022,Adults,Home Sweet Home Care Ltd,Home Care - Private Contractors Payment,994.82,0.00,COMMERCIAL SUPPLIER 
 05-12-2022,Adults,Prestige Care & Support Ltd,Home Care - Private Contractors Payment,996.79,0.00,COMMERCIAL SUPPLIER 
 06-12-2022,Adults,Home Sweet Home Care Ltd,Home Care - Private Contractors Payment,997.12,0.00,COMMERCIAL SUPPLIER 
 07-12-2022,Adults,Anytime Care 2020_a,Home Care - Private Contractors Payment,997.12,0.00,COMMERCIAL SUPPLIER 
 04-12-2022,Adults,Homestead Care Service,Home Care - Private Contractors Payment,997.78,0.00,COMMERCIAL SUPPLIER 
 08-12-2022,Adults,Home Support Services (Havering & Essex) Ltd,Home Care - Private Contractors Payment,999.09,0.00,COMMERCIAL SUPPLIER 
 29-12-2022,Adults,Matrix SCM Ltd,Agency Staff,999.92,0.00,COMMERCIAL SUPPLIER 
 04-12-2022,Adults,Homestead Care Service,Home Care - Private Contractors Payment,1001.38,0.00,COMMERCIAL SUPPLIER 
 09-12-2022,Adults,Coastal Supported Living CIC,Supported Other Accommodation - Private Contractors Payment,1002.56,0.00,COMMERCIAL SUPPLIER 
 07-12-2022,Adults,Quality Healthcare Solutions Ltd t/a Kare Plus Romford,Home Care - Private Contractors Payment,1004.66,0.00,COMMERCIAL SUPPLIER 
 09-12-2022,Adults,Cera Care Operations Ltd,Home Care - Private Contractors Payment,1005.65,0.00,COMMERCIAL SUPPLIER 
 05-12-2022,Adults,Prestige Care & Support Ltd,Home Care - Private Contractors Payment,1006.30,0.00,COMMERCIAL SUPPLIER 
 05-12-2022,Adults,Prestige Care & Support Ltd,Home Care - Private Contractors Payment,1006.30,0.00,COMMERCIAL SUPPLIER 
 09-12-2022,Adults,Independent Community Support Ltd t/a Wingletye Lodge ,Supported Other Accommodation - Private Contractors Payment,1008.00,0.00,COMMERCIAL SUPPLIER 
 09-12-2022,Adults,Personal Information � Redacted,Supported Other Accommodation - Private Contractors Payment,1008.00,0.00,INDIVIDUALS 
 06-12-2022,Adults,Home Sweet Home Care Ltd,Home Care - Private Contractors Payment,1009.91,0.00,COMMERCIAL SUPPLIER 
 05-12-2022,Adults,Prestige Care & Support Ltd,Home Care - Private Contractors Payment,1010.57,0.00,COMMERCIAL SUPPLIER 
 05-12-2022,Adults,Prestige Care & Support Ltd,Home Care - Private Contractors Payment,1013.19,0.00,COMMERCIAL SUPPLIER 
 08-12-2022,Adults,Home Support Services (Havering & Essex) Ltd,Home Care - Private Contractors Payment,1013.52,0.00,COMMERCIAL SUPPLIER 
 20-12-2022,Adults,Rosemont Care Limited,Home Care - Private Contractors Payment,1013.52,0.00,COMMERCIAL SUPPLIER 
 07-12-2022,Adults,Care-Away Ltd T/A Care Support,Home Care - Private Contractors Payment,1015.04,0.00,COMMERCIAL SUPPLIER 
 05-12-2022,Adults,Passion Tree Care Services Ltd,Home Care - Private Contractors Payment,1018.44,0.00,COMMERCIAL SUPPLIER 
 04-12-2022,Adults,Homestead Care Service,Home Care - Private Contractors Payment,1020.08,0.00,COMMERCIAL SUPPLIER 
 06-12-2022,Adults,Home Sweet Home Care Ltd,Home Care - Private Contractors Payment,1021.39,0.00,COMMERCIAL SUPPLIER 
 08-12-2022,Adults,Home Support Services (Havering & Essex) Ltd,Home Care - Private Contractors Payment,1023.03,0.00,COMMERCIAL SUPPLIER 
 03-12-2022,Adults,Personal Information � Redacted,Home Care - Private Contractors Payment,1023.36,0.00,INDIVIDUALS 
 05-12-2022,Adults,Outreach Support Services Ltd,Home Care - Private Contractors Payment,1023.36,0.00,COMMERCIAL SUPPLIER 
 05-12-2022,Adults,Outreach Support Services Ltd,Home Care - Private Contractors Payment,1023.36,0.00,COMMERCIAL SUPPLIER 
 08-12-2022,Adults,Home Support Services (Havering & Essex) Ltd,Home Care - Private Contractors Payment,1023.36,0.00,COMMERCIAL SUPPLIER 
 09-12-2022,Adults,Morepower Ltd t/a Aqs Homecare,Home Care - Private Contractors Payment,1023.36,0.00,COMMERCIAL SUPPLIER 
 08-12-2022,Adults,Home Support Services (Havering & Essex) Ltd,Home Care - Private Contractors Payment,1023.69,0.00,COMMERCIAL SUPPLIER 
 04-12-2022,Adults,Homestead Care Service,Home Care - Private Contractors Payment,1024.34,0.00,COMMERCIAL SUPPLIER 
 06-12-2022,Adults,Home Sweet Home Care Ltd,Home Care - Private Contractors Payment,1024.67,0.00,COMMERCIAL SUPPLIER 
 12-12-2022,Adults,John Stanleys Care Agency Ltd,Home Care - Private Contractors Payment,1025.00,0.00,COMMERCIAL SUPPLIER 
 19-12-2022,Adults,Trinity London Care Ltd,Daycare - Private Contractors Payment,1025.20,0.00,COMMERCIAL SUPPLIER 
 19-12-2022,Adults,Trinity London Care Ltd,Daycare - Private Contractors Payment,1025.20,0.00,COMMERCIAL SUPPLIER 
 19-12-2022,Adults,Trinity London Care Ltd,Daycare - Private Contractors Payment,1025.20,0.00,COMMERCIAL SUPPLIER 
 05-12-2022,Adults,Tapestry_a.,Daycare - Private Contractors Payment,1026.00,0.00,COMMERCIAL SUPPLIER 
 06-12-2022,Adults,Hospiva Care & Associates Agency Ltd_a,Home Care - Private Contractors Payment,1026.97,0.00,COMMERCIAL SUPPLIER 
 09-12-2022,Adults,Ebury Court_a,Residential Placements - Private Contractors Payment,1028.57,0.00,COMMERCIAL SUPPLIER 
 14-12-2022,Adults,Matrix SCM Ltd,Agency Staff,1028.97,0.00,COMMERCIAL SUPPLIER 
 21-12-2022,Adults,Matrix SCM Ltd,Agency Staff,1031.37,0.00,COMMERCIAL SUPPLIER 
 21-12-2022,Adults,Matrix SCM Ltd,Agency Staff,1034.40,0.00,COMMERCIAL SUPPLIER 
 21-12-2022,Adults,Matrix SCM Ltd,Agency Staff,1034.40,0.00,COMMERCIAL SUPPLIER 
 14-12-2022,Adults,Matrix SCM Ltd,Agency Staff,1034.44,0.00,COMMERCIAL SUPPLIER 
 09-12-2022,Adults,Outlook Care - 4 Peel Way,Supported Other Accommodation - Private Contractors Payment,1035.08,0.00,COMMERCIAL SUPPLIER 
 04-12-2022,Adults,Homestead Care Service,Home Care - Private Contractors Payment,1036.48,0.00,COMMERCIAL SUPPLIER 
 07-12-2022,Adults,Matrix SCM Ltd,Agency Staff,1036.56,0.00,COMMERCIAL SUPPLIER 
 04-12-2022,Adults,Homestead Care Service,Home Care - Private Contractors Payment,1036.81,0.00,COMMERCIAL SUPPLIER 
 08-12-2022,Adults,Home Support Services (Havering & Essex) Ltd,Home Care - Private Contractors Payment,1037.46,0.00,COMMERCIAL SUPPLIER 
 08-12-2022,Adults,Home Support Services (Havering & Essex) Ltd,Home Care - Private Contractors Payment,1037.46,0.00,COMMERCIAL SUPPLIER 
 04-12-2022,Adults,Homestead Care Service,Home Care - Private Contractors Payment,1038.45,0.00,COMMERCIAL SUPPLIER 
 21-12-2022,Adults,Matrix SCM Ltd,Agency Staff,1039.64,0.00,COMMERCIAL SUPPLIER 
 09-12-2022,Adults,The Cottage Residential Care Home,Residential Placements - Private Contractors Payment,1040.28,0.00,COMMERCIAL SUPPLIER 
 08-12-2022,Adults,Home Support Services (Havering & Essex) Ltd,Home Care - Private Contractors Payment,1043.37,0.00,COMMERCIAL SUPPLIER 
 05-12-2022,Adults,Prestige Care & Support Ltd,Home Care - Private Contractors Payment,1044.35,0.00,COMMERCIAL SUPPLIER 
 04-12-2022,Adults,Homestead Care Service,Home Care - Private Contractors Payment,1044.68,0.00,COMMERCIAL SUPPLIER 
 09-12-2022,Adults,Lodge Group Care UK Ltd,Home Care - Private Contractors Payment,1044.68,0.00,COMMERCIAL SUPPLIER 
 07-12-2022,Adults,Quality Healthcare Solutions Ltd t/a Kare Plus Romford,Home Care - Private Contractors Payment,1045.34,0.00,COMMERCIAL SUPPLIER 
 21-12-2022,Adults,Matrix SCM Ltd,Agency Staff,1045.52,0.00,COMMERCIAL SUPPLIER 
 29-12-2022,Adults,Matrix SCM Ltd,Agency Staff,1045.52,0.00,COMMERCIAL SUPPLIER 
 09-12-2022,Adults,Care Management Group Ltd - The Ridgeway,Supported Other Accommodation - Private Contractors Payment,1047.76,0.00,COMMERCIAL SUPPLIER 
 12-12-2022,Adults,Prior Care Ltd_a,Home Care - Private Contractors Payment,1047.96,0.00,COMMERCIAL SUPPLIER 
 07-12-2022,Adults,Care-Away Ltd T/A Care Support,Home Care - Private Contractors Payment,1048.32,0.00,COMMERCIAL SUPPLIER 
 07-12-2022,Adults,Care-Away Ltd T/A Care Support,Home Care - Private Contractors Payment,1048.32,0.00,COMMERCIAL SUPPLIER 
 09-12-2022,Adults,Cera Care Operations Ltd,Home Care - Private Contractors Payment,1049.27,0.00,COMMERCIAL SUPPLIER 
 07-12-2022,Adults,Matrix SCM Ltd,Agency Staff,1049.44,0.00,COMMERCIAL SUPPLIER 
 14-12-2022,Adults,Matrix SCM Ltd,Agency Staff,1049.44,0.00,COMMERCIAL SUPPLIER 
 09-12-2022,Adults,Protecthand Care Ltd ,Supported Other Accommodation - Private Contractors Payment,1050.00,0.00,COMMERCIAL SUPPLIER 
 04-12-2022,Adults,Homestead Care Service,Home Care - Private Contractors Payment,1051.90,0.00,COMMERCIAL SUPPLIER 
 04-12-2022,Adults,Homestead Care Service,Home Care - Private Contractors Payment,1051.90,0.00,COMMERCIAL SUPPLIER 
 04-12-2022,Adults,Homestead Care Service,Home Care - Private Contractors Payment,1051.90,0.00,COMMERCIAL SUPPLIER 
 08-12-2022,Adults,Home Support Services (Havering & Essex) Ltd,Home Care - Private Contractors Payment,1052.88,0.00,COMMERCIAL SUPPLIER 
 12-12-2022,Adults,Prior Care Ltd_a,Home Care - Private Contractors Payment,1052.88,0.00,COMMERCIAL SUPPLIER 
 08-12-2022,Adults,Home Support Services (Havering & Essex) Ltd,Home Care - Private Contractors Payment,1053.21,0.00,COMMERCIAL SUPPLIER 
 04-12-2022,Adults,Homestead Care Service,Home Care - Private Contractors Payment,1054.19,0.00,COMMERCIAL SUPPLIER 
 04-12-2022,Adults,Homestead Care Service,Home Care - Private Contractors Payment,1055.18,0.00,COMMERCIAL SUPPLIER 
 04-12-2022,Adults,Homestead Care Service,Home Care - Private Contractors Payment,1055.18,0.00,COMMERCIAL SUPPLIER 
 04-12-2022,Adults,Homestead Care Service,Home Care - Private Contractors Payment,1056.16,0.00,COMMERCIAL SUPPLIER 
 09-12-2022,Adults,Outreach Support Services Ltd,Supported Other Accommodation - Private Contractors Payment,1058.40,0.00,COMMERCIAL SUPPLIER 
 12-12-2022,Adults,John Stanleys Care Agency Ltd,Home Care - Private Contractors Payment,1061.08,0.00,COMMERCIAL SUPPLIER 
 04-12-2022,Adults,Homestead Care Service,Home Care - Private Contractors Payment,1062.06,0.00,COMMERCIAL SUPPLIER 
 04-12-2022,Adults,Homestead Care Service,Home Care - Private Contractors Payment,1062.72,0.00,COMMERCIAL SUPPLIER 
 08-12-2022,Adults,Inna Care Ltd,Home Care - Private Contractors Payment,1062.72,0.00,COMMERCIAL SUPPLIER 
 09-12-2022,Adults,Lodge Lane Care Home Limited,Residential Placements - Private Contractors Payment,1064.00,0.00,COMMERCIAL SUPPLIER 
 04-12-2022,Adults,Homestead Care Service,Home Care - Private Contractors Payment,1064.03,0.00,COMMERCIAL SUPPLIER 
 06-12-2022,Adults,Home Sweet Home Care Ltd,Home Care - Private Contractors Payment,1065.02,0.00,COMMERCIAL SUPPLIER 
 06-12-2022,Adults,Home Sweet Home Care Ltd,Home Care - Private Contractors Payment,1065.02,0.00,COMMERCIAL SUPPLIER 
 09-12-2022,Adults,HC-One Oval Ltd - The Hornchurch Nursing Centre,Nursing Homes - Private Contractors Payment,1065.43,0.00,COMMERCIAL SUPPLIER 
 06-12-2022,Adults,Hospiva Care & Associates Agency Ltd_a,Home Care - Private Contractors Payment,1066.66,0.00,COMMERCIAL SUPPLIER 
 08-12-2022,Adults,Home Support Services (Havering & Essex) Ltd,Home Care - Private Contractors Payment,1069.28,0.00,COMMERCIAL SUPPLIER 
 04-12-2022,Adults,Homestead Care Service,Home Care - Private Contractors Payment,1069.94,0.00,COMMERCIAL SUPPLIER 
 05-12-2022,Adults,Prestige Care & Support Ltd,Home Care - Private Contractors Payment,1070.59,0.00,COMMERCIAL SUPPLIER 
 07-12-2022,Adults,Anytime Care 2020_a,Home Care - Private Contractors Payment,1071.25,0.00,COMMERCIAL SUPPLIER 
 05-12-2022,Adults,Prestige Care & Support Ltd,Home Care - Private Contractors Payment,1071.58,0.00,COMMERCIAL SUPPLIER 
 06-12-2022,Adults,Home Sweet Home Care Ltd,Home Care - Private Contractors Payment,1071.58,0.00,COMMERCIAL SUPPLIER 
 04-12-2022,Adults,Homestead Care Service,Home Care - Private Contractors Payment,1072.56,0.00,COMMERCIAL SUPPLIER 
 06-12-2022,Adults,Home Sweet Home Care Ltd,Home Care - Private Contractors Payment,1074.20,0.00,COMMERCIAL SUPPLIER 
 06-12-2022,Adults,Home Sweet Home Care Ltd,Home Care - Private Contractors Payment,1074.53,0.00,COMMERCIAL SUPPLIER 
 06-12-2022,Adults,Home Sweet Home Care Ltd,Home Care - Private Contractors Payment,1074.86,0.00,COMMERCIAL SUPPLIER 
 06-12-2022,Adults,Home Sweet Home Care Ltd,Home Care - Private Contractors Payment,1075.51,0.00,COMMERCIAL SUPPLIER 
 06-12-2022,Adults,Cera Care Operations Ltd,Home Care - Private Contractors Payment,1076.82,0.00,COMMERCIAL SUPPLIER 
 14-12-2022,Adults,Matrix SCM Ltd,Agency Staff,1077.50,0.00,COMMERCIAL SUPPLIER 
 21-12-2022,Adults,Matrix SCM Ltd,Agency Staff,1078.13,0.00,COMMERCIAL SUPPLIER 
 08-12-2022,Adults,Home Support Services (Havering & Essex) Ltd,Home Care - Private Contractors Payment,1078.46,0.00,COMMERCIAL SUPPLIER 
 09-12-2022,Adults,Morepower Ltd t/a Aqs Homecare,Home Care - Private Contractors Payment,1079.12,0.00,COMMERCIAL SUPPLIER 
 14-12-2022,Adults,Matrix SCM Ltd,Agency Staff,1079.14,0.00,COMMERCIAL SUPPLIER 
 29-12-2022,Adults,Matrix SCM Ltd,Agency Staff,1079.46,0.00,COMMERCIAL SUPPLIER 
 04-12-2022,Adults,Homestead Care Service,Home Care - Private Contractors Payment,1081.09,0.00,COMMERCIAL SUPPLIER 
 04-12-2022,Adults,Homestead Care Service,Home Care - Private Contractors Payment,1081.74,0.00,COMMERCIAL SUPPLIER 
 09-12-2022,Adults,Lodge Group Care UK Ltd,Home Care - Private Contractors Payment,1081.74,0.00,COMMERCIAL SUPPLIER 
 04-12-2022,Adults,Homestead Care Service,Home Care - Private Contractors Payment,1082.40,0.00,COMMERCIAL SUPPLIER 
 04-12-2022,Adults,Homestead Care Service,Home Care - Private Contractors Payment,1082.73,0.00,COMMERCIAL SUPPLIER 
 04-12-2022,Adults,Homestead Care Service,Home Care - Private Contractors Payment,1084.37,0.00,COMMERCIAL SUPPLIER 
 06-12-2022,Adults,Home Sweet Home Care Ltd,Home Care - Private Contractors Payment,1084.37,0.00,COMMERCIAL SUPPLIER 
 04-12-2022,Adults,Homestead Care Service,Home Care - Private Contractors Payment,1085.02,0.00,COMMERCIAL SUPPLIER 
 08-12-2022,Adults,Home Support Services (Havering & Essex) Ltd,Home Care - Private Contractors Payment,1085.02,0.00,COMMERCIAL SUPPLIER 
 08-12-2022,Adults,Home Support Services (Havering & Essex) Ltd,Home Care - Private Contractors Payment,1085.02,0.00,COMMERCIAL SUPPLIER 
 12-12-2022,Adults,Prior Care Ltd_a,Home Care - Private Contractors Payment,1086.66,0.00,COMMERCIAL SUPPLIER 
 06-12-2022,Adults,Hospiva Care & Associates Agency Ltd_a,Home Care - Private Contractors Payment,1087.65,0.00,COMMERCIAL SUPPLIER 
 08-12-2022,Adults,Home Support Services (Havering & Essex) Ltd,Home Care - Private Contractors Payment,1087.65,0.00,COMMERCIAL SUPPLIER 
 09-12-2022,Adults,Morepower Ltd t/a Aqs Homecare,Home Care - Private Contractors Payment,1089.29,0.00,COMMERCIAL SUPPLIER 
 08-12-2022,Adults,Home Support Services (Havering & Essex) Ltd,Home Care - Private Contractors Payment,1089.94,0.00,COMMERCIAL SUPPLIER 
 09-12-2022,Adults,Morepower Ltd t/a Aqs Homecare,Home Care - Private Contractors Payment,1089.94,0.00,COMMERCIAL SUPPLIER 
 09-12-2022,Adults,Lodge Group Care UK Ltd,Home Care - Private Contractors Payment,1090.93,0.00,COMMERCIAL SUPPLIER 
 04-12-2022,Adults,Homestead Care Service,Home Care - Private Contractors Payment,1091.26,0.00,COMMERCIAL SUPPLIER 
 09-12-2022,Adults,Masumin Ltd t/s Abbeleigh House,Respite Care - Private Contractors Payment,1092.14,0.00,COMMERCIAL SUPPLIER 
 05-12-2022,Adults,Prestige Care & Support Ltd,Home Care - Private Contractors Payment,1092.24,0.00,COMMERCIAL SUPPLIER 
 09-12-2022,Adults,Lodge Group Care UK Ltd,Home Care - Private Contractors Payment,1092.24,0.00,COMMERCIAL SUPPLIER 
 12-12-2022,Adults,John Stanleys Care Agency Ltd,Home Care - Private Contractors Payment,1092.24,0.00,COMMERCIAL SUPPLIER 
 12-12-2022,Adults,Prior Care Ltd_a,Home Care - Private Contractors Payment,1092.24,0.00,COMMERCIAL SUPPLIER 
 06-12-2022,Adults,Home Sweet Home Care Ltd,Home Care - Private Contractors Payment,1092.90,0.00,COMMERCIAL SUPPLIER 
 06-12-2022,Adults,Home Sweet Home Care Ltd,Home Care - Private Contractors Payment,1092.90,0.00,COMMERCIAL SUPPLIER 
 09-12-2022,Adults,Morepower Ltd t/a Aqs Homecare,Home Care - Private Contractors Payment,1093.22,0.00,COMMERCIAL SUPPLIER 
 06-12-2022,Adults,Home Sweet Home Care Ltd,Home Care - Private Contractors Payment,1093.88,0.00,COMMERCIAL SUPPLIER 
 09-12-2022,Adults,Lodge Group Care UK Ltd,Home Care - Private Contractors Payment,1094.21,0.00,COMMERCIAL SUPPLIER 
 07-12-2022,Adults,Anytime Care 2020_a,Home Care - Private Contractors Payment,1094.86,0.00,COMMERCIAL SUPPLIER 
 06-12-2022,Adults,Home Sweet Home Care Ltd,Home Care - Private Contractors Payment,1095.19,0.00,COMMERCIAL SUPPLIER 
 06-12-2022,Adults,Home Sweet Home Care Ltd,Home Care - Private Contractors Payment,1095.52,0.00,COMMERCIAL SUPPLIER 
 09-12-2022,Adults,Lodge Group Care UK Ltd,Home Care - Private Contractors Payment,1095.85,0.00,COMMERCIAL SUPPLIER 
 04-12-2022,Adults,Homestead Care Service,Home Care - Private Contractors Payment,1097.16,0.00,COMMERCIAL SUPPLIER 
 06-12-2022,Adults,Home Sweet Home Care Ltd,Home Care - Private Contractors Payment,1097.16,0.00,COMMERCIAL SUPPLIER 
 04-12-2022,Adults,Homestead Care Service,Home Care - Private Contractors Payment,1097.49,0.00,COMMERCIAL SUPPLIER 
 08-12-2022,Adults,Home Support Services (Havering & Essex) Ltd,Home Care - Private Contractors Payment,1097.82,0.00,COMMERCIAL SUPPLIER 
 05-12-2022,Adults,Prestige Care & Support Ltd,Home Care - Private Contractors Payment,1098.14,0.00,COMMERCIAL SUPPLIER 
 05-12-2022,Adults,Prestige Care & Support Ltd,Home Care - Private Contractors Payment,1098.14,0.00,COMMERCIAL SUPPLIER 
 07-12-2022,Adults,Quality Healthcare Solutions Ltd t/a Kare Plus Romford,Home Care - Private Contractors Payment,1098.14,0.00,COMMERCIAL SUPPLIER 
 06-12-2022,Adults,Home Sweet Home Care Ltd,Home Care - Private Contractors Payment,1098.47,0.00,COMMERCIAL SUPPLIER 
 07-12-2022,Adults,Quality Healthcare Solutions Ltd t/a Kare Plus Romford,Home Care - Private Contractors Payment,1099.13,0.00,COMMERCIAL SUPPLIER 
 09-12-2022,Adults,Lodge Group Care UK Ltd,Home Care - Private Contractors Payment,1099.13,0.00,COMMERCIAL SUPPLIER 
 06-12-2022,Adults,Home Sweet Home Care Ltd,Home Care - Private Contractors Payment,1099.46,0.00,COMMERCIAL SUPPLIER 
 09-12-2022,Adults,Lodge Group Care UK Ltd,Home Care - Private Contractors Payment,1099.46,0.00,COMMERCIAL SUPPLIER 
 09-12-2022,Adults,Oakley Carehomes Ltd t/a Abbey Care Home,Respite Care - Private Contractors Payment,1100.00,0.00,COMMERCIAL SUPPLIER 
 09-12-2022,Adults,Ladyville Lodge_a,Respite Care - Private Contractors Payment,1100.00,0.00,COMMERCIAL SUPPLIER 
 09-12-2022,Adults,Ladyville Lodge_a,Respite Care - Private Contractors Payment,1100.00,0.00,COMMERCIAL SUPPLIER 
 09-12-2022,Adults,Lodge Group Care UK Ltd,Home Care - Private Contractors Payment,1100.44,0.00,COMMERCIAL SUPPLIER 
 14-12-2022,Adults,Matrix SCM Ltd,Agency Staff,1101.24,0.00,COMMERCIAL SUPPLIER 
 03-12-2022,Adults,Personal Information � Redacted,Home Care - Private Contractors Payment,1102.08,0.00,INDIVIDUALS 
 03-12-2022,Adults,Personal Information � Redacted,Home Care - Private Contractors Payment,1102.08,0.00,INDIVIDUALS 
 03-12-2022,Adults,Personal Information � Redacted,Home Care - Private Contractors Payment,1102.08,0.00,INDIVIDUALS 
 03-12-2022,Adults,Personal Information � Redacted,Home Care - Private Contractors Payment,1102.08,0.00,INDIVIDUALS 
 05-12-2022,Adults,IJB Healthcare Ltd,Home Care - Private Contractors Payment,1102.08,0.00,COMMERCIAL SUPPLIER 
 05-12-2022,Adults,IJB Healthcare Ltd,Home Care - Private Contractors Payment,1102.08,0.00,COMMERCIAL SUPPLIER 
 05-12-2022,Adults,Prestige Care & Support Ltd,Home Care - Private Contractors Payment,1102.08,0.00,COMMERCIAL SUPPLIER 
 05-12-2022,Adults,Prestige Care & Support Ltd,Home Care - Private Contractors Payment,1102.08,0.00,COMMERCIAL SUPPLIER 
 05-12-2022,Adults,Prestige Care & Support Ltd,Home Care - Private Contractors Payment,1102.08,0.00,COMMERCIAL SUPPLIER 
 05-12-2022,Adults,Outreach Support Services Ltd,Home Care - Private Contractors Payment,1102.08,0.00,COMMERCIAL SUPPLIER 
 05-12-2022,Adults,Outreach Support Services Ltd,Home Care - Private Contractors Payment,1102.08,0.00,COMMERCIAL SUPPLIER 
 05-12-2022,Adults,Outreach Support Services Ltd,Home Care - Private Contractors Payment,1102.08,0.00,COMMERCIAL SUPPLIER 
 05-12-2022,Adults,Outreach Support Services Ltd,Home Care - Private Contractors Payment,1102.08,0.00,COMMERCIAL SUPPLIER 
 05-12-2022,Adults,Passion Tree Care Services Ltd,Home Care - Private Contractors Payment,1102.08,0.00,COMMERCIAL SUPPLIER 
 05-12-2022,Adults,Passion Tree Care Services Ltd,Home Care - Private Contractors Payment,1102.08,0.00,COMMERCIAL SUPPLIER 
 05-12-2022,Adults,Passion Tree Care Services Ltd,Home Care - Private Contractors Payment,1102.08,0.00,COMMERCIAL SUPPLIER 
 06-12-2022,Adults,Home Sweet Home Care Ltd,Home Care - Private Contractors Payment,1102.08,0.00,COMMERCIAL SUPPLIER 
 06-12-2022,Adults,London Homecare Ltd,Home Care - Private Contractors Payment,1102.08,0.00,COMMERCIAL SUPPLIER 
 08-12-2022,Adults,Home Support Services (Havering & Essex) Ltd,Home Care - Private Contractors Payment,1102.08,0.00,COMMERCIAL SUPPLIER 
 08-12-2022,Adults,Home Support Services (Havering & Essex) Ltd,Home Care - Private Contractors Payment,1102.08,0.00,COMMERCIAL SUPPLIER 
 08-12-2022,Adults,Home Support Services (Havering & Essex) Ltd,Home Care - Private Contractors Payment,1102.08,0.00,COMMERCIAL SUPPLIER 
 08-12-2022,Adults,Home Support Services (Havering & Essex) Ltd,Home Care - Private Contractors Payment,1102.08,0.00,COMMERCIAL SUPPLIER 
 08-12-2022,Adults,Home Support Services (Havering & Essex) Ltd,Home Care - Private Contractors Payment,1102.08,0.00,COMMERCIAL SUPPLIER 
 08-12-2022,Adults,Home Support Services (Havering & Essex) Ltd,Home Care - Private Contractors Payment,1102.08,0.00,COMMERCIAL SUPPLIER 
 08-12-2022,Adults,Home Support Services (Havering & Essex) Ltd,Home Care - Private Contractors Payment,1102.08,0.00,COMMERCIAL SUPPLIER 
 08-12-2022,Adults,Home Support Services (Havering & Essex) Ltd,Home Care - Private Contractors Payment,1102.08,0.00,COMMERCIAL SUPPLIER 
 08-12-2022,Adults,Home Support Services (Havering & Essex) Ltd,Home Care - Private Contractors Payment,1102.08,0.00,COMMERCIAL SUPPLIER 
 08-12-2022,Adults,Inna Care Ltd,Home Care - Private Contractors Payment,1102.08,0.00,COMMERCIAL SUPPLIER 
 08-12-2022,Adults,Inna Care Ltd,Home Care - Private Contractors Payment,1102.08,0.00,COMMERCIAL SUPPLIER 
 08-12-2022,Adults,Inna Care Ltd,Home Care - Private Contractors Payment,1102.08,0.00,COMMERCIAL SUPPLIER 
 08-12-2022,Adults,Inna Care Ltd,Home Care - Private Contractors Payment,1102.08,0.00,COMMERCIAL SUPPLIER 
 08-12-2022,Adults,Inna Care Ltd,Home Care - Private Contractors Payment,1102.08,0.00,COMMERCIAL SUPPLIER 
 08-12-2022,Adults,Inna Care Ltd,Home Care - Private Contractors Payment,1102.08,0.00,COMMERCIAL SUPPLIER 
 08-12-2022,Adults,Inna Care Ltd,Home Care - Private Contractors Payment,1102.08,0.00,COMMERCIAL SUPPLIER 
 08-12-2022,Adults,Inna Care Ltd,Home Care - Private Contractors Payment,1102.08,0.00,COMMERCIAL SUPPLIER 
 09-12-2022,Adults,Lodge Group Care UK Ltd,Home Care - Private Contractors Payment,1102.08,0.00,COMMERCIAL SUPPLIER 
 09-12-2022,Adults,Lodge Group Care UK Ltd,Home Care - Private Contractors Payment,1102.08,0.00,COMMERCIAL SUPPLIER 
 09-12-2022,Adults,Lodge Group Care UK Ltd,Home Care - Private Contractors Payment,1102.08,0.00,COMMERCIAL SUPPLIER 
 12-12-2022,Adults,John Stanleys Care Agency Ltd,Home Care - Private Contractors Payment,1102.08,0.00,COMMERCIAL SUPPLIER 
 12-12-2022,Adults,Prior Care Ltd_a,Home Care - Private Contractors Payment,1102.08,0.00,COMMERCIAL SUPPLIER 
 12-12-2022,Adults,Prior Care Ltd_a,Home Care - Private Contractors Payment,1102.08,0.00,COMMERCIAL SUPPLIER 
 12-12-2022,Adults,Prior Care Ltd_a,Home Care - Private Contractors Payment,1102.08,0.00,COMMERCIAL SUPPLIER 
 12-12-2022,Adults,Crystalize Care Services,Home Care - Private Contractors Payment,1102.08,0.00,COMMERCIAL SUPPLIER 
 12-12-2022,Adults,Crystalize Care Services,Home Care - Private Contractors Payment,1102.08,0.00,COMMERCIAL SUPPLIER 
 12-12-2022,Adults,Crystalize Care Services,Home Care - Private Contractors Payment,1102.08,0.00,COMMERCIAL SUPPLIER 
 12-12-2022,Adults,Crystalize Care Services,Home Care - Private Contractors Payment,1102.08,0.00,COMMERCIAL SUPPLIER 
 20-12-2022,Adults,Rosemont Care Limited,Home Care - Private Contractors Payment,1102.08,0.00,COMMERCIAL SUPPLIER 
 20-12-2022,Adults,Rosemont Care Limited,Home Care - Private Contractors Payment,1102.08,0.00,COMMERCIAL SUPPLIER 
 20-12-2022,Adults,Rosemont Care Limited,Home Care - Private Contractors Payment,1102.08,0.00,COMMERCIAL SUPPLIER 
 20-12-2022,Adults,Rosemont Care Limited,Home Care - Private Contractors Payment,1102.08,0.00,COMMERCIAL SUPPLIER 
 20-12-2022,Adults,Rosemont Care Limited,Home Care - Private Contractors Payment,1102.08,0.00,COMMERCIAL SUPPLIER 
 20-12-2022,Adults,Rosemont Care Limited,Home Care - Private Contractors Payment,1102.08,0.00,COMMERCIAL SUPPLIER 
 20-12-2022,Adults,Rosemont Care Limited,Home Care - Private Contractors Payment,1102.08,0.00,COMMERCIAL SUPPLIER 
 20-12-2022,Adults,Rosemont Care Limited,Home Care - Private Contractors Payment,1102.08,0.00,COMMERCIAL SUPPLIER 
 05-12-2022,Adults,Prestige Care & Support Ltd,Home Care - Private Contractors Payment,1102.41,0.00,COMMERCIAL SUPPLIER 
 08-12-2022,Adults,Home Support Services (Havering & Essex) Ltd,Home Care - Private Contractors Payment,1102.41,0.00,COMMERCIAL SUPPLIER 
 08-12-2022,Adults,Home Support Services (Havering & Essex) Ltd,Home Care - Private Contractors Payment,1102.41,0.00,COMMERCIAL SUPPLIER 
 08-12-2022,Adults,Home Support Services (Havering & Essex) Ltd,Home Care - Private Contractors Payment,1102.41,0.00,COMMERCIAL SUPPLIER 
 09-12-2022,Adults,Lodge Group Care UK Ltd,Home Care - Private Contractors Payment,1102.41,0.00,COMMERCIAL SUPPLIER 
 12-12-2022,Adults,Prior Care Ltd_a,Home Care - Private Contractors Payment,1102.41,0.00,COMMERCIAL SUPPLIER 
 04-12-2022,Adults,Homestead Care Service,Home Care - Private Contractors Payment,1102.74,0.00,COMMERCIAL SUPPLIER 
 08-12-2022,Adults,Home Support Services (Havering & Essex) Ltd,Home Care - Private Contractors Payment,1102.74,0.00,COMMERCIAL SUPPLIER 
 09-12-2022,Adults,Lodge Group Care UK Ltd,Home Care - Private Contractors Payment,1102.74,0.00,COMMERCIAL SUPPLIER 
 09-12-2022,Adults,Lodge Group Care UK Ltd,Home Care - Private Contractors Payment,1102.74,0.00,COMMERCIAL SUPPLIER 
 08-12-2022,Adults,Home Support Services (Havering & Essex) Ltd,Home Care - Private Contractors Payment,1103.06,0.00,COMMERCIAL SUPPLIER 
 08-12-2022,Adults,Home Support Services (Havering & Essex) Ltd,Home Care - Private Contractors Payment,1103.06,0.00,COMMERCIAL SUPPLIER 
 12-12-2022,Adults,Prior Care Ltd_a,Home Care - Private Contractors Payment,1103.06,0.00,COMMERCIAL SUPPLIER 
 08-12-2022,Adults,Home Support Services (Havering & Essex) Ltd,Home Care - Private Contractors Payment,1103.39,0.00,COMMERCIAL SUPPLIER 
 06-12-2022,Adults,Home Sweet Home Care Ltd,Home Care - Private Contractors Payment,1104.05,0.00,COMMERCIAL SUPPLIER 
 08-12-2022,Adults,Home Support Services (Havering & Essex) Ltd,Home Care - Private Contractors Payment,1104.05,0.00,COMMERCIAL SUPPLIER 
 08-12-2022,Adults,Home Support Services (Havering & Essex) Ltd,Home Care - Private Contractors Payment,1104.05,0.00,COMMERCIAL SUPPLIER 
 09-12-2022,Adults,Lodge Group Care UK Ltd,Home Care - Private Contractors Payment,1104.05,0.00,COMMERCIAL SUPPLIER 
 06-12-2022,Adults,Home Sweet Home Care Ltd,Home Care - Private Contractors Payment,1104.38,0.00,COMMERCIAL SUPPLIER 
 06-12-2022,Adults,Home Sweet Home Care Ltd,Home Care - Private Contractors Payment,1104.38,0.00,COMMERCIAL SUPPLIER 
 08-12-2022,Adults,Home Support Services (Havering & Essex) Ltd,Home Care - Private Contractors Payment,1104.38,0.00,COMMERCIAL SUPPLIER 
 09-12-2022,Adults,Cera Care Operations Ltd,Home Care - Private Contractors Payment,1104.38,0.00,COMMERCIAL SUPPLIER 
 08-12-2022,Adults,Home Support Services (Havering & Essex) Ltd,Home Care - Private Contractors Payment,1104.70,0.00,COMMERCIAL SUPPLIER 
 08-12-2022,Adults,Home Support Services (Havering & Essex) Ltd,Home Care - Private Contractors Payment,1104.70,0.00,COMMERCIAL SUPPLIER 
 04-12-2022,Adults,Homestead Care Service,Home Care - Private Contractors Payment,1105.03,0.00,COMMERCIAL SUPPLIER 
 09-12-2022,Adults,Cera Care Operations Ltd,Home Care - Private Contractors Payment,1105.69,0.00,COMMERCIAL SUPPLIER 
 08-12-2022,Adults,Home Support Services (Havering & Essex) Ltd,Home Care - Private Contractors Payment,1106.02,0.00,COMMERCIAL SUPPLIER 
 08-12-2022,Adults,Home Support Services (Havering & Essex) Ltd,Home Care - Private Contractors Payment,1106.02,0.00,COMMERCIAL SUPPLIER 
 09-12-2022,Adults,Lodge Group Care UK Ltd,Home Care - Private Contractors Payment,1106.02,0.00,COMMERCIAL SUPPLIER 
 09-12-2022,Adults,Lodge Group Care UK Ltd,Home Care - Private Contractors Payment,1106.34,0.00,COMMERCIAL SUPPLIER 
 12-12-2022,Adults,Prior Care Ltd_a,Home Care - Private Contractors Payment,1106.34,0.00,COMMERCIAL SUPPLIER 
 12-12-2022,Adults,Prior Care Ltd_a,Home Care - Private Contractors Payment,1106.34,0.00,COMMERCIAL SUPPLIER 
 08-12-2022,Adults,Home Support Services (Havering & Essex) Ltd,Home Care - Private Contractors Payment,1106.67,0.00,COMMERCIAL SUPPLIER 
 08-12-2022,Adults,Home Support Services (Havering & Essex) Ltd,Home Care - Private Contractors Payment,1107.00,0.00,COMMERCIAL SUPPLIER 
 09-12-2022,Adults,Lodge Group Care UK Ltd,Home Care - Private Contractors Payment,1107.00,0.00,COMMERCIAL SUPPLIER 
 06-12-2022,Adults,Home Sweet Home Care Ltd,Home Care - Private Contractors Payment,1107.33,0.00,COMMERCIAL SUPPLIER 
 09-12-2022,Adults,Lodge Group Care UK Ltd,Home Care - Private Contractors Payment,1107.33,0.00,COMMERCIAL SUPPLIER 
 04-12-2022,Adults,Homestead Care Service,Home Care - Private Contractors Payment,1107.98,0.00,COMMERCIAL SUPPLIER 
 06-12-2022,Adults,Home Sweet Home Care Ltd,Home Care - Private Contractors Payment,1107.98,0.00,COMMERCIAL SUPPLIER 
 08-12-2022,Adults,Home Support Services (Havering & Essex) Ltd,Home Care - Private Contractors Payment,1107.98,0.00,COMMERCIAL SUPPLIER 
 08-12-2022,Adults,Home Support Services (Havering & Essex) Ltd,Home Care - Private Contractors Payment,1107.98,0.00,COMMERCIAL SUPPLIER 
 09-12-2022,Adults,Morepower Ltd t/a Aqs Homecare,Home Care - Private Contractors Payment,1107.98,0.00,COMMERCIAL SUPPLIER 
 14-12-2022,Adults,Matrix SCM Ltd,Agency Staff,1108.22,0.00,COMMERCIAL SUPPLIER 
 08-12-2022,Adults,Home Support Services (Havering & Essex) Ltd,Home Care - Private Contractors Payment,1108.31,0.00,COMMERCIAL SUPPLIER 
 09-12-2022,Adults,Lodge Group Care UK Ltd,Home Care - Private Contractors Payment,1108.31,0.00,COMMERCIAL SUPPLIER 
 08-12-2022,Adults,Home Support Services (Havering & Essex) Ltd,Home Care - Private Contractors Payment,1108.64,0.00,COMMERCIAL SUPPLIER 
 07-12-2022,Adults,Quality Healthcare Solutions Ltd t/a Kare Plus Romford,Home Care - Private Contractors Payment,1108.97,0.00,COMMERCIAL SUPPLIER 
 09-12-2022,Adults,Lodge Group Care UK Ltd,Home Care - Private Contractors Payment,1108.97,0.00,COMMERCIAL SUPPLIER 
 09-12-2022,Adults,Lodge Group Care UK Ltd,Home Care - Private Contractors Payment,1108.97,0.00,COMMERCIAL SUPPLIER 
 04-12-2022,Adults,Homestead Care Service,Home Care - Private Contractors Payment,1109.62,0.00,COMMERCIAL SUPPLIER 
 05-12-2022,Adults,Prestige Care & Support Ltd,Home Care - Private Contractors Payment,1109.62,0.00,COMMERCIAL SUPPLIER 
 09-12-2022,Adults,Lodge Group Care UK Ltd,Home Care - Private Contractors Payment,1109.62,0.00,COMMERCIAL SUPPLIER 
 12-12-2022,Adults,John Stanleys Care Agency Ltd,Home Care - Private Contractors Payment,1109.62,0.00,COMMERCIAL SUPPLIER 
 04-12-2022,Adults,Homestead Care Service,Home Care - Private Contractors Payment,1109.95,0.00,COMMERCIAL SUPPLIER 
 08-12-2022,Adults,Home Support Services (Havering & Essex) Ltd,Home Care - Private Contractors Payment,1109.95,0.00,COMMERCIAL SUPPLIER 
 09-12-2022,Adults,Lodge Group Care UK Ltd,Home Care - Private Contractors Payment,1110.28,0.00,COMMERCIAL SUPPLIER 
 09-12-2022,Adults,Lodge Group Care UK Ltd,Home Care - Private Contractors Payment,1110.28,0.00,COMMERCIAL SUPPLIER 
 04-12-2022,Adults,Homestead Care Service,Home Care - Private Contractors Payment,1110.61,0.00,COMMERCIAL SUPPLIER 
 08-12-2022,Adults,Home Support Services (Havering & Essex) Ltd,Home Care - Private Contractors Payment,1110.61,0.00,COMMERCIAL SUPPLIER 
 08-12-2022,Adults,Home Support Services (Havering & Essex) Ltd,Home Care - Private Contractors Payment,1110.61,0.00,COMMERCIAL SUPPLIER 
 08-12-2022,Adults,Home Support Services (Havering & Essex) Ltd,Home Care - Private Contractors Payment,1110.94,0.00,COMMERCIAL SUPPLIER 
 08-12-2022,Adults,Home Support Services (Havering & Essex) Ltd,Home Care - Private Contractors Payment,1111.92,0.00,COMMERCIAL SUPPLIER 
 09-12-2022,Adults,Lodge Group Care UK Ltd,Home Care - Private Contractors Payment,1111.92,0.00,COMMERCIAL SUPPLIER 
 06-12-2022,Adults,Home Sweet Home Care Ltd,Home Care - Private Contractors Payment,1112.25,0.00,COMMERCIAL SUPPLIER 
 09-12-2022,Adults,Cera Care Operations Ltd,Home Care - Private Contractors Payment,1112.25,0.00,COMMERCIAL SUPPLIER 
 12-12-2022,Adults,Prior Care Ltd_a,Home Care - Private Contractors Payment,1112.25,0.00,COMMERCIAL SUPPLIER 
 09-12-2022,Adults,Lodge Group Care UK Ltd,Home Care - Private Contractors Payment,1112.90,0.00,COMMERCIAL SUPPLIER 
 04-12-2022,Adults,Homestead Care Service,Home Care - Private Contractors Payment,1113.23,0.00,COMMERCIAL SUPPLIER 
 09-12-2022,Adults,Lodge Group Care UK Ltd,Home Care - Private Contractors Payment,1113.56,0.00,COMMERCIAL SUPPLIER 
 06-12-2022,Adults,Home Sweet Home Care Ltd,Home Care - Private Contractors Payment,1113.89,0.00,COMMERCIAL SUPPLIER 
 06-12-2022,Adults,Home Sweet Home Care Ltd,Home Care - Private Contractors Payment,1113.89,0.00,COMMERCIAL SUPPLIER 
 06-12-2022,Adults,Home Sweet Home Care Ltd,Home Care - Private Contractors Payment,1114.87,0.00,COMMERCIAL SUPPLIER 
 06-12-2022,Adults,Home Sweet Home Care Ltd,Home Care - Private Contractors Payment,1115.20,0.00,COMMERCIAL SUPPLIER 
 06-12-2022,Adults,Home Sweet Home Care Ltd,Home Care - Private Contractors Payment,1116.18,0.00,COMMERCIAL SUPPLIER 
 04-12-2022,Adults,Homestead Care Service,Home Care - Private Contractors Payment,1116.84,0.00,COMMERCIAL SUPPLIER 
 06-12-2022,Adults,Home Sweet Home Care Ltd,Home Care - Private Contractors Payment,1117.50,0.00,COMMERCIAL SUPPLIER 
 06-12-2022,Adults,Home Sweet Home Care Ltd,Home Care - Private Contractors Payment,1118.15,0.00,COMMERCIAL SUPPLIER 
 09-12-2022,Adults,Lodge Group Care UK Ltd,Home Care - Private Contractors Payment,1118.15,0.00,COMMERCIAL SUPPLIER 
 09-12-2022,Adults,Lodge Group Care UK Ltd,Home Care - Private Contractors Payment,1118.15,0.00,COMMERCIAL SUPPLIER 
 04-12-2022,Adults,Homestead Care Service,Home Care - Private Contractors Payment,1118.48,0.00,COMMERCIAL SUPPLIER 
 08-12-2022,Adults,Home Support Services (Havering & Essex) Ltd,Home Care - Private Contractors Payment,1119.14,0.00,COMMERCIAL SUPPLIER 
 09-12-2022,Adults,Cera Care Operations Ltd,Home Care - Private Contractors Payment,1119.79,0.00,COMMERCIAL SUPPLIER 
 09-12-2022,Adults,Morepower Ltd t/a Aqs Homecare,Home Care - Private Contractors Payment,1120.12,0.00,COMMERCIAL SUPPLIER 
 08-12-2022,Adults,Home Support Services (Havering & Essex) Ltd,Home Care - Private Contractors Payment,1120.78,0.00,COMMERCIAL SUPPLIER 
 08-12-2022,Adults,Home Support Services (Havering & Essex) Ltd,Home Care - Private Contractors Payment,1120.78,0.00,COMMERCIAL SUPPLIER 
 08-12-2022,Adults,Home Support Services (Havering & Essex) Ltd,Home Care - Private Contractors Payment,1121.10,0.00,COMMERCIAL SUPPLIER 
 09-12-2022,Adults,Lodge Group Care UK Ltd,Home Care - Private Contractors Payment,1121.43,0.00,COMMERCIAL SUPPLIER 
 09-12-2022,Adults,Lodge Group Care UK Ltd,Home Care - Private Contractors Payment,1122.09,0.00,COMMERCIAL SUPPLIER 
 09-12-2022,Adults,Cera Care Operations Ltd,Home Care - Private Contractors Payment,1122.09,0.00,COMMERCIAL SUPPLIER 
 09-12-2022,Adults,Lodge Group Care UK Ltd,Home Care - Private Contractors Payment,1122.42,0.00,COMMERCIAL SUPPLIER 
 09-12-2022,Adults,Cera Care Operations Ltd,Home Care - Private Contractors Payment,1122.42,0.00,COMMERCIAL SUPPLIER 
 06-12-2022,Adults,Home Sweet Home Care Ltd,Home Care - Private Contractors Payment,1123.07,0.00,COMMERCIAL SUPPLIER 
 08-12-2022,Adults,Home Support Services (Havering & Essex) Ltd,Home Care - Private Contractors Payment,1123.07,0.00,COMMERCIAL SUPPLIER 
 09-12-2022,Adults,Cera Care Operations Ltd,Home Care - Private Contractors Payment,1123.07,0.00,COMMERCIAL SUPPLIER 
 09-12-2022,Adults,Cera Care Operations Ltd,Home Care - Private Contractors Payment,1123.07,0.00,COMMERCIAL SUPPLIER 
 12-12-2022,Adults,Prior Care Ltd_a,Home Care - Private Contractors Payment,1123.40,0.00,COMMERCIAL SUPPLIER 
 04-12-2022,Adults,Homestead Care Service,Home Care - Private Contractors Payment,1124.38,0.00,COMMERCIAL SUPPLIER 
 06-12-2022,Adults,Home Sweet Home Care Ltd,Home Care - Private Contractors Payment,1124.38,0.00,COMMERCIAL SUPPLIER 
 07-12-2022,Adults,Quality Healthcare Solutions Ltd t/a Kare Plus Romford,Home Care - Private Contractors Payment,1125.04,0.00,COMMERCIAL SUPPLIER 
 12-12-2022,Adults,John Stanleys Care Agency Ltd,Home Care - Private Contractors Payment,1125.04,0.00,COMMERCIAL SUPPLIER 
 05-12-2022,Adults,Prestige Care & Support Ltd,Home Care - Private Contractors Payment,1125.37,0.00,COMMERCIAL SUPPLIER 
 04-12-2022,Adults,Westminster Homecare Ltd_a,Home Care - Private Contractors Payment,1125.70,0.00,COMMERCIAL SUPPLIER 
 08-12-2022,Adults,Home Support Services (Havering & Essex) Ltd,Home Care - Private Contractors Payment,1125.70,0.00,COMMERCIAL SUPPLIER 
 05-12-2022,Adults,Prestige Care & Support Ltd,Home Care - Private Contractors Payment,1127.66,0.00,COMMERCIAL SUPPLIER 
 09-12-2022,Adults,Headway East London,Daycare - Private Contractors Payment,1128.00,0.00,COMMERCIAL SUPPLIER 
 14-12-2022,Adults,Matrix SCM Ltd,Agency Staff,1128.07,0.00,COMMERCIAL SUPPLIER 
 06-12-2022,Adults,Home Sweet Home Care Ltd,Home Care - Private Contractors Payment,1129.96,0.00,COMMERCIAL SUPPLIER 
 05-12-2022,Adults,Prestige Care & Support Ltd,Home Care - Private Contractors Payment,1131.60,0.00,COMMERCIAL SUPPLIER 
 12-12-2022,Adults,John Stanleys Care Agency Ltd,Home Care - Private Contractors Payment,1131.60,0.00,COMMERCIAL SUPPLIER 
 09-12-2022,Adults,Lodge Group Care UK Ltd,Home Care - Private Contractors Payment,1131.93,0.00,COMMERCIAL SUPPLIER 
 08-12-2022,Adults,Home Support Services (Havering & Essex) Ltd,Home Care - Private Contractors Payment,1132.26,0.00,COMMERCIAL SUPPLIER 
 04-12-2022,Adults,Homestead Care Service,Home Care - Private Contractors Payment,1132.58,0.00,COMMERCIAL SUPPLIER 
 09-12-2022,Adults,Morepower Ltd t/a Aqs Homecare,Home Care - Private Contractors Payment,1132.91,0.00,COMMERCIAL SUPPLIER 
 05-12-2022,Adults,Prestige Care & Support Ltd,Home Care - Private Contractors Payment,1133.90,0.00,COMMERCIAL SUPPLIER 
 04-12-2022,Adults,Homestead Care Service,Home Care - Private Contractors Payment,1134.22,0.00,COMMERCIAL SUPPLIER 
 09-12-2022,Adults,Morepower Ltd t/a Aqs Homecare,Home Care - Private Contractors Payment,1134.88,0.00,COMMERCIAL SUPPLIER 
 04-12-2022,Adults,Homestead Care Service,Home Care - Private Contractors Payment,1135.21,0.00,COMMERCIAL SUPPLIER 
 12-12-2022,Adults,Prior Care Ltd_a,Home Care - Private Contractors Payment,1135.21,0.00,COMMERCIAL SUPPLIER 
 09-12-2022,Adults,Willows Care Home - Churchgate Healthcare (Willows) Ltd,Residential Care Income,1136.50,0.00,COMMERCIAL SUPPLIER 
 08-12-2022,Adults,Home Support Services (Havering & Essex) Ltd,Home Care - Private Contractors Payment,1137.18,0.00,COMMERCIAL SUPPLIER 
 08-12-2022,Adults,Home Support Services (Havering & Essex) Ltd,Home Care - Private Contractors Payment,1138.82,0.00,COMMERCIAL SUPPLIER 
 12-12-2022,Adults,Prior Care Ltd_a,Home Care - Private Contractors Payment,1139.14,0.00,COMMERCIAL SUPPLIER 
 06-12-2022,Adults,Home Sweet Home Care Ltd,Home Care - Private Contractors Payment,1139.47,0.00,COMMERCIAL SUPPLIER 
 05-12-2022,Adults,Tapestry_a.,Daycare - Private Contractors Payment,1140.00,0.00,COMMERCIAL SUPPLIER 
 05-12-2022,Adults,Tapestry_a.,Daycare - Private Contractors Payment,1140.00,0.00,COMMERCIAL SUPPLIER 
 05-12-2022,Adults,Tapestry_a.,Daycare - Private Contractors Payment,1140.00,0.00,COMMERCIAL SUPPLIER 
 05-12-2022,Adults,Tapestry_a.,Daycare - Private Contractors Payment,1140.00,0.00,COMMERCIAL SUPPLIER 
 04-12-2022,Adults,Homestead Care Service,Home Care - Private Contractors Payment,1140.13,0.00,COMMERCIAL SUPPLIER 
 06-12-2022,Adults,Home Sweet Home Care Ltd,Home Care - Private Contractors Payment,1140.13,0.00,COMMERCIAL SUPPLIER 
 05-12-2022,Adults,Prestige Care & Support Ltd,Home Care - Private Contractors Payment,1141.44,0.00,COMMERCIAL SUPPLIER 
 05-12-2022,Adults,Prestige Care & Support Ltd,Home Care - Private Contractors Payment,1141.44,0.00,COMMERCIAL SUPPLIER 
 06-12-2022,Adults,Home Sweet Home Care Ltd,Home Care - Private Contractors Payment,1141.77,0.00,COMMERCIAL SUPPLIER 
 14-12-2022,Adults,Matrix SCM Ltd,Agency Staff,1142.40,0.00,COMMERCIAL SUPPLIER 
 08-12-2022,Adults,Home Support Services (Havering & Essex) Ltd,Home Care - Private Contractors Payment,1142.75,0.00,COMMERCIAL SUPPLIER 
 04-12-2022,Adults,Homestead Care Service,Home Care - Private Contractors Payment,1143.41,0.00,COMMERCIAL SUPPLIER 
 09-12-2022,Adults,Morepower Ltd t/a Aqs Homecare,Home Care - Private Contractors Payment,1146.36,0.00,COMMERCIAL SUPPLIER 
 09-12-2022,Adults,Morepower Ltd t/a Aqs Homecare,Home Care - Private Contractors Payment,1147.02,0.00,COMMERCIAL SUPPLIER 
 04-12-2022,Adults,Homestead Care Service,Home Care - Private Contractors Payment,1147.34,0.00,COMMERCIAL SUPPLIER 
 06-12-2022,Adults,Home Sweet Home Care Ltd,Home Care - Private Contractors Payment,1147.34,0.00,COMMERCIAL SUPPLIER 
 09-12-2022,Adults,Lodge Group Care UK Ltd,Home Care - Private Contractors Payment,1148.00,0.00,COMMERCIAL SUPPLIER 
 09-12-2022,Adults,Morepower Ltd t/a Aqs Homecare,Home Care - Private Contractors Payment,1148.98,0.00,COMMERCIAL SUPPLIER 
 09-12-2022,Adults,GCH - Hillside Nursing Home,Residential Placements - Private Contractors Payment,1150.00,0.00,COMMERCIAL SUPPLIER 
 21-12-2022,Adults,Matrix SCM Ltd,Agency Staff,1150.05,0.00,COMMERCIAL SUPPLIER 
 04-12-2022,Adults,Homestead Care Service,Home Care - Private Contractors Payment,1151.94,0.00,COMMERCIAL SUPPLIER 
 09-12-2022,Adults,Cera Care Operations Ltd,Home Care - Private Contractors Payment,1152.92,0.00,COMMERCIAL SUPPLIER 
 07-12-2022,Adults,Anytime Care 2020_a,Home Care - Private Contractors Payment,1154.23,0.00,COMMERCIAL SUPPLIER 
 06-12-2022,Adults,Treal Care Limited,Home Care - Private Contractors Payment,1155.00,0.00,COMMERCIAL SUPPLIER 
 21-12-2022,Adults,Pristine Care London Ltd ,Daycare - Private Contractors Payment,1155.00,0.00,COMMERCIAL SUPPLIER 
 04-12-2022,Adults,Homestead Care Service,Home Care - Private Contractors Payment,1156.20,0.00,COMMERCIAL SUPPLIER 
 09-12-2022,Adults,Lodge Group Care UK Ltd,Home Care - Private Contractors Payment,1156.53,0.00,COMMERCIAL SUPPLIER 
 04-12-2022,Adults,Homestead Care Service,Home Care - Private Contractors Payment,1157.84,0.00,COMMERCIAL SUPPLIER 
 05-12-2022,Adults,Prestige Care & Support Ltd,Home Care - Private Contractors Payment,1158.50,0.00,COMMERCIAL SUPPLIER 
 08-12-2022,Adults,Home Support Services (Havering & Essex) Ltd,Home Care - Private Contractors Payment,1159.15,0.00,COMMERCIAL SUPPLIER 
 08-12-2022,Adults,Bloom Procurement Services Ltd,Consultancy Fees,1160.00,0.00,COMMERCIAL SUPPLIER 
 09-12-2022,Adults,The Riverside Group,Supported Other Accommodation - Private Contractors Payment,1160.00,0.00, 
 09-12-2022,Adults,The Riverside Group,Supported Other Accommodation - Private Contractors Payment,1160.00,0.00, 
 09-12-2022,Adults,The Riverside Group,Supported Other Accommodation - Private Contractors Payment,1160.00,0.00, 
 09-12-2022,Adults,The Riverside Group,Supported Other Accommodation - Private Contractors Payment,1160.00,0.00, 
 09-12-2022,Adults,The Riverside Group,Supported Other Accommodation - Private Contractors Payment,1160.00,0.00, 
 09-12-2022,Adults,The Riverside Group,Supported Other Accommodation - Private Contractors Payment,1160.00,0.00, 
 09-12-2022,Adults,The Riverside Group,Supported Other Accommodation - Private Contractors Payment,1160.00,0.00, 
 09-12-2022,Adults,The Riverside Group,Supported Other Accommodation - Private Contractors Payment,1160.00,0.00, 
 09-12-2022,Adults,Cera Care Operations Ltd,Home Care - Private Contractors Payment,1160.14,0.00,COMMERCIAL SUPPLIER 
 06-12-2022,Adults,Care-Away Ltd T/A Care Support,Home Care - Private Contractors Payment,1164.80,0.00,COMMERCIAL SUPPLIER 
 07-12-2022,Adults,Care-Away Ltd T/A Care Support,Home Care - Private Contractors Payment,1164.80,0.00,COMMERCIAL SUPPLIER 
 07-12-2022,Adults,Care-Away Ltd T/A Care Support,Home Care - Private Contractors Payment,1164.80,0.00,COMMERCIAL SUPPLIER 
 07-12-2022,Adults,Care-Away Ltd T/A Care Support,Home Care - Private Contractors Payment,1164.80,0.00,COMMERCIAL SUPPLIER 
 04-12-2022,Adults,Homestead Care Service,Home Care - Private Contractors Payment,1167.68,0.00,COMMERCIAL SUPPLIER 
 14-12-2022,Adults,Matrix SCM Ltd,Agency Staff,1169.28,0.00,COMMERCIAL SUPPLIER 
 29-12-2022,Adults,Matrix SCM Ltd,Agency Staff,1169.28,0.00,COMMERCIAL SUPPLIER 
 07-12-2022,Adults,Quality Healthcare Solutions Ltd t/a Kare Plus Romford,Home Care - Private Contractors Payment,1169.65,0.00,COMMERCIAL SUPPLIER 
 04-12-2022,Adults,Homestead Care Service,Home Care - Private Contractors Payment,1173.26,0.00,COMMERCIAL SUPPLIER 
 04-12-2022,Adults,Westminster Homecare Ltd_a,Home Care - Private Contractors Payment,1173.26,0.00,COMMERCIAL SUPPLIER 
 07-12-2022,Adults,Matrix SCM Ltd,Agency Staff,1175.04,0.00,COMMERCIAL SUPPLIER 
 14-12-2022,Adults,Matrix SCM Ltd,Agency Staff,1175.04,0.00,COMMERCIAL SUPPLIER 
 21-12-2022,Adults,Matrix SCM Ltd,Agency Staff,1175.04,0.00,COMMERCIAL SUPPLIER 
 29-12-2022,Adults,Matrix SCM Ltd,Agency Staff,1175.04,0.00,COMMERCIAL SUPPLIER 
 04-12-2022,Adults,Homestead Care Service,Home Care - Private Contractors Payment,1175.88,0.00,COMMERCIAL SUPPLIER 
 06-12-2022,Adults,Hospiva Care & Associates Agency Ltd_a,Home Care - Private Contractors Payment,1175.88,0.00,COMMERCIAL SUPPLIER 
 09-12-2022,Adults,Footsteps Support Ltd_a,Supported Other Accommodation - Private Contractors Payment,1176.00,0.00,COMMERCIAL SUPPLIER 
 07-12-2022,Adults,Matrix SCM Ltd,Agency Staff,1176.45,0.00,COMMERCIAL SUPPLIER 
 04-12-2022,Adults,Homestead Care Service,Home Care - Private Contractors Payment,1176.86,0.00,COMMERCIAL SUPPLIER 
 09-12-2022,Adults,Lodge Group Care UK Ltd,Home Care - Private Contractors Payment,1177.52,0.00,COMMERCIAL SUPPLIER 
 09-12-2022,Adults,Cera Care Operations Ltd,Home Care - Private Contractors Payment,1179.16,0.00,COMMERCIAL SUPPLIER 
 08-12-2022,Adults,Carers Trust East Midlands,Home Care - Private Contractors Payment,1180.80,0.00,COMMERCIAL SUPPLIER 
 14-12-2022,Adults,Matrix SCM Ltd,Agency Staff,1181.15,0.00,COMMERCIAL SUPPLIER 
 21-12-2022,Adults,Matrix SCM Ltd,Agency Staff,1181.15,0.00,COMMERCIAL SUPPLIER 
 29-12-2022,Adults,Matrix SCM Ltd,Agency Staff,1181.15,0.00,COMMERCIAL SUPPLIER 
 09-12-2022,Adults,Lodge Group Care UK Ltd,Home Care - Private Contractors Payment,1182.77,0.00,COMMERCIAL SUPPLIER 
 09-12-2022,Adults,Cera Care Operations Ltd,Home Care - Private Contractors Payment,1183.75,0.00,COMMERCIAL SUPPLIER 
 04-12-2022,Adults,Homestead Care Service,Home Care - Private Contractors Payment,1184.41,0.00,COMMERCIAL SUPPLIER 
 08-12-2022,Adults,Home Support Services (Havering & Essex) Ltd,Home Care - Private Contractors Payment,1184.41,0.00,COMMERCIAL SUPPLIER 
 04-12-2022,Adults,Homestead Care Service,Home Care - Private Contractors Payment,1188.02,0.00,COMMERCIAL SUPPLIER 
 04-12-2022,Adults,Homestead Care Service,Home Care - Private Contractors Payment,1189.00,0.00,COMMERCIAL SUPPLIER 
 06-12-2022,Adults,Home Sweet Home Care Ltd,Home Care - Private Contractors Payment,1189.00,0.00,COMMERCIAL SUPPLIER 
 04-12-2022,Adults,Homestead Care Service,Home Care - Private Contractors Payment,1189.98,0.00,COMMERCIAL SUPPLIER 
 06-12-2022,Adults,Hospiva Care & Associates Agency Ltd_a,Home Care - Private Contractors Payment,1189.98,0.00,COMMERCIAL SUPPLIER 
 09-12-2022,Adults,Morepower Ltd t/a Aqs Homecare,Home Care - Private Contractors Payment,1190.31,0.00,COMMERCIAL SUPPLIER 
 09-12-2022,Adults,Morepower Ltd t/a Aqs Homecare,Home Care - Private Contractors Payment,1190.31,0.00,COMMERCIAL SUPPLIER 
 09-12-2022,Adults,Lodge Group Care UK Ltd,Home Care - Private Contractors Payment,1191.30,0.00,COMMERCIAL SUPPLIER 
 09-12-2022,Adults,GCH - Hillside Nursing Home,Respite Care - Private Contractors Payment,1191.43,0.00,COMMERCIAL SUPPLIER 
 09-12-2022,Adults,Lodge Group Care UK Ltd,Home Care - Private Contractors Payment,1192.28,0.00,COMMERCIAL SUPPLIER 
 04-12-2022,Adults,Homestead Care Service,Home Care - Private Contractors Payment,1192.94,0.00,COMMERCIAL SUPPLIER 
 08-12-2022,Adults,Home Support Services (Havering & Essex) Ltd,Home Care - Private Contractors Payment,1192.94,0.00,COMMERCIAL SUPPLIER 
 09-12-2022,Adults,Lodge Group Care UK Ltd,Home Care - Private Contractors Payment,1193.92,0.00,COMMERCIAL SUPPLIER 
 04-12-2022,Adults,Homestead Care Service,Home Care - Private Contractors Payment,1194.90,0.00,COMMERCIAL SUPPLIER 
 04-12-2022,Adults,Homestead Care Service,Home Care - Private Contractors Payment,1196.22,0.00,COMMERCIAL SUPPLIER 
 08-12-2022,Adults,Home Support Services (Havering & Essex) Ltd,Home Care - Private Contractors Payment,1196.54,0.00,COMMERCIAL SUPPLIER 
 09-12-2022,Adults,Lodge Group Care UK Ltd,Home Care - Private Contractors Payment,1197.86,0.00,COMMERCIAL SUPPLIER 
 09-12-2022,Adults,Cera Care Operations Ltd,Home Care - Private Contractors Payment,1203.43,0.00,COMMERCIAL SUPPLIER 
 07-12-2022,Adults,Matrix SCM Ltd,Agency Staff,1203.84,0.00,COMMERCIAL SUPPLIER 
 14-12-2022,Adults,Matrix SCM Ltd,Agency Staff,1203.84,0.00,COMMERCIAL SUPPLIER 
 06-12-2022,Adults,Hospiva Care & Associates Agency Ltd_a,Home Care - Private Contractors Payment,1205.07,0.00,COMMERCIAL SUPPLIER 
 12-12-2022,Adults,John Stanleys Care Agency Ltd,Home Care - Private Contractors Payment,1205.73,0.00,COMMERCIAL SUPPLIER 
 05-12-2022,Adults,Prestige Care & Support Ltd,Home Care - Private Contractors Payment,1207.04,0.00,COMMERCIAL SUPPLIER 
 07-12-2022,Adults,Matrix SCM Ltd,Agency Staff,1207.46,0.00,COMMERCIAL SUPPLIER 
 14-12-2022,Adults,Matrix SCM Ltd,Agency Staff,1207.46,0.00,COMMERCIAL SUPPLIER 
 29-12-2022,Adults,Matrix SCM Ltd,Agency Staff,1207.46,0.00,COMMERCIAL SUPPLIER 
 06-12-2022,Adults,Hospiva Care & Associates Agency Ltd_a,Home Care - Private Contractors Payment,1209.01,0.00,COMMERCIAL SUPPLIER 
 07-12-2022,Adults,Matrix SCM Ltd,Agency Staff,1209.60,0.00,COMMERCIAL SUPPLIER 
 09-12-2022,Adults,Independent Community Support Ltd t/a Wingletye Lodge ,Supported Other Accommodation - Private Contractors Payment,1209.60,0.00,COMMERCIAL SUPPLIER 
 29-12-2022,Adults,Matrix SCM Ltd,Agency Staff,1209.60,0.00,COMMERCIAL SUPPLIER 
 06-12-2022,Adults,Home Sweet Home Care Ltd,Home Care - Private Contractors Payment,1209.66,0.00,COMMERCIAL SUPPLIER 
 06-12-2022,Adults,Home Sweet Home Care Ltd,Home Care - Private Contractors Payment,1209.99,0.00,COMMERCIAL SUPPLIER 
 02-12-2022,Adults,Romford Private Hire Ltd,Client Transport,1210.00,0.00,COMMERCIAL SUPPLIER 
 14-12-2022,Adults,Matrix SCM Ltd,Agency Staff,1211.16,0.00,COMMERCIAL SUPPLIER 
 09-12-2022,Adults,Langley House,Respite Care - Private Contractors Payment,1214.29,0.00,COMMERCIAL SUPPLIER 
 06-12-2022,Adults,Premier Carewaiting Ltd,Home Care - Private Contractors Payment,1215.24,0.00,COMMERCIAL SUPPLIER 
 06-12-2022,Adults,Premier Carewaiting Ltd,Home Care - Private Contractors Payment,1215.24,0.00,COMMERCIAL SUPPLIER 
 09-12-2022,Adults,Morepower Ltd t/a Aqs Homecare,Home Care - Private Contractors Payment,1218.52,0.00,COMMERCIAL SUPPLIER 
 12-12-2022,Adults,John Stanleys Care Agency Ltd,Home Care - Private Contractors Payment,1218.52,0.00,COMMERCIAL SUPPLIER 
 07-12-2022,Adults,Quality Healthcare Solutions Ltd t/a Kare Plus Romford,Home Care - Private Contractors Payment,1220.82,0.00,COMMERCIAL SUPPLIER 
 07-12-2022,Adults,Quality Healthcare Solutions Ltd t/a Kare Plus Romford,Home Care - Private Contractors Payment,1221.14,0.00,COMMERCIAL SUPPLIER 
 04-12-2022,Adults,Homestead Care Service,Home Care - Private Contractors Payment,1222.46,0.00,COMMERCIAL SUPPLIER 
 06-12-2022,Adults,Home Sweet Home Care Ltd,Home Care - Private Contractors Payment,1223.11,0.00,COMMERCIAL SUPPLIER 
 12-12-2022,Adults,Prior Care Ltd_a,Home Care - Private Contractors Payment,1227.70,0.00,COMMERCIAL SUPPLIER 
 07-12-2022,Adults,Matrix SCM Ltd,Agency Staff,1228.32,0.00,COMMERCIAL SUPPLIER 
 07-12-2022,Adults,Matrix SCM Ltd,Agency Staff,1228.32,0.00,COMMERCIAL SUPPLIER 
 14-12-2022,Adults,Matrix SCM Ltd,Agency Staff,1228.32,0.00,COMMERCIAL SUPPLIER 
 14-12-2022,Adults,Matrix SCM Ltd,Agency Staff,1228.32,0.00,COMMERCIAL SUPPLIER 
 21-12-2022,Adults,Matrix SCM Ltd,Agency Staff,1228.32,0.00,COMMERCIAL SUPPLIER 
 21-12-2022,Adults,Matrix SCM Ltd,Agency Staff,1228.32,0.00,COMMERCIAL SUPPLIER 
 29-12-2022,Adults,Matrix SCM Ltd,Agency Staff,1228.32,0.00,COMMERCIAL SUPPLIER 
 29-12-2022,Adults,Matrix SCM Ltd,Agency Staff,1228.32,0.00,COMMERCIAL SUPPLIER 
 09-12-2022,Adults,Lodge Group Care UK Ltd,Home Care - Private Contractors Payment,1230.33,0.00,COMMERCIAL SUPPLIER 
 04-12-2022,Adults,Homestead Care Service,Home Care - Private Contractors Payment,1231.31,0.00,COMMERCIAL SUPPLIER 
 06-12-2022,Adults,Care-Away Ltd T/A Care Support,Home Care - Private Contractors Payment,1231.36,0.00,COMMERCIAL SUPPLIER 
 29-12-2022,Adults,Matrix SCM Ltd,Agency Staff,1235.43,0.00,COMMERCIAL SUPPLIER 
 21-12-2022,Adults,Matrix SCM Ltd,Agency Staff,1235.52,0.00,COMMERCIAL SUPPLIER 
 29-12-2022,Adults,Matrix SCM Ltd,Agency Staff,1235.52,0.00,COMMERCIAL SUPPLIER 
 21-12-2022,Adults,Matrix SCM Ltd,Agency Staff,1236.26,0.00,COMMERCIAL SUPPLIER 
 29-12-2022,Adults,Matrix SCM Ltd,Agency Staff,1236.26,0.00,COMMERCIAL SUPPLIER 
 14-12-2022,Adults,Matrix SCM Ltd,Agency Staff,1236.37,0.00,COMMERCIAL SUPPLIER 
 03-12-2022,Adults,Personal Information � Redacted,Home Care - Private Contractors Payment,1239.84,0.00,INDIVIDUALS 
 03-12-2022,Adults,Personal Information � Redacted,Home Care - Private Contractors Payment,1239.84,0.00,INDIVIDUALS 
 05-12-2022,Adults,Outreach Support Services Ltd,Home Care - Private Contractors Payment,1239.84,0.00,COMMERCIAL SUPPLIER 
 05-12-2022,Adults,Outreach Support Services Ltd,Home Care - Private Contractors Payment,1239.84,0.00,COMMERCIAL SUPPLIER 
 05-12-2022,Adults,Outreach Support Services Ltd,Home Care - Private Contractors Payment,1239.84,0.00,COMMERCIAL SUPPLIER 
 05-12-2022,Adults,Passion Tree Care Services Ltd,Home Care - Private Contractors Payment,1239.84,0.00,COMMERCIAL SUPPLIER 
 05-12-2022,Adults,Passion Tree Care Services Ltd,Home Care - Private Contractors Payment,1239.84,0.00,COMMERCIAL SUPPLIER 
 06-12-2022,Adults,London Homecare Ltd,Home Care - Private Contractors Payment,1239.84,0.00,COMMERCIAL SUPPLIER 
 06-12-2022,Adults,London Homecare Ltd,Home Care - Private Contractors Payment,1239.84,0.00,COMMERCIAL SUPPLIER 
 06-12-2022,Adults,London Homecare Ltd,Home Care - Private Contractors Payment,1239.84,0.00,COMMERCIAL SUPPLIER 
 06-12-2022,Adults,London Homecare Ltd,Home Care - Private Contractors Payment,1239.84,0.00,COMMERCIAL SUPPLIER 
 06-12-2022,Adults,London Homecare Ltd,Home Care - Private Contractors Payment,1239.84,0.00,COMMERCIAL SUPPLIER 
 08-12-2022,Adults,Inna Care Ltd,Home Care - Private Contractors Payment,1239.84,0.00,COMMERCIAL SUPPLIER 
 08-12-2022,Adults,Inna Care Ltd,Home Care - Private Contractors Payment,1239.84,0.00,COMMERCIAL SUPPLIER 
 12-12-2022,Adults,John Stanleys Care Agency Ltd,Home Care - Private Contractors Payment,1239.84,0.00,COMMERCIAL SUPPLIER 
 12-12-2022,Adults,Crystalize Care Services,Home Care - Private Contractors Payment,1239.84,0.00,COMMERCIAL SUPPLIER 
 12-12-2022,Adults,Crystalize Care Services,Home Care - Private Contractors Payment,1239.84,0.00,COMMERCIAL SUPPLIER 
 12-12-2022,Adults,John Stanleys Care Agency Ltd,Home Care - Private Contractors Payment,1240.50,0.00,COMMERCIAL SUPPLIER 
 09-12-2022,Adults,Morepower Ltd t/a Aqs Homecare,Home Care - Private Contractors Payment,1241.15,0.00,COMMERCIAL SUPPLIER 
 07-12-2022,Adults,Matrix SCM Ltd,Agency Staff,1241.28,0.00,COMMERCIAL SUPPLIER 
 07-12-2022,Adults,Matrix SCM Ltd,Agency Staff,1241.28,0.00,COMMERCIAL SUPPLIER 
 07-12-2022,Adults,Matrix SCM Ltd,Agency Staff,1241.28,0.00,COMMERCIAL SUPPLIER 
 07-12-2022,Adults,Matrix SCM Ltd,Agency Staff,1241.28,0.00,COMMERCIAL SUPPLIER 
 07-12-2022,Adults,Matrix SCM Ltd,Agency Staff,1241.28,0.00,COMMERCIAL SUPPLIER 
 07-12-2022,Adults,Matrix SCM Ltd,Agency Staff,1241.28,0.00,COMMERCIAL SUPPLIER 
 07-12-2022,Adults,Matrix SCM Ltd,Agency Staff,1241.28,0.00,COMMERCIAL SUPPLIER 
 14-12-2022,Adults,Matrix SCM Ltd,Agency Staff,1241.28,0.00,COMMERCIAL SUPPLIER 
 14-12-2022,Adults,Matrix SCM Ltd,Agency Staff,1241.28,0.00,COMMERCIAL SUPPLIER 
 14-12-2022,Adults,Matrix SCM Ltd,Agency Staff,1241.28,0.00,COMMERCIAL SUPPLIER 
 14-12-2022,Adults,Matrix SCM Ltd,Agency Staff,1241.28,0.00,COMMERCIAL SUPPLIER 
 14-12-2022,Adults,Matrix SCM Ltd,Agency Staff,1241.28,0.00,COMMERCIAL SUPPLIER 
 21-12-2022,Adults,Matrix SCM Ltd,Agency Staff,1241.28,0.00,COMMERCIAL SUPPLIER 
 21-12-2022,Adults,Matrix SCM Ltd,Agency Staff,1241.28,0.00,COMMERCIAL SUPPLIER 
 21-12-2022,Adults,Matrix SCM Ltd,Agency Staff,1241.28,0.00,COMMERCIAL SUPPLIER 
 21-12-2022,Adults,Matrix SCM Ltd,Agency Staff,1241.28,0.00,COMMERCIAL SUPPLIER 
 21-12-2022,Adults,Matrix SCM Ltd,Agency Staff,1241.28,0.00,COMMERCIAL SUPPLIER 
 21-12-2022,Adults,Matrix SCM Ltd,Agency Staff,1241.28,0.00,COMMERCIAL SUPPLIER 
 21-12-2022,Adults,Matrix SCM Ltd,Agency Staff,1241.28,0.00,COMMERCIAL SUPPLIER 
 21-12-2022,Adults,Matrix SCM Ltd,Agency Staff,1241.28,0.00,COMMERCIAL SUPPLIER 
 29-12-2022,Adults,Matrix SCM Ltd,Agency Staff,1241.28,0.00,COMMERCIAL SUPPLIER 
 29-12-2022,Adults,Matrix SCM Ltd,Agency Staff,1241.28,0.00,COMMERCIAL SUPPLIER 
 29-12-2022,Adults,Matrix SCM Ltd,Agency Staff,1241.28,0.00,COMMERCIAL SUPPLIER 
 29-12-2022,Adults,Matrix SCM Ltd,Agency Staff,1241.28,0.00,COMMERCIAL SUPPLIER 
 29-12-2022,Adults,Matrix SCM Ltd,Agency Staff,1241.28,0.00,COMMERCIAL SUPPLIER 
 09-12-2022,Adults,Morepower Ltd t/a Aqs Homecare,Home Care - Private Contractors Payment,1241.48,0.00,COMMERCIAL SUPPLIER 
 12-12-2022,Adults,John Stanleys Care Agency Ltd,Home Care - Private Contractors Payment,1241.81,0.00,COMMERCIAL SUPPLIER 
 12-12-2022,Adults,John Stanleys Care Agency Ltd,Home Care - Private Contractors Payment,1243.45,0.00,COMMERCIAL SUPPLIER 
 07-12-2022,Adults,Care-Away Ltd T/A Care Support,Home Care - Private Contractors Payment,1243.84,0.00,COMMERCIAL SUPPLIER 
 06-12-2022,Adults,Home Sweet Home Care Ltd,Home Care - Private Contractors Payment,1244.43,0.00,COMMERCIAL SUPPLIER 
 14-12-2022,Adults,Matrix SCM Ltd,Agency Staff,1244.51,0.00,COMMERCIAL SUPPLIER 
 14-12-2022,Adults,Matrix SCM Ltd,Agency Staff,1244.51,0.00,COMMERCIAL SUPPLIER 
 05-12-2022,Adults,Bluebird Care Havering,Home Care - Private Contractors Payment,1245.20,0.00,COMMERCIAL SUPPLIER 
 19-12-2022,Adults,Bluebird Care Havering,Home Care - Private Contractors Payment,1245.20,0.00,COMMERCIAL SUPPLIER 
 06-12-2022,Adults,Hospiva Care & Associates Agency Ltd_a,Home Care - Private Contractors Payment,1246.07,0.00,COMMERCIAL SUPPLIER 
 09-12-2022,Adults,Lodge Group Care UK Ltd,Home Care - Private Contractors Payment,1249.35,0.00,COMMERCIAL SUPPLIER 
 12-12-2022,Adults,Barristers - Doughty Chambers,Legal Fees,1250.00,0.00,LEGAL SERVICES 
 12-12-2022,Adults,Prior Care Ltd_a,Home Care - Private Contractors Payment,1250.66,0.00,COMMERCIAL SUPPLIER 
 09-12-2022,Adults,Lodge Group Care UK Ltd,Home Care - Private Contractors Payment,1252.30,0.00,COMMERCIAL SUPPLIER 
 04-12-2022,Adults,Westminster Homecare Ltd_a,Home Care - Private Contractors Payment,1257.22,0.00,COMMERCIAL SUPPLIER 
 08-12-2022,Adults,Home Support Services (Havering & Essex) Ltd,Home Care - Private Contractors Payment,1257.55,0.00,COMMERCIAL SUPPLIER 
 21-12-2022,Adults,Matrix SCM Ltd,Agency Staff,1258.32,0.00,COMMERCIAL SUPPLIER 
 06-12-2022,Adults,Home Sweet Home Care Ltd,Home Care - Private Contractors Payment,1259.85,0.00,COMMERCIAL SUPPLIER 
 02-12-2022,Adults,Star Mini Cabs.,Client Transport,1260.00,0.00,COMMERCIAL SUPPLIER 
 05-12-2022,Adults,All Therapy Solutions Ltd,Occupational Health,1260.00,0.00,COMMERCIAL SUPPLIER 
 09-12-2022,Adults,Little Gaynes,Residential Placements - Private Contractors Payment,1260.00,0.00,COMMERCIAL SUPPLIER 
 08-12-2022,Adults,Home Support Services (Havering & Essex) Ltd,Home Care - Private Contractors Payment,1261.16,0.00,COMMERCIAL SUPPLIER 
 07-12-2022,Adults,Matrix SCM Ltd,Agency Staff,1265.06,0.00,COMMERCIAL SUPPLIER 
 14-12-2022,Adults,Matrix SCM Ltd,Agency Staff,1265.06,0.00,COMMERCIAL SUPPLIER 
 09-12-2022,Adults,Lodge Group Care UK Ltd,Home Care - Private Contractors Payment,1273.95,0.00,COMMERCIAL SUPPLIER 
 21-12-2022,Adults,Matrix SCM Ltd,Agency Staff,1274.05,0.00,COMMERCIAL SUPPLIER 
 21-12-2022,Adults,Matrix SCM Ltd,Agency Staff,1274.05,0.00,COMMERCIAL SUPPLIER 
 29-12-2022,Adults,Matrix SCM Ltd,Agency Staff,1274.05,0.00,COMMERCIAL SUPPLIER 
 21-12-2022,Adults,Matrix SCM Ltd,Agency Staff,1275.84,0.00,COMMERCIAL SUPPLIER 
 29-12-2022,Adults,Matrix SCM Ltd,Agency Staff,1275.84,0.00,COMMERCIAL SUPPLIER 
 06-12-2022,Adults,Hospiva Care & Associates Agency Ltd_a,Home Care - Private Contractors Payment,1276.58,0.00,COMMERCIAL SUPPLIER 
 06-12-2022,Adults,Home Sweet Home Care Ltd,Home Care - Private Contractors Payment,1279.20,0.00,COMMERCIAL SUPPLIER 
 06-12-2022,Adults,London Homecare Ltd,Home Care - Private Contractors Payment,1279.20,0.00,COMMERCIAL SUPPLIER 
 06-12-2022,Adults,Hospiva Care & Associates Agency Ltd_a,Home Care - Private Contractors Payment,1279.86,0.00,COMMERCIAL SUPPLIER 
 09-12-2022,Adults,Morepower Ltd t/a Aqs Homecare,Home Care - Private Contractors Payment,1281.17,0.00,COMMERCIAL SUPPLIER 
 21-12-2022,Adults,Matrix SCM Ltd,Agency Staff,1281.60,0.00,COMMERCIAL SUPPLIER 
 29-12-2022,Adults,Matrix SCM Ltd,Agency Staff,1281.60,0.00,COMMERCIAL SUPPLIER 
 08-12-2022,Adults,Home Support Services (Havering & Essex) Ltd,Home Care - Private Contractors Payment,1281.82,0.00,COMMERCIAL SUPPLIER 
 07-12-2022,Adults,Matrix SCM Ltd,Agency Staff,1281.98,0.00,COMMERCIAL SUPPLIER 
 14-12-2022,Adults,Matrix SCM Ltd,Agency Staff,1281.98,0.00,COMMERCIAL SUPPLIER 
 21-12-2022,Adults,Matrix SCM Ltd,Agency Staff,1281.98,0.00,COMMERCIAL SUPPLIER 
 21-12-2022,Adults,Matrix SCM Ltd,Agency Staff,1282.32,0.00,COMMERCIAL SUPPLIER 
 29-12-2022,Adults,Matrix SCM Ltd,Agency Staff,1282.32,0.00,COMMERCIAL SUPPLIER 
 07-12-2022,Adults,Matrix SCM Ltd,Agency Staff,1282.34,0.00,COMMERCIAL SUPPLIER 
 14-12-2022,Adults,Matrix SCM Ltd,Agency Staff,1282.34,0.00,COMMERCIAL SUPPLIER 
 14-12-2022,Adults,Matrix SCM Ltd,Agency Staff,1282.34,0.00,COMMERCIAL SUPPLIER 
 14-12-2022,Adults,Matrix SCM Ltd,Agency Staff,1282.34,0.00,COMMERCIAL SUPPLIER 
 07-12-2022,Adults,Quality Healthcare Solutions Ltd t/a Kare Plus Romford,Home Care - Private Contractors Payment,1284.12,0.00,COMMERCIAL SUPPLIER 
 09-12-2022,Adults,Lodge Group Care UK Ltd,Home Care - Private Contractors Payment,1284.45,0.00,COMMERCIAL SUPPLIER 
 21-12-2022,Adults,Matrix SCM Ltd,Agency Staff,1286.60,0.00,COMMERCIAL SUPPLIER 
 29-12-2022,Adults,Matrix SCM Ltd,Agency Staff,1286.60,0.00,COMMERCIAL SUPPLIER 
 07-12-2022,Adults,Matrix SCM Ltd,Agency Staff,1288.45,0.00,COMMERCIAL SUPPLIER 
 21-12-2022,Adults,Matrix SCM Ltd,Agency Staff,1288.45,0.00,COMMERCIAL SUPPLIER 
 29-12-2022,Adults,Matrix SCM Ltd,Agency Staff,1288.45,0.00,COMMERCIAL SUPPLIER 
 07-12-2022,Adults,Matrix SCM Ltd,Agency Staff,1290.24,0.00,COMMERCIAL SUPPLIER 
 14-12-2022,Adults,Matrix SCM Ltd,Agency Staff,1290.24,0.00,COMMERCIAL SUPPLIER 
 09-12-2022,Adults,GCH - Hillside Nursing Home,Respite Care - Private Contractors Payment,1290.71,0.00,COMMERCIAL SUPPLIER 
 04-12-2022,Adults,Homestead Care Service,Home Care - Private Contractors Payment,1291.34,0.00,COMMERCIAL SUPPLIER 
 14-12-2022,Adults,Matrix SCM Ltd,Agency Staff,1295.70,0.00,COMMERCIAL SUPPLIER 
 14-12-2022,Adults,Matrix SCM Ltd,Agency Staff,1295.70,0.00,COMMERCIAL SUPPLIER 
 12-12-2022,Adults,John Stanleys Care Agency Ltd,Home Care - Private Contractors Payment,1296.58,0.00,COMMERCIAL SUPPLIER 
 04-12-2022,Adults,Homestead Care Service,Home Care - Private Contractors Payment,1296.91,0.00,COMMERCIAL SUPPLIER 
 03-12-2022,Adults,Personal Information � Redacted,Home Care - Private Contractors Payment,1298.88,0.00,INDIVIDUALS 
 06-12-2022,Adults,Premier Carewaiting Ltd,Home Care - Private Contractors Payment,1298.88,0.00,COMMERCIAL SUPPLIER 
 06-12-2022,Adults,Premier Carewaiting Ltd,Home Care - Private Contractors Payment,1298.88,0.00,COMMERCIAL SUPPLIER 
 09-12-2022,Adults,Ranc Care Homes Ltd - Romford Care Centre,Respite Care - Private Contractors Payment,1300.00,0.00,COMMERCIAL SUPPLIER 
 09-12-2022,Adults,Ranc Care Homes Ltd - Romford Care Centre,Respite Care - Private Contractors Payment,1300.00,0.00,COMMERCIAL SUPPLIER 
 09-12-2022,Adults,Ranc Care Homes Ltd - Romford Care Centre,Respite Care - Private Contractors Payment,1300.00,0.00,COMMERCIAL SUPPLIER 
 09-12-2022,Adults,Ranc Care Homes Ltd - Romford Care Centre,Respite Care - Private Contractors Payment,1300.00,0.00,COMMERCIAL SUPPLIER 
 09-12-2022,Adults,Ranc Care Homes Ltd - Romford Care Centre,Respite Care - Private Contractors Payment,1300.00,0.00,COMMERCIAL SUPPLIER 
 09-12-2022,Adults,Ranc Care Homes Ltd - Romford Care Centre,Respite Care - Private Contractors Payment,1300.00,0.00,COMMERCIAL SUPPLIER 
 09-12-2022,Adults,Lodge Group Care UK Ltd,Home Care - Private Contractors Payment,1300.52,0.00,COMMERCIAL SUPPLIER 
 09-12-2022,Adults,Ashgate House Ltd_a,Residential Placements - Private Contractors Payment,1303.80,0.00,COMMERCIAL SUPPLIER 
 09-12-2022,Adults,Cera Care Operations Ltd,Home Care - Private Contractors Payment,1308.39,0.00,COMMERCIAL SUPPLIER 
 06-12-2022,Adults,London Homecare Ltd,Home Care - Private Contractors Payment,1318.56,0.00,COMMERCIAL SUPPLIER 
 09-12-2022,Adults,L & Q Living (SWIFT Payments),Supported Other Accommodation - Private Contractors Payment,1318.72,0.00,COMMERCIAL SUPPLIER 
 09-12-2022,Adults,Lodge Group Care UK Ltd,Home Care - Private Contractors Payment,1321.18,0.00,COMMERCIAL SUPPLIER 
 04-12-2022,Adults,Homestead Care Service,Home Care - Private Contractors Payment,1325.45,0.00,COMMERCIAL SUPPLIER 
 04-12-2022,Adults,Optimal Care Services Ltd,Supported Other Accommodation - Private Contractors Payment,1326.82,0.00,COMMERCIAL SUPPLIER 
 04-12-2022,Adults,Homestead Care Service,Home Care - Private Contractors Payment,1327.74,0.00,COMMERCIAL SUPPLIER 
 06-12-2022,Adults,Care-Away Ltd T/A Care Support,Home Care - Private Contractors Payment,1331.20,0.00,COMMERCIAL SUPPLIER 
 12-12-2022,Adults,Prior Care Ltd_a,Home Care - Private Contractors Payment,1334.30,0.00,COMMERCIAL SUPPLIER 
 09-12-2022,Adults,Langley House,Respite Care - Private Contractors Payment,1335.71,0.00,COMMERCIAL SUPPLIER 
 09-12-2022,Adults,Lodge Group Care UK Ltd,Home Care - Private Contractors Payment,1338.24,0.00,COMMERCIAL SUPPLIER 
 09-12-2022,Adults,Lodge Group Care UK Ltd,Home Care - Private Contractors Payment,1344.47,0.00,COMMERCIAL SUPPLIER 
 09-12-2022,Adults,2 Peel Way - Outlook Care,Supported Other Accommodation - Private Contractors Payment,1349.88,0.00,NON COMMERCIAL SUPPLIER 
 14-12-2022,Adults,Matrix SCM Ltd,Agency Staff,1350.00,0.00,COMMERCIAL SUPPLIER 
 07-12-2022,Adults,Matrix SCM Ltd,Agency Staff,1350.02,0.00,COMMERCIAL SUPPLIER 
 09-12-2022,Adults,Lodge Group Care UK Ltd,Home Care - Private Contractors Payment,1350.38,0.00,COMMERCIAL SUPPLIER 
 04-12-2022,Adults,Homestead Care Service,Home Care - Private Contractors Payment,1351.03,0.00,COMMERCIAL SUPPLIER 
 09-12-2022,Adults,HC-One Oval Ltd - The Hornchurch Nursing Centre,Respite Care - Private Contractors Payment,1356.00,0.00,COMMERCIAL SUPPLIER 
 06-12-2022,Adults,Hospiva Care & Associates Agency Ltd_a,Home Care - Private Contractors Payment,1358.25,0.00,COMMERCIAL SUPPLIER 
 06-12-2022,Adults,Hospiva Care & Associates Agency Ltd_a,Home Care - Private Contractors Payment,1358.58,0.00,COMMERCIAL SUPPLIER 
 09-12-2022,Adults,Lodge Group Care UK Ltd,Home Care - Private Contractors Payment,1365.14,0.00,COMMERCIAL SUPPLIER 
 08-12-2022,Adults,Home Support Services (Havering & Essex) Ltd,Home Care - Private Contractors Payment,1370.71,0.00,COMMERCIAL SUPPLIER 
 05-12-2022,Adults,Passion Tree Care Services Ltd,Home Care - Private Contractors Payment,1377.60,0.00,COMMERCIAL SUPPLIER 
 12-12-2022,Adults,Crystalize Care Services,Home Care - Private Contractors Payment,1377.60,0.00,COMMERCIAL SUPPLIER 
 12-12-2022,Adults,Crystalize Care Services,Home Care - Private Contractors Payment,1377.60,0.00,COMMERCIAL SUPPLIER 
 04-12-2022,Adults,Eastway Care Ltd_a,Daycare - Private Contractors Payment,1380.00,0.00,COMMERCIAL SUPPLIER 
 06-12-2022,Adults,Care-Away Ltd T/A Care Support,Home Care - Private Contractors Payment,1381.12,0.00,COMMERCIAL SUPPLIER 
 29-12-2022,Adults,Matrix SCM Ltd,Agency Staff,1384.58,0.00,COMMERCIAL SUPPLIER 
 09-12-2022,Adults,Morepower Ltd t/a Aqs Homecare,Home Care - Private Contractors Payment,1386.46,0.00,COMMERCIAL SUPPLIER 
 09-12-2022,Adults,Morepower Ltd t/a Aqs Homecare,Home Care - Private Contractors Payment,1386.46,0.00,COMMERCIAL SUPPLIER 
 09-12-2022,Adults,Nightingale Residential Care Home Ltd,Respite Care - Private Contractors Payment,1390.00,0.00,COMMERCIAL SUPPLIER 
 08-12-2022,Adults,Jaktol Day Centers,Daycare - Private Contractors Payment,1393.92,0.00,COMMERCIAL SUPPLIER 
 08-12-2022,Adults,Jaktol Day Centers,Daycare - Private Contractors Payment,1393.92,0.00,COMMERCIAL SUPPLIER 
 07-12-2022,Adults,Matrix SCM Ltd,Agency Staff,1394.66,0.00,COMMERCIAL SUPPLIER 
 14-12-2022,Adults,Matrix SCM Ltd,Agency Staff,1394.66,0.00,COMMERCIAL SUPPLIER 
 21-12-2022,Adults,Matrix SCM Ltd,Agency Staff,1394.66,0.00,COMMERCIAL SUPPLIER 
 21-12-2022,Adults,Matrix SCM Ltd,Agency Staff,1395.73,0.00,COMMERCIAL SUPPLIER 
 03-12-2022,Adults,Personal Information � Redacted,Home Care - Private Contractors Payment,1397.28,0.00,INDIVIDUALS 
 06-12-2022,Adults,London Homecare Ltd,Home Care - Private Contractors Payment,1397.28,0.00,COMMERCIAL SUPPLIER 
 06-12-2022,Adults,Care-Away Ltd T/A Care Support,Home Care - Private Contractors Payment,1397.76,0.00,COMMERCIAL SUPPLIER 
 07-12-2022,Adults,Matrix SCM Ltd,Agency Staff,1400.77,0.00,COMMERCIAL SUPPLIER 
 21-12-2022,Adults,Matrix SCM Ltd,Agency Staff,1400.77,0.00,COMMERCIAL SUPPLIER 
 06-12-2022,Adults,Home Sweet Home Care Ltd,Home Care - Private Contractors Payment,1407.45,0.00,COMMERCIAL SUPPLIER 
 21-12-2022,Adults,Matrix SCM Ltd,Agency Staff,1411.94,0.00,COMMERCIAL SUPPLIER 
 12-12-2022,Adults,Crystalize Care Services,Home Care - Private Contractors Payment,1416.96,0.00,COMMERCIAL SUPPLIER 
 07-12-2022,Adults,Anytime Care 2020_a,Home Care - Private Contractors Payment,1420.24,0.00,COMMERCIAL SUPPLIER 
 09-12-2022,Adults,Lodge Group Care UK Ltd,Home Care - Private Contractors Payment,1420.90,0.00,COMMERCIAL SUPPLIER 
 21-12-2022,Adults,Matrix SCM Ltd,Agency Staff,1436.42,0.00,COMMERCIAL SUPPLIER 
 29-12-2022,Adults,Matrix SCM Ltd,Agency Staff,1436.42,0.00,COMMERCIAL SUPPLIER 
 04-12-2022,Adults,Westminster Homecare Ltd_a,Home Care - Private Contractors Payment,1436.64,0.00,COMMERCIAL SUPPLIER 
 09-12-2022,Adults,Lodge Group Care UK Ltd,Home Care - Private Contractors Payment,1437.95,0.00,COMMERCIAL SUPPLIER 
 09-12-2022,Adults,Lodge Group Care UK Ltd,Home Care - Private Contractors Payment,1438.61,0.00,COMMERCIAL SUPPLIER 
 09-12-2022,Adults,Bettertogether Limited,Supported Other Accommodation - Private Contractors Payment,1440.00,0.00,NON COMMERCIAL SUPPLIER 
 12-12-2022,Adults,London Borough of Barking & Dagenham_a,Daycare - Private Contractors Payment,1440.00,0.00,LOCAL AUTHORITY SERVICES 
 12-12-2022,Adults,London Borough of Barking & Dagenham_a,Daycare - Private Contractors Payment,1440.00,0.00,LOCAL AUTHORITY SERVICES 
 13-12-2022,Adults,Funky Willows Ltd,Daycare - Private Contractors Payment,1440.00,0.00,COMMERCIAL SUPPLIER 
 13-12-2022,Adults,Funky Willows Ltd,Daycare - Private Contractors Payment,1440.00,0.00,COMMERCIAL SUPPLIER 
 13-12-2022,Adults,Funky Willows Ltd,Daycare - Private Contractors Payment,1440.00,0.00,COMMERCIAL SUPPLIER 
 09-12-2022,Adults,Lodge Group Care UK Ltd,Home Care - Private Contractors Payment,1446.15,0.00,COMMERCIAL SUPPLIER 
 07-12-2022,Adults,Matrix SCM Ltd,Agency Staff,1462.34,0.00,COMMERCIAL SUPPLIER 
 14-12-2022,Adults,Matrix SCM Ltd,Agency Staff,1462.34,0.00,COMMERCIAL SUPPLIER 
 09-12-2022,Adults,Black Swan International Ltd - Drummonds,Residential Placements - Private Contractors Payment,1470.00,0.00,COMMERCIAL SUPPLIER 
 14-12-2022,Adults,Matrix SCM Ltd,Agency Staff,1473.12,0.00,COMMERCIAL SUPPLIER 
 09-12-2022,Adults,Blueboard Care Services Ltd,Supported Other Accommodation - Private Contractors Payment,1478.40,0.00,COMMERCIAL SUPPLIER 
 09-12-2022,Adults,Blueboard Care Services Ltd,Supported Other Accommodation - Private Contractors Payment,1478.40,0.00,COMMERCIAL SUPPLIER 
 09-12-2022,Adults,The Cedars,Supported Other Accommodation - Private Contractors Payment,1479.24,0.00,COMMERCIAL SUPPLIER 
 29-12-2022,Adults,Matrix SCM Ltd,Agency Staff,1482.64,0.00,COMMERCIAL SUPPLIER 
 09-12-2022,Adults,Ebony Health Care Services Limited,Supported Other Accommodation - Private Contractors Payment,1496.24,0.00,COMMERCIAL SUPPLIER 
 06-12-2022,Adults,Hospiva Care & Associates Agency Ltd_a,Home Care - Private Contractors Payment,1511.10,0.00,COMMERCIAL SUPPLIER 
 06-12-2022,Adults,Care-Away Ltd T/A Care Support,Home Care - Private Contractors Payment,1514.24,0.00,COMMERCIAL SUPPLIER 
 06-12-2022,Adults,Premier Carewaiting Ltd,Home Care - Private Contractors Payment,1515.36,0.00,COMMERCIAL SUPPLIER 
 09-12-2022,Adults,Morepower Ltd t/a Aqs Homecare,Home Care - Private Contractors Payment,1524.54,0.00,COMMERCIAL SUPPLIER 
 09-12-2022,Adults,Lodge Group Care UK Ltd,Home Care - Private Contractors Payment,1527.50,0.00,COMMERCIAL SUPPLIER 
 09-12-2022,Adults,The Cedars,Supported Other Accommodation - Private Contractors Payment,1531.00,0.00,COMMERCIAL SUPPLIER 
 04-12-2022,Adults,Westminster Homecare Ltd_a,Home Care - Private Contractors Payment,1532.42,0.00,COMMERCIAL SUPPLIER 
 04-12-2022,Adults,Westminster Homecare Ltd_a,Home Care - Private Contractors Payment,1533.07,0.00,COMMERCIAL SUPPLIER 
 07-12-2022,Adults,Matrix SCM Ltd,Agency Staff,1533.82,0.00,COMMERCIAL SUPPLIER 
 06-12-2022,Adults,Pleasant Home Healthcare Ltd,Home Care - Private Contractors Payment,1535.04,0.00,COMMERCIAL SUPPLIER 
 09-12-2022,Adults,Affinia Healthcare Ltd_a,Supported Other Accommodation - Private Contractors Payment,1538.48,0.00,COMMERCIAL SUPPLIER 
 05-12-2022,Adults,Passion Tree Care Services Ltd,Home Care - Private Contractors Payment,1554.72,0.00,COMMERCIAL SUPPLIER 
 09-12-2022,Adults,Outlook Care - 76 Neave Crescent,Supported Other Accommodation - Private Contractors Payment,1562.00,0.00,COMMERCIAL SUPPLIER 
 09-12-2022,Adults,Outlook Care - 76 Neave Crescent,Supported Other Accommodation - Private Contractors Payment,1562.00,0.00,COMMERCIAL SUPPLIER 
 09-12-2022,Adults,Outlook Care - 76 Neave Crescent,Supported Other Accommodation - Private Contractors Payment,1562.00,0.00,COMMERCIAL SUPPLIER 
 09-12-2022,Adults,Outlook Care - 76 Neave Crescent,Supported Other Accommodation - Private Contractors Payment,1562.00,0.00,COMMERCIAL SUPPLIER 
 09-12-2022,Adults,Outlook Care - 76 Neave Crescent,Supported Other Accommodation - Private Contractors Payment,1562.00,0.00,COMMERCIAL SUPPLIER 
 09-12-2022,Adults,Outlook Care - 76 Neave Crescent,Supported Other Accommodation - Private Contractors Payment,1562.00,0.00,COMMERCIAL SUPPLIER 
 09-12-2022,Adults,Outlook Care - 76 Neave Crescent,Supported Other Accommodation - Private Contractors Payment,1562.00,0.00,COMMERCIAL SUPPLIER 
 09-12-2022,Adults,Outlook Care - 76 Neave Crescent,Supported Other Accommodation - Private Contractors Payment,1562.00,0.00,COMMERCIAL SUPPLIER 
 09-12-2022,Adults,Outlook Care - 76 Neave Crescent,Supported Other Accommodation - Private Contractors Payment,1562.00,0.00,COMMERCIAL SUPPLIER 
 09-12-2022,Adults,Outlook Care - 86 Veronica Close,Residential Placements - Private Contractors Payment,1565.56,0.00,COMMERCIAL SUPPLIER 
 09-12-2022,Adults,Outlook Care - 76 Neave Crescent,Supported Other Accommodation - Private Contractors Payment,1566.60,0.00,COMMERCIAL SUPPLIER 
 09-12-2022,Adults,Outlook Care - 76 Neave Crescent,Supported Other Accommodation - Private Contractors Payment,1566.60,0.00,COMMERCIAL SUPPLIER 
 09-12-2022,Adults,Outlook Care - 4 Peel Way,Supported Other Accommodation - Private Contractors Payment,1570.80,0.00,COMMERCIAL SUPPLIER 
 09-12-2022,Adults,Pathways Care and Support Services Ltd,Supported Other Accommodation - Private Contractors Payment,1581.72,0.00,COMMERCIAL SUPPLIER 
 09-12-2022,Adults,Highfield Care Homes Ltd t/a Romford Grange Care Home,Residential Placements - Private Contractors Payment,1588.57,0.00,COMMERCIAL SUPPLIER 
 09-12-2022,Adults,Anchor - Blackbrook House,Residential Placements - Private Contractors Payment,1588.57,0.00,COMMERCIAL SUPPLIER 
 09-12-2022,Adults,Outlook Care - 76 Neave Crescent,Supported Other Accommodation - Private Contractors Payment,1597.92,0.00,COMMERCIAL SUPPLIER 
 09-12-2022,Adults,Outlook Care - 76 Neave Crescent,Supported Other Accommodation - Private Contractors Payment,1597.92,0.00,COMMERCIAL SUPPLIER 
 09-12-2022,Adults,Outlook Care - 76 Neave Crescent,Supported Other Accommodation - Private Contractors Payment,1597.92,0.00,COMMERCIAL SUPPLIER 
 09-12-2022,Adults,Outlook Care - 76 Neave Crescent,Supported Other Accommodation - Private Contractors Payment,1597.92,0.00,COMMERCIAL SUPPLIER 
 21-12-2022,Adults,Matrix SCM Ltd,Agency Staff,1598.65,0.00,COMMERCIAL SUPPLIER 
 07-12-2022,Adults,Matrix SCM Ltd,Agency Staff,1601.28,0.00,COMMERCIAL SUPPLIER 
 14-12-2022,Adults,Matrix SCM Ltd,Agency Staff,1601.28,0.00,COMMERCIAL SUPPLIER 
 09-12-2022,Adults,Coastal Supported Living CIC,Supported Other Accommodation - Private Contractors Payment,1606.88,0.00,COMMERCIAL SUPPLIER 
 06-12-2022,Adults,Home Sweet Home Care Ltd,Home Care - Private Contractors Payment,1607.86,0.00,COMMERCIAL SUPPLIER 
 14-12-2022,Adults,Matrix SCM Ltd,Agency Staff,1609.33,0.00,COMMERCIAL SUPPLIER 
 21-12-2022,Adults,Matrix SCM Ltd,Agency Staff,1611.64,0.00,COMMERCIAL SUPPLIER 
 09-12-2022,Adults,Bettertogether Limited,Supported Other Accommodation - Private Contractors Payment,1612.00,0.00,NON COMMERCIAL SUPPLIER 
 09-12-2022,Adults,Bettertogether Limited,Supported Other Accommodation - Private Contractors Payment,1612.00,0.00,NON COMMERCIAL SUPPLIER 
 09-12-2022,Adults,Ashking House Ltd,Residential Placements - Private Contractors Payment,1616.84,0.00,COMMERCIAL SUPPLIER 
 09-12-2022,Adults,The Riverside Group,Supported Other Accommodation - Private Contractors Payment,1623.12,0.00, 
 05-12-2022,Adults,Outreach Support Services Ltd,Home Care - Private Contractors Payment,1633.44,0.00,COMMERCIAL SUPPLIER 
 09-12-2022,Adults,Forward Support Ltd ,Residential Placements - Private Contractors Payment,1633.93,0.00,COMMERCIAL SUPPLIER 
 07-12-2022,Adults,Matrix SCM Ltd,Agency Staff,1649.12,0.00,COMMERCIAL SUPPLIER 
 09-12-2022,Adults,Affinia Healthcare Ltd_a,Supported Other Accommodation - Private Contractors Payment,1650.76,0.00,COMMERCIAL SUPPLIER 
 04-12-2022,Adults,Bloomscare Ltd,Home Care - Private Contractors Payment,1653.12,0.00,COMMERCIAL SUPPLIER 
 04-12-2022,Adults,Bloomscare Ltd,Home Care - Private Contractors Payment,1653.12,0.00,COMMERCIAL SUPPLIER 
 05-12-2022,Adults,Outreach Support Services Ltd,Home Care - Private Contractors Payment,1653.12,0.00,COMMERCIAL SUPPLIER 
 14-12-2022,Adults,Matrix SCM Ltd,Agency Staff,1666.77,0.00,COMMERCIAL SUPPLIER 
 09-12-2022,Adults,Cartref Croeso Residential Home ,Residential Placements - Private Contractors Payment,1671.43,0.00,COMMERCIAL SUPPLIER 
 05-12-2022,Adults,Prestige Care & Support Ltd,Home Care - Private Contractors Payment,1672.80,0.00,COMMERCIAL SUPPLIER 
 07-12-2022,Adults,Matrix SCM Ltd,Agency Staff,1675.90,0.00,COMMERCIAL SUPPLIER 
 14-12-2022,Adults,Matrix SCM Ltd,Agency Staff,1675.90,0.00,COMMERCIAL SUPPLIER 
 09-12-2022,Adults,Outlook Care - 76 Neave Crescent,Supported Other Accommodation - Private Contractors Payment,1677.92,0.00,COMMERCIAL SUPPLIER 
 14-12-2022,Adults,Matrix SCM Ltd,Agency Staff,1679.40,0.00,COMMERCIAL SUPPLIER 
 02-12-2022,Adults,Avocet Services Ltd,Professional Services - General,1680.00,0.00,NON COMMERCIAL SUPPLIER 
 09-12-2022,Adults,Protecthand Care Ltd ,Supported Other Accommodation - Private Contractors Payment,1680.00,0.00,COMMERCIAL SUPPLIER 
 07-12-2022,Adults,Matrix SCM Ltd,Agency Staff,1686.60,0.00,COMMERCIAL SUPPLIER 
 14-12-2022,Adults,Matrix SCM Ltd,Agency Staff,1686.60,0.00,COMMERCIAL SUPPLIER 
 09-12-2022,Adults,2 Peel Way - Outlook Care,Supported Other Accommodation - Private Contractors Payment,1687.28,0.00,NON COMMERCIAL SUPPLIER 
 09-12-2022,Adults,May Residential Homes Ltd,Residential Placements - Private Contractors Payment,1687.86,0.00,COMMERCIAL SUPPLIER 
 05-12-2022,Adults,IJB Healthcare Ltd,Home Care - Private Contractors Payment,1692.48,0.00,COMMERCIAL SUPPLIER 
 09-12-2022,Adults,Affinia Healthcare Ltd_a,Supported Other Accommodation - Private Contractors Payment,1704.20,0.00,COMMERCIAL SUPPLIER 
 09-12-2022,Adults,Outlook Care - 4 Peel Way,Supported Other Accommodation - Private Contractors Payment,1719.80,0.00,COMMERCIAL SUPPLIER 
 09-12-2022,Adults,Outlook Care - 76 Neave Crescent,Supported Other Accommodation - Private Contractors Payment,1719.88,0.00,COMMERCIAL SUPPLIER 
 09-12-2022,Adults,Vibrance ,Residential Placements - Private Contractors Payment,1720.76,0.00,COMMERCIAL SUPPLIER 
 09-12-2022,Adults,2 Peel Way - Outlook Care,Supported Other Accommodation - Private Contractors Payment,1721.00,0.00,NON COMMERCIAL SUPPLIER 
 09-12-2022,Adults,Lodge Group Care UK Ltd,Home Care - Private Contractors Payment,1721.02,0.00,COMMERCIAL SUPPLIER 
 09-12-2022,Adults,Affinia Healthcare Ltd_a,Supported Other Accommodation - Private Contractors Payment,1731.28,0.00,COMMERCIAL SUPPLIER 
 29-12-2022,Adults,Matrix SCM Ltd,Agency Staff,1744.00,0.00,COMMERCIAL SUPPLIER 
 09-12-2022,Adults,Affinia Healthcare Ltd_a,Supported Other Accommodation - Private Contractors Payment,1751.12,0.00,COMMERCIAL SUPPLIER 
 09-12-2022,Adults,Affinia Healthcare Ltd_a,Supported Other Accommodation - Private Contractors Payment,1751.12,0.00,COMMERCIAL SUPPLIER 
 09-12-2022,Adults,Affinia Healthcare Ltd_a,Supported Other Accommodation - Private Contractors Payment,1751.12,0.00,COMMERCIAL SUPPLIER 
 09-12-2022,Adults,Affinia Healthcare Ltd_a,Supported Other Accommodation - Private Contractors Payment,1752.48,0.00,COMMERCIAL SUPPLIER 
 14-12-2022,Adults,Matrix SCM Ltd,Agency Staff,1754.78,0.00,COMMERCIAL SUPPLIER 
 09-12-2022,Adults,Cera Care Operations Ltd,Home Care - Private Contractors Payment,1757.75,0.00,COMMERCIAL SUPPLIER 
 05-12-2022,Adults,Outreach Support Services Ltd,Home Care - Private Contractors Payment,1758.48,0.00,COMMERCIAL SUPPLIER 
 05-12-2022,Adults,Outreach Support Services Ltd,Home Care - Private Contractors Payment,1758.48,0.00,COMMERCIAL SUPPLIER 
 23-12-2022,Adults,Thurrock Lifestyle Solutions CIC,Daycare - Private Contractors Payment,1760.00,0.00,COMMERCIAL SUPPLIER 
 09-12-2022,Adults,Abbottswood Lodge,Residential Placements - Private Contractors Payment,1763.76,0.00,COMMERCIAL SUPPLIER 
 09-12-2022,Adults,Cera Care Operations Ltd,Home Care - Private Contractors Payment,1765.95,0.00,COMMERCIAL SUPPLIER 
 12-12-2022,Adults,John Stanleys Care Agency Ltd,Home Care - Private Contractors Payment,1771.20,0.00,COMMERCIAL SUPPLIER 
 09-12-2022,Adults,Bettertogether Limited,Supported Other Accommodation - Private Contractors Payment,1776.00,0.00,NON COMMERCIAL SUPPLIER 
 03-12-2022,Adults,Personal Information � Redacted,Home Care - Private Contractors Payment,1790.88,0.00,INDIVIDUALS 
 06-12-2022,Adults,Pleasant Home Healthcare Ltd,Home Care - Private Contractors Payment,1790.88,0.00,COMMERCIAL SUPPLIER 
 04-12-2022,Adults,Vibrance Outreach,Daycare - Private Contractors Payment,1795.64,0.00,COMMERCIAL SUPPLIER 
 09-12-2022,Adults,Outlook Care - 4 Peel Way,Supported Other Accommodation - Private Contractors Payment,1796.08,0.00,COMMERCIAL SUPPLIER 
 09-12-2022,Adults,Outlook Care - 4 Peel Way,Supported Other Accommodation - Private Contractors Payment,1796.08,0.00,COMMERCIAL SUPPLIER 
 08-12-2022,Adults,Matrix SCM Ltd,Consultancy Fees,1799.60,0.00,COMMERCIAL SUPPLIER 
 08-12-2022,Adults,Matrix SCM Ltd,Consultancy Fees,1799.60,0.00,COMMERCIAL SUPPLIER 
 09-12-2022,Adults,Kadmiel Projects Ltd,Supported Other Accommodation - Private Contractors Payment,1803.36,0.00,COMMERCIAL SUPPLIER 
 09-12-2022,Adults,Kadmiel Projects Ltd,Supported Other Accommodation - Private Contractors Payment,1812.88,0.00,COMMERCIAL SUPPLIER 
 09-12-2022,Adults,Morepower Ltd t/a Aqs Homecare,Home Care - Private Contractors Payment,1815.48,0.00,COMMERCIAL SUPPLIER 
 09-12-2022,Adults,Affinia Healthcare Ltd_a,Supported Other Accommodation - Private Contractors Payment,1817.80,0.00,COMMERCIAL SUPPLIER 
 09-12-2022,Adults,Forward Support Ltd ,Residential Placements - Private Contractors Payment,1830.00,0.00,COMMERCIAL SUPPLIER 
 09-12-2022,Adults,Bettertogether Limited,Supported Other Accommodation - Private Contractors Payment,1832.00,0.00,NON COMMERCIAL SUPPLIER 
 09-12-2022,Adults,Bettertogether Limited,Supported Other Accommodation - Private Contractors Payment,1832.00,0.00,NON COMMERCIAL SUPPLIER 
 09-12-2022,Adults,Bettertogether Limited,Supported Other Accommodation - Private Contractors Payment,1832.00,0.00,NON COMMERCIAL SUPPLIER 
 09-12-2022,Adults,Bettertogether Limited,Supported Other Accommodation - Private Contractors Payment,1832.00,0.00,NON COMMERCIAL SUPPLIER 
 09-12-2022,Adults,Bettertogether Limited,Supported Other Accommodation - Private Contractors Payment,1832.00,0.00,NON COMMERCIAL SUPPLIER 
 09-12-2022,Adults,Bettertogether Limited,Supported Other Accommodation - Private Contractors Payment,1832.00,0.00,NON COMMERCIAL SUPPLIER 
 09-12-2022,Adults,Bettertogether Limited,Supported Other Accommodation - Private Contractors Payment,1832.00,0.00,NON COMMERCIAL SUPPLIER 
 09-12-2022,Adults,Emerson Court_a,Respite Care - Private Contractors Payment,1837.50,0.00,COMMERCIAL SUPPLIER 
 09-12-2022,Adults,Meadowbanks,Residential Placements - Private Contractors Payment,1860.00,0.00,COMMERCIAL SUPPLIER 
 07-12-2022,Adults,Care-Away Ltd T/A Care Support,Home Care - Private Contractors Payment,1863.68,0.00,COMMERCIAL SUPPLIER 
 09-12-2022,Adults,Maison Moti Ltd,Supported Other Accommodation - Private Contractors Payment,1890.00,0.00,COMMERCIAL SUPPLIER 
 09-12-2022,Adults,Affinia Healthcare Ltd_a,Supported Other Accommodation - Private Contractors Payment,1901.04,0.00,COMMERCIAL SUPPLIER 
 09-12-2022,Adults,S & S Support Service Ltd   ,Supported Other Accommodation - Private Contractors Payment,1904.00,0.00,COMMERCIAL SUPPLIER 
 05-12-2022,Adults,Outreach Support Services Ltd,Home Care - Private Contractors Payment,1928.64,0.00,COMMERCIAL SUPPLIER 
 08-12-2022,Adults,Inna Care Ltd,Home Care - Private Contractors Payment,1928.64,0.00,COMMERCIAL SUPPLIER 
 07-12-2022,Adults,Care-Away Ltd T/A Care Support,Home Care - Private Contractors Payment,1930.24,0.00,COMMERCIAL SUPPLIER 
 09-12-2022,Adults,Ashgate House Ltd_a,Residential Placements - Private Contractors Payment,1932.96,0.00,COMMERCIAL SUPPLIER 
 09-12-2022,Adults,Endsleigh Care Ltd,Residential Placements - Private Contractors Payment,1940.84,0.00,COMMERCIAL SUPPLIER 
 09-12-2022,Adults,Nightingale Residential Care Home Ltd,Residential Placements - Private Contractors Payment,1942.86,0.00,COMMERCIAL SUPPLIER 
 08-12-2022,Adults,Home Support Services (Havering & Essex) Ltd,Home Care - Private Contractors Payment,1946.35,0.00,COMMERCIAL SUPPLIER 
 03-12-2022,Adults,Personal Information � Redacted,Home Care - Private Contractors Payment,1948.32,0.00,INDIVIDUALS 
 08-12-2022,Adults,Inna Care Ltd,Home Care - Private Contractors Payment,1958.16,0.00,COMMERCIAL SUPPLIER 
 06-12-2022,Adults,Care-Away Ltd T/A Care Support,Home Care - Private Contractors Payment,1963.52,0.00,COMMERCIAL SUPPLIER 
 05-12-2022,Adults,Prestige Care & Support Ltd,Home Care - Private Contractors Payment,1974.89,0.00,COMMERCIAL SUPPLIER 
 09-12-2022,Adults,Affinia Healthcare Ltd_a,Supported Other Accommodation - Private Contractors Payment,1987.72,0.00,COMMERCIAL SUPPLIER 
 09-12-2022,Adults,Blueboard Care Services Ltd,Supported Other Accommodation - Private Contractors Payment,1999.20,0.00,COMMERCIAL SUPPLIER 
 09-12-2022,Adults,Ranc Care Homes Ltd - Romford Care Centre,Respite Care - Private Contractors Payment,2000.00,0.00,COMMERCIAL SUPPLIER 
 03-12-2022,Adults,Personal Information � Redacted,Home Care - Private Contractors Payment,2002.44,0.00,INDIVIDUALS 
 09-12-2022,Adults,S&A Care Services Ltd.,Supported Other Accommodation - Private Contractors Payment,2016.00,0.00,COMMERCIAL SUPPLIER 
 09-12-2022,Adults,S&A Care Services Ltd.,Supported Other Accommodation - Private Contractors Payment,2016.00,0.00,COMMERCIAL SUPPLIER 
 09-12-2022,Adults,Adjuvo Care Essex Ltd ,Supported Other Accommodation - Private Contractors Payment,2033.72,0.00,COMMERCIAL SUPPLIER 
 09-12-2022,Adults,DMP Healthcare (Heatherbrook) Ltd,Nursing Homes - Private Contractors Payment,2034.00,0.00,NON COMMERCIAL SUPPLIER 
 09-12-2022,Adults,Ranc Care Homes Ltd - Romford Care Centre,Respite Care - Private Contractors Payment,2042.86,0.00,COMMERCIAL SUPPLIER 
 09-12-2022,Adults,Black Swan International Ltd - Drummonds,Residential Placements - Private Contractors Payment,2044.00,0.00,COMMERCIAL SUPPLIER 
 05-12-2022,Adults,Outreach Support Services Ltd,Home Care - Private Contractors Payment,2046.72,0.00,COMMERCIAL SUPPLIER 
 05-12-2022,Adults,Outreach Support Services Ltd,Home Care - Private Contractors Payment,2046.72,0.00,COMMERCIAL SUPPLIER 
 05-12-2022,Adults,Outreach Support Services Ltd,Home Care - Private Contractors Payment,2046.72,0.00,COMMERCIAL SUPPLIER 
 05-12-2022,Adults,Outreach Support Services Ltd,Home Care - Private Contractors Payment,2046.72,0.00,COMMERCIAL SUPPLIER 
 19-12-2022,Adults,Trinity London Care Ltd,Daycare - Private Contractors Payment,2050.00,0.00,COMMERCIAL SUPPLIER 
 19-12-2022,Adults,Trinity London Care Ltd,Daycare - Private Contractors Payment,2050.00,0.00,COMMERCIAL SUPPLIER 
 19-12-2022,Adults,Trinity London Care Ltd,Daycare - Private Contractors Payment,2050.00,0.00,COMMERCIAL SUPPLIER 
 09-12-2022,Adults,Affinia Healthcare Ltd_a,Supported Other Accommodation - Private Contractors Payment,2053.68,0.00,COMMERCIAL SUPPLIER 
 09-12-2022,Adults,Bettertogether Limited,Supported Other Accommodation - Private Contractors Payment,2056.00,0.00,NON COMMERCIAL SUPPLIER 
 09-12-2022,Adults,Bettertogether Limited,Supported Other Accommodation - Private Contractors Payment,2056.00,0.00,NON COMMERCIAL SUPPLIER 
 09-12-2022,Adults,Bettertogether Limited,Supported Other Accommodation - Private Contractors Payment,2056.00,0.00,NON COMMERCIAL SUPPLIER 
 04-12-2022,Adults,Optimal Care Services Ltd,Supported Other Accommodation - Private Contractors Payment,2064.26,0.00,COMMERCIAL SUPPLIER 
 09-12-2022,Adults,Gemstone Properties Ltd,Residential Placements - Private Contractors Payment,2078.44,0.00,COMMERCIAL SUPPLIER 
 09-12-2022,Adults,Hillsview Care Services Ltd,Residential Placements - Private Contractors Payment,2079.00,0.00,COMMERCIAL SUPPLIER 
 07-12-2022,Adults,Care-Away Ltd T/A Care Support,Home Care - Private Contractors Payment,2096.64,0.00,COMMERCIAL SUPPLIER 
 09-12-2022,Adults,Cygnet (OE) Ltd ,Residential Placements - Private Contractors Payment,2100.00,0.00,COMMERCIAL SUPPLIER 
 09-12-2022,Adults,Alpine Resources UK Ltd,Supported Other Accommodation - Private Contractors Payment,2100.00,0.00,COMMERCIAL SUPPLIER 
 09-12-2022,Adults,Outreach Support Services Ltd,Supported Other Accommodation - Private Contractors Payment,2121.00,0.00,COMMERCIAL SUPPLIER 
 09-12-2022,Adults,Runwood Homes Plc - Woodbury Court,Residential Placements - Private Contractors Payment,2132.00,0.00,COMMERCIAL SUPPLIER 
 06-12-2022,Adults,Thurrock Lifestyle Solutions CIC,Supported Other Accommodation - Private Contractors Payment,2133.26,0.00,COMMERCIAL SUPPLIER 
 09-12-2022,Adults,Ash Grove Residential Care Home,Residential Placements - Private Contractors Payment,2142.86,0.00,COMMERCIAL SUPPLIER 
 05-12-2022,Adults,Agracare Ltd t/a Home Instead Senior Care,Home Care - Private Contractors Payment,2144.00,0.00,COMMERCIAL SUPPLIER 
 12-12-2022,Adults,London Borough of Barking & Dagenham_a,Daycare - Private Contractors Payment,2160.00,0.00,LOCAL AUTHORITY SERVICES 
 12-12-2022,Adults,London Borough of Barking & Dagenham_a,Daycare - Private Contractors Payment,2160.00,0.00,LOCAL AUTHORITY SERVICES 
 09-12-2022,Adults,Ranc Care Homes Ltd - Romford Care Centre,Respite Care - Private Contractors Payment,2200.00,0.00,COMMERCIAL SUPPLIER 
 06-12-2022,Adults,Hospiva Care & Associates Agency Ltd_a,Home Care - Private Contractors Payment,2204.16,0.00,COMMERCIAL SUPPLIER 
 06-12-2022,Adults,Hospiva Care & Associates Agency Ltd_a,Home Care - Private Contractors Payment,2204.16,0.00,COMMERCIAL SUPPLIER 
 08-12-2022,Adults,Inna Care Ltd,Home Care - Private Contractors Payment,2204.16,0.00,COMMERCIAL SUPPLIER 
 08-12-2022,Adults,Inna Care Ltd,Home Care - Private Contractors Payment,2204.16,0.00,COMMERCIAL SUPPLIER 
 12-12-2022,Adults,Gims Care Solution Ltd_a,Home Care - Private Contractors Payment,2204.16,0.00,NON COMMERCIAL SUPPLIER 
 09-12-2022,Adults,Cygnet Health Care,Residential Placements - Private Contractors Payment,2205.00,0.00,COMMERCIAL SUPPLIER 
 08-12-2022,Adults,Home Support Services (Havering & Essex) Ltd,Home Care - Private Contractors Payment,2209.08,0.00,COMMERCIAL SUPPLIER 
 02-12-2022,Adults,Romford Private Hire Ltd,Client Transport,2210.00,0.00,COMMERCIAL SUPPLIER 
 09-12-2022,Adults,Bettertogether Limited,Supported Other Accommodation - Private Contractors Payment,2236.00,0.00,NON COMMERCIAL SUPPLIER 
 08-12-2022,Adults,Jaktol Day Centers,Daycare - Private Contractors Payment,2239.68,0.00,COMMERCIAL SUPPLIER 
 09-12-2022,Adults,Outlook Care_a,Supported Other Accommodation - Private Contractors Payment,2253.44,0.00,COMMERCIAL SUPPLIER 
 09-12-2022,Adults,Faris Lodge,Supported Other Accommodation - Private Contractors Payment,2267.72,0.00,COMMERCIAL SUPPLIER 
 09-12-2022,Adults,Home From Home Support Service Ltd ,Supported Other Accommodation - Private Contractors Payment,2268.00,0.00,COMMERCIAL SUPPLIER 
 06-12-2022,Adults,London Homecare Ltd,Home Care - Private Contractors Payment,2282.88,0.00,COMMERCIAL SUPPLIER 
 09-12-2022,Adults,Ranc Care Homes Ltd - Romford Care Centre,Residential Placements - Private Contractors Payment,2283.57,0.00,COMMERCIAL SUPPLIER 
 09-12-2022,Adults,Pathways Care Group Ltd,Residential Placements - Private Contractors Payment,2285.56,0.00,COMMERCIAL SUPPLIER 
 09-12-2022,Adults,Willows Care Home - Churchgate Healthcare (Willows) Ltd,Respite Care - Private Contractors Payment,2300.00,0.00,COMMERCIAL SUPPLIER 
 09-12-2022,Adults,DMP Healthcare (Cherry Orchard) Ltd,Residential Placements - Private Contractors Payment,2300.12,0.00,COMMERCIAL SUPPLIER 
 09-12-2022,Adults,Livability - John Grooms Court,Residential Placements - Private Contractors Payment,2311.28,0.00,COMMERCIAL SUPPLIER 
 09-12-2022,Adults,Livability - John Grooms Court,Residential Placements - Private Contractors Payment,2311.28,0.00,COMMERCIAL SUPPLIER 
 09-12-2022,Adults,Beechcourt Care Centre - Bondcare,Nursing Homes - Private Contractors Payment,2324.57,0.00,COMMERCIAL SUPPLIER 
 07-12-2022,Adults,Care-Away Ltd T/A Care Support,Home Care - Private Contractors Payment,2329.60,0.00,COMMERCIAL SUPPLIER 
 09-12-2022,Adults,Kadmiel Projects Ltd,Supported Other Accommodation - Private Contractors Payment,2342.08,0.00,COMMERCIAL SUPPLIER 
 09-12-2022,Adults,2 Peel Way - Outlook Care,Supported Other Accommodation - Private Contractors Payment,2344.96,0.00,NON COMMERCIAL SUPPLIER 
 09-12-2022,Adults,Fresh Tree Care Services,Supported Other Accommodation - Private Contractors Payment,2352.00,0.00,COMMERCIAL SUPPLIER 
 08-12-2022,Adults,Home Support Services (Havering & Essex) Ltd,Home Care - Private Contractors Payment,2361.60,0.00,COMMERCIAL SUPPLIER 
 09-12-2022,Adults,One Tree Estates Ltd t/a Ashbrook Nursing Home,Nursing Homes - Private Contractors Payment,2376.00,0.00,COMMERCIAL SUPPLIER 
 09-12-2022,Adults,DMP Healthcare (Heatherbrook) Ltd,Nursing Homes - Private Contractors Payment,2376.00,0.00,NON COMMERCIAL SUPPLIER 
 09-12-2022,Adults,Lodge Lane Care Home Limited,Residential Placements - Private Contractors Payment,2382.86,0.00,COMMERCIAL SUPPLIER 
 09-12-2022,Adults,Clearwater Care (Hackney) Ltd - Craigdale,Supported Other Accommodation - Private Contractors Payment,2413.04,0.00,COMMERCIAL SUPPLIER 
 09-12-2022,Adults,Ebony Health Care Services Limited,Supported Other Accommodation - Private Contractors Payment,2417.68,0.00,COMMERCIAL SUPPLIER 
 09-12-2022,Adults,Priory Supporting Care Ltd,Residential Placements - Private Contractors Payment,2422.29,0.00,COMMERCIAL SUPPLIER 
 09-12-2022,Adults,Clearwater Care (Hackney) Ltd - Craigdale,Supported Other Accommodation - Private Contractors Payment,2425.52,0.00,COMMERCIAL SUPPLIER 
 09-12-2022,Adults,Cartref Croeso Residential Home ,Residential Placements - Private Contractors Payment,2442.86,0.00,COMMERCIAL SUPPLIER 
 05-12-2022,Adults,Bluebird Care Havering,Home Care - Private Contractors Payment,2450.00,0.00,COMMERCIAL SUPPLIER 
 05-12-2022,Adults,Bluebird Care Havering,Home Care - Private Contractors Payment,2450.00,0.00,COMMERCIAL SUPPLIER 
 09-12-2022,Adults,R G Care Ltd ,Residential Placements - Private Contractors Payment,2450.00,0.00,COMMERCIAL SUPPLIER 
 19-12-2022,Adults,Bluebird Care Havering,Home Care - Private Contractors Payment,2450.00,0.00,COMMERCIAL SUPPLIER 
 19-12-2022,Adults,Bluebird Care Havering,Home Care - Private Contractors Payment,2450.00,0.00,COMMERCIAL SUPPLIER 
 09-12-2022,Adults,Adjuvo Care and Support Ltd,Supported Other Accommodation - Private Contractors Payment,2463.68,0.00,COMMERCIAL SUPPLIER 
 23-12-2022,Adults,Thurrock Lifestyle Solutions CIC,Daycare - Private Contractors Payment,2464.00,0.00,COMMERCIAL SUPPLIER 
 09-12-2022,Adults,Black Swan International Ltd - Drummonds,Residential Placements - Private Contractors Payment,2468.80,0.00,COMMERCIAL SUPPLIER 
 09-12-2022,Adults,Black Swan International Ltd - Drummonds,Residential Placements - Private Contractors Payment,2468.80,0.00,COMMERCIAL SUPPLIER 
 09-12-2022,Adults,Highfield Care Homes Ltd t/a Romford Grange Care Home,Nursing Homes - Private Contractors Payment,2472.84,0.00,COMMERCIAL SUPPLIER 
 09-12-2022,Adults,Fountains Care Centre - Bondcare,Residential Placements - Private Contractors Payment,2480.00,0.00,COMMERCIAL SUPPLIER 
 09-12-2022,Adults,Fountains Care Centre - Bondcare,Residential Placements - Private Contractors Payment,2480.00,0.00,COMMERCIAL SUPPLIER 
 09-12-2022,Adults,Fountains Care Centre - Bondcare,Nursing Homes - Private Contractors Payment,2480.00,0.00,COMMERCIAL SUPPLIER 
 09-12-2022,Adults,Fountains Care Centre - Bondcare,Residential Placements - Private Contractors Payment,2480.00,0.00,COMMERCIAL SUPPLIER 
 09-12-2022,Adults,Highfield Care Homes Ltd t/a Romford Grange Care Home,Residential Placements - Private Contractors Payment,2480.00,0.00,COMMERCIAL SUPPLIER 
 09-12-2022,Adults,Beechcourt Care Centre - Bondcare,Residential Placements - Private Contractors Payment,2480.00,0.00,COMMERCIAL SUPPLIER 
 09-12-2022,Adults,Oakley Carehomes Ltd t/a Abbey Care Home,Residential Placements - Private Contractors Payment,2480.00,0.00,COMMERCIAL SUPPLIER 
 09-12-2022,Adults,Masumin Ltd t/s Abbeleigh House,Residential Placements - Private Contractors Payment,2480.00,0.00,COMMERCIAL SUPPLIER 
 09-12-2022,Adults,Clover Cottage Ltd,Residential Placements - Private Contractors Payment,2480.00,0.00,COMMERCIAL SUPPLIER 
 09-12-2022,Adults,Clover Cottage Ltd,Residential Placements - Private Contractors Payment,2480.00,0.00,COMMERCIAL SUPPLIER 
 09-12-2022,Adults,Clover Cottage Ltd,Residential Placements - Private Contractors Payment,2480.00,0.00,COMMERCIAL SUPPLIER 
 09-12-2022,Adults,Clover Cottage Ltd,Residential Placements - Private Contractors Payment,2480.00,0.00,COMMERCIAL SUPPLIER 
 09-12-2022,Adults,Langley House,Residential Placements - Private Contractors Payment,2480.00,0.00,COMMERCIAL SUPPLIER 
 09-12-2022,Adults,Langley House,Residential Placements - Private Contractors Payment,2480.00,0.00,COMMERCIAL SUPPLIER 
 09-12-2022,Adults,Langley House,Residential Placements - Private Contractors Payment,2480.00,0.00,COMMERCIAL SUPPLIER 
 09-12-2022,Adults,Oaks Residential Home,Residential Placements - Private Contractors Payment,2480.00,0.00,COMMERCIAL SUPPLIER 
 09-12-2022,Adults,Ash Grove Residential Care Home,Residential Placements - Private Contractors Payment,2480.00,0.00,COMMERCIAL SUPPLIER 
 09-12-2022,Adults,Ash Grove Residential Care Home,Residential Placements - Private Contractors Payment,2480.00,0.00,COMMERCIAL SUPPLIER 
 09-12-2022,Adults,GCH - Hillside Nursing Home,Residential Placements - Private Contractors Payment,2480.00,0.00,COMMERCIAL SUPPLIER 
 09-12-2022,Adults,Barleycroft Care Home Ltd,Residential Placements - Private Contractors Payment,2480.00,0.00,COMMERCIAL SUPPLIER 
 09-12-2022,Adults,Barleycroft Care Home Ltd,Residential Placements - Private Contractors Payment,2480.00,0.00,COMMERCIAL SUPPLIER 
 09-12-2022,Adults,Barleycroft Care Home Ltd,Residential Placements - Private Contractors Payment,2480.00,0.00,COMMERCIAL SUPPLIER 
 09-12-2022,Adults,Meadowbanks,Residential Placements - Private Contractors Payment,2480.00,0.00,COMMERCIAL SUPPLIER 
 09-12-2022,Adults,Pathways Care Group Ltd,Residential Placements - Private Contractors Payment,2486.16,0.00,COMMERCIAL SUPPLIER 
 09-12-2022,Adults,Affinia Healthcare Ltd_a,Supported Other Accommodation - Private Contractors Payment,2490.32,0.00,COMMERCIAL SUPPLIER 
 09-12-2022,Adults,Alpine Resources UK Ltd,Supported Other Accommodation - Private Contractors Payment,2504.24,0.00,COMMERCIAL SUPPLIER 
 09-12-2022,Adults,HC-One Oval Ltd - Chaseview,Nursing Homes - Private Contractors Payment,2516.76,0.00,COMMERCIAL SUPPLIER 
 09-12-2022,Adults,Acer Healthcare Operation Ltd,Nursing Homes - Private Contractors Payment,2516.76,0.00,COMMERCIAL SUPPLIER 
 09-12-2022,Adults,Ebony Health Care Services Limited,Supported Other Accommodation - Private Contractors Payment,2520.00,0.00,COMMERCIAL SUPPLIER 
 09-12-2022,Adults,Independent Community Support Ltd t/a Wingletye Lodge ,Supported Other Accommodation - Private Contractors Payment,2520.00,0.00,COMMERCIAL SUPPLIER 
 09-12-2022,Adults,Ladyville Lodge_a,Nursing Homes - Private Contractors Payment,2525.92,0.00,COMMERCIAL SUPPLIER 
 09-12-2022,Adults,Fountains Care Centre - Bondcare,Nursing Homes - Private Contractors Payment,2528.00,0.00,COMMERCIAL SUPPLIER 
 09-12-2022,Adults,Havering Care Homes Ltd t/a Abbscross Nursing Home,Nursing Homes - Private Contractors Payment,2528.00,0.00,COMMERCIAL SUPPLIER 
 09-12-2022,Adults,Havering Care Homes Ltd t/a Abbscross Nursing Home,Nursing Homes - Private Contractors Payment,2528.00,0.00,COMMERCIAL SUPPLIER 
 09-12-2022,Adults,One Tree Estates Ltd t/a Ashbrook Nursing Home,Nursing Homes - Private Contractors Payment,2528.00,0.00,COMMERCIAL SUPPLIER 
 09-12-2022,Adults,Highfield Care Homes Ltd t/a Romford Grange Care Home,Residential Placements - Private Contractors Payment,2528.00,0.00,COMMERCIAL SUPPLIER 
 09-12-2022,Adults,Highfield Care Homes Ltd t/a Romford Grange Care Home,Nursing Homes - Private Contractors Payment,2528.00,0.00,COMMERCIAL SUPPLIER 
 09-12-2022,Adults,Highfield Care Homes Ltd t/a Romford Grange Care Home,Nursing Homes - Private Contractors Payment,2528.00,0.00,COMMERCIAL SUPPLIER 
 09-12-2022,Adults,Highfield Care Homes Ltd t/a Romford Grange Care Home,Nursing Homes - Private Contractors Payment,2528.00,0.00,COMMERCIAL SUPPLIER 
 09-12-2022,Adults,Highfield Care Homes Ltd t/a Romford Grange Care Home,Nursing Homes - Private Contractors Payment,2528.00,0.00,COMMERCIAL SUPPLIER 
 09-12-2022,Adults,HC-One Oval Ltd - The Hornchurch Nursing Centre,Nursing Homes - Private Contractors Payment,2528.00,0.00,COMMERCIAL SUPPLIER 
 09-12-2022,Adults,HC-One Oval Ltd - The Hornchurch Nursing Centre,Nursing Homes - Private Contractors Payment,2528.00,0.00,COMMERCIAL SUPPLIER 
 09-12-2022,Adults,HC-One Oval Ltd - The Hornchurch Nursing Centre,Nursing Homes - Private Contractors Payment,2528.00,0.00,COMMERCIAL SUPPLIER 
 09-12-2022,Adults,Beechcourt Care Centre - Bondcare,Nursing Homes - Private Contractors Payment,2528.00,0.00,COMMERCIAL SUPPLIER 
 09-12-2022,Adults,Beechcourt Care Centre - Bondcare,Nursing Homes - Private Contractors Payment,2528.00,0.00,COMMERCIAL SUPPLIER 
 09-12-2022,Adults,Beechcourt Care Centre - Bondcare,Nursing Homes - Private Contractors Payment,2528.00,0.00,COMMERCIAL SUPPLIER 
 09-12-2022,Adults,Beechcourt Care Centre - Bondcare,Nursing Homes - Private Contractors Payment,2528.00,0.00,COMMERCIAL SUPPLIER 
 09-12-2022,Adults,Beechcourt Care Centre - Bondcare,Nursing Homes - Private Contractors Payment,2528.00,0.00,COMMERCIAL SUPPLIER 
 09-12-2022,Adults,DMP Healthcare (Heatherbrook) Ltd,Nursing Homes - Private Contractors Payment,2528.00,0.00,NON COMMERCIAL SUPPLIER 
 09-12-2022,Adults,Ladyville Lodge_a,Nursing Homes - Private Contractors Payment,2528.00,0.00,COMMERCIAL SUPPLIER 
 09-12-2022,Adults,Barleycroft Care Home Ltd,Nursing Homes - Private Contractors Payment,2528.00,0.00,COMMERCIAL SUPPLIER 
 09-12-2022,Adults,Barleycroft Care Home Ltd,Nursing Homes - Private Contractors Payment,2528.00,0.00,COMMERCIAL SUPPLIER 
 09-12-2022,Adults,Ranc Care Homes Ltd - Romford Care Centre,Nursing Homes - Private Contractors Payment,2528.00,0.00,COMMERCIAL SUPPLIER 
 09-12-2022,Adults,Highfield Care Homes Ltd t/a Romford Grange Care Home,Residential Placements - Private Contractors Payment,2530.96,0.00,COMMERCIAL SUPPLIER 
 09-12-2022,Adults,Sandstone Care Liverpool Ltd,Residential Placements - Private Contractors Payment,2540.28,0.00,COMMERCIAL SUPPLIER 
 09-12-2022,Adults,St Giles Homes Ltd T/A Forest Home,Residential Placements - Private Contractors Payment,2544.84,0.00,COMMERCIAL SUPPLIER 
 09-12-2022,Adults,Mundy House,Residential Placements - Private Contractors Payment,2559.40,0.00,COMMERCIAL SUPPLIER 
 09-12-2022,Adults,Priory Supporting Care Ltd,Residential Placements - Private Contractors Payment,2559.40,0.00,COMMERCIAL SUPPLIER 
 07-12-2022,Adults,Care-Away Ltd T/A Care Support,Home Care - Private Contractors Payment,2562.56,0.00,COMMERCIAL SUPPLIER 
 09-12-2022,Adults,Mundy House,Residential Placements - Private Contractors Payment,2579.84,0.00,COMMERCIAL SUPPLIER 
 04-12-2022,Adults,Eastway Care Ltd_a,Daycare - Private Contractors Payment,2580.00,0.00,COMMERCIAL SUPPLIER 
 04-12-2022,Adults,Eastway Care Ltd_a,Daycare - Private Contractors Payment,2580.00,0.00,COMMERCIAL SUPPLIER 
 09-12-2022,Adults,Black Swan International Ltd - Belamacanda,Residential Placements - Private Contractors Payment,2596.48,0.00,COMMERCIAL SUPPLIER 
 09-12-2022,Adults,Ranc Care Homes Ltd - Romford Care Centre,Respite Care - Private Contractors Payment,2600.00,0.00,COMMERCIAL SUPPLIER 
 09-12-2022,Adults,Ranc Care Homes Ltd - Romford Care Centre,Respite Care - Private Contractors Payment,2600.00,0.00,COMMERCIAL SUPPLIER 
 09-12-2022,Adults,Westminster Health Care Ltd Derham House,Nursing Homes - Private Contractors Payment,2606.08,0.00,COMMERCIAL SUPPLIER 
 09-12-2022,Adults,Ebony Health Care Services Limited,Supported Other Accommodation - Private Contractors Payment,2621.80,0.00,COMMERCIAL SUPPLIER 
 09-12-2022,Adults,Alexander Court Care Centre - Bondcare,Nursing Homes - Private Contractors Payment,2627.64,0.00,COMMERCIAL SUPPLIER 
 09-12-2022,Adults,Ash Grove Residential Care Home,Respite Care - Private Contractors Payment,2628.57,0.00,COMMERCIAL SUPPLIER 
 09-12-2022,Adults,Ash Grove Residential Care Home,Respite Care - Private Contractors Payment,2628.57,0.00,COMMERCIAL SUPPLIER 
 09-12-2022,Adults,Runwood Homes - Windle Court,Residential Placements - Private Contractors Payment,2634.24,0.00,COMMERCIAL SUPPLIER 
 09-12-2022,Adults,MNS Care Plc_a,Nursing Homes - Private Contractors Payment,2636.32,0.00,COMMERCIAL SUPPLIER 
 09-12-2022,Adults,HC-One Oval Ltd - Chaseview,Nursing Homes - Private Contractors Payment,2636.32,0.00,COMMERCIAL SUPPLIER 
 09-12-2022,Adults,Acer Healthcare Operation Ltd,Nursing Homes - Private Contractors Payment,2636.32,0.00,COMMERCIAL SUPPLIER 
 09-12-2022,Adults,Acer Healthcare Operation Ltd,Nursing Homes - Private Contractors Payment,2636.32,0.00,COMMERCIAL SUPPLIER 
 09-12-2022,Adults,St Georges Supported Living Ltd,Supported Other Accommodation - Private Contractors Payment,2640.32,0.00,COMMERCIAL SUPPLIER 
 09-12-2022,Adults,HC-One Oval Ltd - Chaseview,Residential Placements - Private Contractors Payment,2643.04,0.00,COMMERCIAL SUPPLIER 
 09-12-2022,Adults,Brenalwood Care Home,Residential Placements - Private Contractors Payment,2644.72,0.00,COMMERCIAL SUPPLIER 
 09-12-2022,Adults,Black Swan International Ltd - Belamacanda,Residential Placements - Private Contractors Payment,2647.40,0.00,COMMERCIAL SUPPLIER 
 09-12-2022,Adults,Nightingale Residential Care Home Ltd,Residential Placements - Private Contractors Payment,2665.00,0.00,COMMERCIAL SUPPLIER 
 09-12-2022,Adults,Beechcourt Care Centre - Bondcare,Residential Placements - Private Contractors Payment,2674.04,0.00,COMMERCIAL SUPPLIER 
 09-12-2022,Adults,St Georges Supported Living Ltd,Supported Other Accommodation - Private Contractors Payment,2681.24,0.00,COMMERCIAL SUPPLIER 
 09-12-2022,Adults,HC-One Oval Ltd - Chaseview,Nursing Homes - Private Contractors Payment,2681.40,0.00,COMMERCIAL SUPPLIER 
 09-12-2022,Adults,Acer Healthcare Operation Ltd,Nursing Homes - Private Contractors Payment,2681.40,0.00,COMMERCIAL SUPPLIER 
 09-12-2022,Adults,Flourishgate Care Services Ltd,Supported Other Accommodation - Private Contractors Payment,2688.00,0.00,COMMERCIAL SUPPLIER 
 09-12-2022,Adults,Affinia Healthcare Ltd_a,Supported Other Accommodation - Private Contractors Payment,2689.92,0.00,COMMERCIAL SUPPLIER 
 09-12-2022,Adults,Fountains Care Centre - Bondcare,Nursing Homes - Private Contractors Payment,2712.00,0.00,COMMERCIAL SUPPLIER 
 09-12-2022,Adults,Fountains Care Centre - Bondcare,Nursing Homes - Private Contractors Payment,2712.00,0.00,COMMERCIAL SUPPLIER 
 09-12-2022,Adults,Fountains Care Centre - Bondcare,Nursing Homes - Private Contractors Payment,2712.00,0.00,COMMERCIAL SUPPLIER 
 09-12-2022,Adults,Fountains Care Centre - Bondcare,Nursing Homes - Private Contractors Payment,2712.00,0.00,COMMERCIAL SUPPLIER 
 09-12-2022,Adults,Fountains Care Centre - Bondcare,Nursing Homes - Private Contractors Payment,2712.00,0.00,COMMERCIAL SUPPLIER 
 09-12-2022,Adults,Fountains Care Centre - Bondcare,Nursing Homes - Private Contractors Payment,2712.00,0.00,COMMERCIAL SUPPLIER 
 09-12-2022,Adults,Fountains Care Centre - Bondcare,Nursing Homes - Private Contractors Payment,2712.00,0.00,COMMERCIAL SUPPLIER 
 09-12-2022,Adults,Fountains Care Centre - Bondcare,Nursing Homes - Private Contractors Payment,2712.00,0.00,COMMERCIAL SUPPLIER 
 09-12-2022,Adults,Fountains Care Centre - Bondcare,Nursing Homes - Private Contractors Payment,2712.00,0.00,COMMERCIAL SUPPLIER 
 09-12-2022,Adults,Fountains Care Centre - Bondcare,Nursing Homes - Private Contractors Payment,2712.00,0.00,COMMERCIAL SUPPLIER 
 09-12-2022,Adults,Fountains Care Centre - Bondcare,Nursing Homes - Private Contractors Payment,2712.00,0.00,COMMERCIAL SUPPLIER 
 09-12-2022,Adults,Fountains Care Centre - Bondcare,Nursing Homes - Private Contractors Payment,2712.00,0.00,COMMERCIAL SUPPLIER 
 09-12-2022,Adults,Fountains Care Centre - Bondcare,Nursing Homes - Private Contractors Payment,2712.00,0.00,COMMERCIAL SUPPLIER 
 09-12-2022,Adults,Fountains Care Centre - Bondcare,Nursing Homes - Private Contractors Payment,2712.00,0.00,COMMERCIAL SUPPLIER 
 09-12-2022,Adults,Fountains Care Centre - Bondcare,Nursing Homes - Private Contractors Payment,2712.00,0.00,COMMERCIAL SUPPLIER 
 09-12-2022,Adults,Fountains Care Centre - Bondcare,Nursing Homes - Private Contractors Payment,2712.00,0.00,COMMERCIAL SUPPLIER 
 09-12-2022,Adults,Fountains Care Centre - Bondcare,Nursing Homes - Private Contractors Payment,2712.00,0.00,COMMERCIAL SUPPLIER 
 09-12-2022,Adults,Fountains Care Centre - Bondcare,Nursing Homes - Private Contractors Payment,2712.00,0.00,COMMERCIAL SUPPLIER 
 09-12-2022,Adults,Havering Care Homes Ltd t/a Abbscross Nursing Home,Nursing Homes - Private Contractors Payment,2712.00,0.00,COMMERCIAL SUPPLIER 
 09-12-2022,Adults,Havering Care Homes Ltd t/a Abbscross Nursing Home,Nursing Homes - Private Contractors Payment,2712.00,0.00,COMMERCIAL SUPPLIER 
 09-12-2022,Adults,Havering Care Homes Ltd t/a Abbscross Nursing Home,Nursing Homes - Private Contractors Payment,2712.00,0.00,COMMERCIAL SUPPLIER 
 09-12-2022,Adults,Havering Care Homes Ltd t/a Abbscross Nursing Home,Nursing Homes - Private Contractors Payment,2712.00,0.00,COMMERCIAL SUPPLIER 
 09-12-2022,Adults,Havering Care Homes Ltd t/a Abbscross Nursing Home,Nursing Homes - Private Contractors Payment,2712.00,0.00,COMMERCIAL SUPPLIER 
 09-12-2022,Adults,Havering Care Homes Ltd t/a Abbscross Nursing Home,Nursing Homes - Private Contractors Payment,2712.00,0.00,COMMERCIAL SUPPLIER 
 09-12-2022,Adults,One Tree Estates Ltd t/a Ashbrook Nursing Home,Nursing Homes - Private Contractors Payment,2712.00,0.00,COMMERCIAL SUPPLIER 
 09-12-2022,Adults,One Tree Estates Ltd t/a Ashbrook Nursing Home,Nursing Homes - Private Contractors Payment,2712.00,0.00,COMMERCIAL SUPPLIER 
 09-12-2022,Adults,One Tree Estates Ltd t/a Ashbrook Nursing Home,Nursing Homes - Private Contractors Payment,2712.00,0.00,COMMERCIAL SUPPLIER 
 09-12-2022,Adults,One Tree Estates Ltd t/a Ashbrook Nursing Home,Nursing Homes - Private Contractors Payment,2712.00,0.00,COMMERCIAL SUPPLIER 
 09-12-2022,Adults,One Tree Estates Ltd t/a Ashbrook Nursing Home,Nursing Homes - Private Contractors Payment,2712.00,0.00,COMMERCIAL SUPPLIER 
 09-12-2022,Adults,One Tree Estates Ltd t/a Ashbrook Nursing Home,Nursing Homes - Private Contractors Payment,2712.00,0.00,COMMERCIAL SUPPLIER 
 09-12-2022,Adults,One Tree Estates Ltd t/a Ashbrook Nursing Home,Nursing Homes - Private Contractors Payment,2712.00,0.00,COMMERCIAL SUPPLIER 
 09-12-2022,Adults,Highfield Care Homes Ltd t/a Romford Grange Care Home,Nursing Homes - Private Contractors Payment,2712.00,0.00,COMMERCIAL SUPPLIER 
 09-12-2022,Adults,Highfield Care Homes Ltd t/a Romford Grange Care Home,Nursing Homes - Private Contractors Payment,2712.00,0.00,COMMERCIAL SUPPLIER 
 09-12-2022,Adults,Highfield Care Homes Ltd t/a Romford Grange Care Home,Nursing Homes - Private Contractors Payment,2712.00,0.00,COMMERCIAL SUPPLIER 
 09-12-2022,Adults,Highfield Care Homes Ltd t/a Romford Grange Care Home,Nursing Homes - Private Contractors Payment,2712.00,0.00,COMMERCIAL SUPPLIER 
 09-12-2022,Adults,Highfield Care Homes Ltd t/a Romford Grange Care Home,Nursing Homes - Private Contractors Payment,2712.00,0.00,COMMERCIAL SUPPLIER 
 09-12-2022,Adults,Highfield Care Homes Ltd t/a Romford Grange Care Home,Nursing Homes - Private Contractors Payment,2712.00,0.00,COMMERCIAL SUPPLIER 
 09-12-2022,Adults,Highfield Care Homes Ltd t/a Romford Grange Care Home,Nursing Homes - Private Contractors Payment,2712.00,0.00,COMMERCIAL SUPPLIER 
 09-12-2022,Adults,MNS Care Plc_a,Nursing Homes - Private Contractors Payment,2712.00,0.00,COMMERCIAL SUPPLIER 
 09-12-2022,Adults,Bupa Care Homes (HVC) - Havering Court,Nursing Homes - Private Contractors Payment,2712.00,0.00,COMMERCIAL SUPPLIER 
 09-12-2022,Adults,Bupa Care Homes - Hutton Village,Nursing Homes - Private Contractors Payment,2712.00,0.00,COMMERCIAL SUPPLIER 
 09-12-2022,Adults,Lukka Care Homes Ltd - Ravenscourt,Nursing Homes - Private Contractors Payment,2712.00,0.00,COMMERCIAL SUPPLIER 
 09-12-2022,Adults,Lukka Care Homes Ltd - Ravenscourt,Nursing Homes - Private Contractors Payment,2712.00,0.00,COMMERCIAL SUPPLIER 
 09-12-2022,Adults,HC-One Oval Ltd - The Hornchurch Nursing Centre,Nursing Homes - Private Contractors Payment,2712.00,0.00,COMMERCIAL SUPPLIER 
 09-12-2022,Adults,HC-One Oval Ltd - The Hornchurch Nursing Centre,Nursing Homes - Private Contractors Payment,2712.00,0.00,COMMERCIAL SUPPLIER 
 09-12-2022,Adults,HC-One Oval Ltd - The Hornchurch Nursing Centre,Nursing Homes - Private Contractors Payment,2712.00,0.00,COMMERCIAL SUPPLIER 
 09-12-2022,Adults,HC-One Oval Ltd - The Hornchurch Nursing Centre,Nursing Homes - Private Contractors Payment,2712.00,0.00,COMMERCIAL SUPPLIER 
 09-12-2022,Adults,HC-One Oval Ltd - The Hornchurch Nursing Centre,Nursing Homes - Private Contractors Payment,2712.00,0.00,COMMERCIAL SUPPLIER 
 09-12-2022,Adults,HC-One Oval Ltd - The Hornchurch Nursing Centre,Nursing Homes - Private Contractors Payment,2712.00,0.00,COMMERCIAL SUPPLIER 
 09-12-2022,Adults,HC-One Oval Ltd - The Hornchurch Nursing Centre,Nursing Homes - Private Contractors Payment,2712.00,0.00,COMMERCIAL SUPPLIER 
 09-12-2022,Adults,HC-One Oval Ltd - The Hornchurch Nursing Centre,Nursing Homes - Private Contractors Payment,2712.00,0.00,COMMERCIAL SUPPLIER 
 09-12-2022,Adults,HC-One Oval Ltd - The Hornchurch Nursing Centre,Nursing Homes - Private Contractors Payment,2712.00,0.00,COMMERCIAL SUPPLIER 
 09-12-2022,Adults,HC-One Oval Ltd - The Hornchurch Nursing Centre,Nursing Homes - Private Contractors Payment,2712.00,0.00,COMMERCIAL SUPPLIER 
 09-12-2022,Adults,HC-One Oval Ltd - The Hornchurch Nursing Centre,Nursing Homes - Private Contractors Payment,2712.00,0.00,COMMERCIAL SUPPLIER 
 09-12-2022,Adults,HC-One Oval Ltd - The Hornchurch Nursing Centre,Nursing Homes - Private Contractors Payment,2712.00,0.00,COMMERCIAL SUPPLIER 
 09-12-2022,Adults,HC-One Oval Ltd - The Hornchurch Nursing Centre,Nursing Homes - Private Contractors Payment,2712.00,0.00,COMMERCIAL SUPPLIER 
 09-12-2022,Adults,HC-One Oval Ltd - The Hornchurch Nursing Centre,Nursing Homes - Private Contractors Payment,2712.00,0.00,COMMERCIAL SUPPLIER 
 09-12-2022,Adults,HC-One Oval Ltd - The Hornchurch Nursing Centre,Nursing Homes - Private Contractors Payment,2712.00,0.00,COMMERCIAL SUPPLIER 
 09-12-2022,Adults,HC-One Oval Ltd - The Hornchurch Nursing Centre,Nursing Homes - Private Contractors Payment,2712.00,0.00,COMMERCIAL SUPPLIER 
 09-12-2022,Adults,HC-One Oval Ltd - The Hornchurch Nursing Centre,Nursing Homes - Private Contractors Payment,2712.00,0.00,COMMERCIAL SUPPLIER 
 09-12-2022,Adults,Beechcourt Care Centre - Bondcare,Nursing Homes - Private Contractors Payment,2712.00,0.00,COMMERCIAL SUPPLIER 
 09-12-2022,Adults,Beechcourt Care Centre - Bondcare,Nursing Homes - Private Contractors Payment,2712.00,0.00,COMMERCIAL SUPPLIER 
